Workbook

Sheet Состав сведений
CW1: Приложение
AZ2: к Общим требованиям к порядку составления и утверждения отчета о результатах деятельности государственного (муниципального) учреждения и об использовании закрепленного за ним государственного (муниципального) имущества, утвержденным приказом Министерства финансов Российской Федерации от 02.11.2021 № 171н
BW3: (в ред. Приказа Минфина России от 08.11.2022 № 159н)
CN5: (рекомендуемый образец)
A7: Отчет
A8: о результатах деятельности государственного (муниципального) учреждения и об использовании закрепленного за ним государственного (муниципального) имущества
CP10: КОДЫ
AJ11: на 1 | AR11: января | BF11: 2026 | BN11: г. | CB11: Дата | CP11: 01.01.2026
BZ12: по Сводному реестру
CB13: ИНН
A14: Учреждение | AB14: МБУДО ФАКЕЛ | CB14: КПП
A15: Тип учреждения | AB15: 01
AB16: (казенное - "01", бюджетное - "02", автономное - "03")
A17: Орган, осуществляющий функции и полномочия учредителя | CB17: глава по БК
A18: Публично-правовое образование | AB18: город Казань | CB18: по ОКТМО | CP18: 92701000001
A19: Периодичность: годовая
A21: Раздел 1. Результаты деятельности
A23: 1. Отчет о выполнении ГЗ
A24: 2. Сведения о поступлениях и выплатах учреждения
A25: 3. Сведения об оказываемых услугах, выполняемых работах сверх установленного государственного (муниципального) задания, а также выпускаемой продукции
A26: 4. Сведения о доходах учреждения в виде прибыли, приходящейся на доли в уставных (складочных) капиталах хозяйственных товариществ и обществ, или дивидендов по акциям, принадлежащим учреждению
A27: 5. Сведения о кредиторской задолженности и обязательствах учреждения
A28: 6. Сведения о просроченной кредиторской задолженности
A29: 7. Сведения о задолженности по ущербу, недостачам, хищениям денежных средств и материальных ценностей
A30: 8. Сведения о численности сотрудников и оплате труда
A31: 9. Сведения о счетах учреждения, открытых в кредитных организациях
A33: Раздел 2. Использование имущества, закрепленного за учреждением
A35: 1. Сведения о недвижимом имуществе, за исключением земельных участков, закрепленном на праве оперативного управления
A36: 2. Сведения о земельных участках, предоставленных на праве постоянного (бессрочного) пользования
A37: 3. Сведения о недвижимом имуществе, используемом по договору аренды
A38: 4. Сведения о недвижимом имуществе, используемом по договору безвозмездного пользования (договору ссуды)
A39: 5. Сведения об особо ценном движимом имуществе (за исключением транспортных средств)
A40: 6. Сведения о транспортных средствах
A41: 7. Сведения об имуществе, за исключением земельных участков, переданном в аренду
A43: Раздел 3. Эффективность деятельности
A44: 1. Сведения о видах деятельности, в отношении которых установлен показатель эффективности
A45: 2. Сведения о достижении показателей эффективности деятельности учреждения
A49: Руководитель (уполномоченное лицо) Учреждения
AH50: (должность) | BP50: (расшифровка подписи)
A52: Исполнитель
AH53: (должность) | BP53: (телефон)
A55: " | G55: " | V55: 20 | AD55: г.

Sheet Отчет о ГЗ
BB3: ОТЧЕТ О ВЫПОЛНЕНИИ
BB4: ГОСУДАРСТВЕННОГО ЗАДАНИЯ № 1
AR5: на | BE5: год и на плановый период | CO5: и | CZ5: годов
BG6: на " | BQ6: " | CN6: г.2

Sheet Поступления и выплаты
A2: Сведения о поступлениях и выплатах учреждения
EP4: КОДЫ
BS5: на 1 | BX5: января | CK5: 2026 | CQ5: г. | DY5: Дата | EP5: 01.01.2026
DY6: по Сводному реестру
DY7: ИНН
A8: Учреждение | AB8: МБУДО ФАКЕЛ | DY8: КПП
A9: Орган, осуществляющий функции и полномочия учредителя | AB9: МУНИЦИПАЛЬНОЕ КАЗЕННОЕ УЧРЕЖДЕНИЕ "КОМИТЕТ ЗЕМЕЛЬНЫХ И ИМУЩЕСТВЕННЫХ ОТНОШЕНИЙ ИСПОЛНИТЕЛЬНОГО КОМИТЕТА МУНИЦИПАЛЬНОГО ОБРАЗОВАНИЯ ГОРОДА КАЗАНИ" | DY9: глава по БК
A11: Публично-правовое образование | AB11: город Казань | DY11: по ОКТМО | EP11: 92701000001
A12: Периодичность: годовая
A13: Единица измерения: руб. | DY13: по ОКЕИ | EP13: 383
A14: Раздел 1. Сведения о поступлениях учреждения
A16: Наименование показателя | BS16: Код строки | CB16: Сумма поступлений | DT16: Изменение, % | EP16: Доля в общей сумме поступлений, %
CB17: за 2025 год (за отчетный финансовый год) | CX17: за 2024 год (за год, предшествующий отчетному)
A18: 1 | BS18: 2 | CB18: 3 | CX18: 4 | DT18: 5 | EP18: 6
A19: Субсидии на финансовое обеспечение выполнения государственного (муниципального) задания 4 | BS19: 0100 | CB19: 15,972,675.27 | CX19: 14,982,239.09 | DT19: =(CB19-CX19)/CX19*100 -> 6.61 | EP19: 0,00
A20: Субсидии на финансовое обеспечение выполнения государственного задания из бюджета Федерального фонда обязательного медицинского страхования | BS20: 0200 | CB20: 0,00 | CX20: 0,00 | DT20: 0,00 | EP20: 0,00
A21: Субсидии на иные цели 5 | BS21: 0300 | CB21: 0.00 | CX21: 0.00 | DT21: =(CB21-CX21)/CX21*100 ->  | EP21: 0,00
A22: Субсидии на осуществление капитальных вложений | BS22: 0400 | CB22: 0,00 | CX22: 0,00 | DT22: 0,00 | EP22: 0,00
A23: Гранты в форме субсидий, всего | BS23: 0500 | CB23: =CB24+CB25 -> 0.00 | CX23: =CX24+CX25 -> 0.00 | DT23: 0,00 | EP23: 0,00
A24: в том числе: гранты в форме субсидий из федерального бюджета | BS24: 0501 | CB24: 0,00 | CX24: 0,00 | DT24: 0,00 | EP24: 0,00
A25: гранты в форме субсидий из бюджетов субъектов Российской Федерации и местных бюджетов | BS25: 0502 | CB25: 0,00 | CX25: 0,00 | DT25: 0,00 | EP25: 0,00
A26: Гранты, предоставляемые юридическими и физическими лицами (за исключением грантов в форме субсидий, предоставляемых из бюджетов бюджетной системы Российской Федерации) | BS26: 0600 | CB26: =CB27 -> 0,00 | CX26: =CX27 -> 0,00 | DT26: 0,00 | EP26: 0,00
A27: из них: гранты, предоставляемые юридическими лицами (операторами), источником финансового обеспечения которых являются субсидии и имущественные взносы, полученные из бюджетов бюджетной системы Российской Федерации | BS27: 0610 | CB27: 0,00 | CX27: 0,00 | DT27: 0,00 | EP27: 0,00
A28: Пожертвования и иные безвозмездные перечисления от физических и юридических лиц, в том числе иностранных организаций 155 | BS28: 0700 | CB28: 0.00 | CX28: 0.00 | DT28: =(CB28-CX28)/CX28*100 ->  | EP28: 0,00
A29: Доходы от приносящей доход деятельности, компенсаций затрат (за исключением доходов от собственности), всего | BS29: 0800 | CB29: =CB30+CB31+CB32+CB33+CB34+CB35+CB36 -> 0.00 | CX29: =CX30+CX31+CX32+CX33+CX34+CX35+CX36 -> 0.00 | DT29: =(CB29-CX29)/CX29*100 ->  | EP29: 0,00
A30: в том числе: доходы в виде платы за оказание услуг (выполнение работ) в рамках установленного государственного задания рп | BS30: 0801 | CB30: 0.00 | CX30: 0.00 | DT30: 0.00 | EP30: 0,00
A31: доходы от оказания услуг, выполнения работ, реализации готовой продукции сверх установленного государственного задания по видам деятельности, отнесенным в соответствии с учредительными документами к основным плат | BS31: 0802 | CB31: 0.00 | CX31: 0.00 | DT31: =(CB31-CX31)/CX31*100 ->  | EP31: 0,00
A32: доходы от платы за пользование служебными жилыми помещениями и общежитиями, включающей плату за пользование и плату за содержание жилого помещения | BS32: 0803 | CB32: 0.00 | CX32: 0.00 | DT32: =(CB32-CX32)/CX32*100 ->  | EP32: 0,00
A33: доходы от оказания услуг в рамках обязательного медицинского страхования | BS33: 0804 | CB33: 0.00 | CX33: 0.00 | DT33: 0,00 | EP33: 0,00
A34: доходы от оказания медицинских услуг, предоставляемых женщинам в период беременности, женщинам и новорожденным в период родов и в послеродовой период | BS34: 0805 | CB34: 0.00 | CX34: 0.00 | DT34: 0,00 | EP34: 0,00
A35: возмещение расходов, понесенных в связи с эксплуатацией имущества, находящегося в оперативном управлении учреждения 135 | BS35: 0806 | CB35: 0.00 | CX35: 0.00 | DT35: 0.00 | EP35: 0,00
A36: прочие доходы от оказания услуг, выполнения работ, компенсации затрат учреждения, включая возмещение расходов по решению судов (возмещение судебных издержек) 134 522 | BS36: 0807 | CB36: 0.00 | CX36: 0.00 | DT36: 0,00 | EP36: 0,00
A37: Доходы от собственности, всего | BS37: 0900 | CB37: =CB38+CB39+CB40+CB41+CB42+CB43+CB44+CB45 -> 0.00 | CX37: =CX38+CX39+CX40+CX41+CX42+CX43+CX44+CX45 -> 0.00 | DT37: =(CB37-CX37)/CX37*100 ->  | EP37: 0,00
A38: доходы в виде арендной либо иной платы за передачу в возмездное пользование государственного (муниципального) имущества 121 | BS38: 0901 | CB38: 0.00 | CX38: 0.00 | DT38: =(CB38-CX38)/CX38*100 ->  | EP38: 0,00
A39: доходы от распоряжения правами на результаты интеллектуальной деятельности и средствами индивидуализации | BS39: 0902 | CB39: 0,00 | CX39: 0,00 | DT39: 0,00 | EP39: 0,00
A40: проценты по депозитам учреждения в кредитных организациях | BS40: 0903 | CB40: 0,00 | CX40: 0,00 | DT40: 0,00 | EP40: 0,00
A41: проценты по остаткам средств на счетах учреждения в кредитных организациях | BS41: 0904 | CB41: 0,00 | CX41: 0,00 | DT41: 0,00 | EP41: 0,00
A42: проценты, полученные от предоставления займов | BS42: 0905 | CB42: 0,00 | CX42: 0,00 | DT42: 0,00 | EP42: 0,00
A43: проценты по иным финансовым инструментам | BS43: 0906 | CB43: 0,00 | CX43: 0,00 | DT43: 0,00 | EP43: 0,00
A44: доходы в виде прибыли, приходящейся на доли в уставных (складочных) капиталах хозяйственных товариществ и обществ, или дивидендов по акциям, принадлежащим учреждению | BS44: 0907 | CB44: 0,00 | CX44: 0,00 | DT44: 0,00 | EP44: 0,00
A45: прочие доходы от использования имущества, находящегося в оперативном управлении учреждения | BS45: 0908 | CB45: 0,00 | CX45: 0,00 | DT45: 0,00 | EP45: 0,00
A46: Поступления доходов от штрафов, пеней, неустоек, возмещения ущерба | BS46: 1000 | CB46: 0,00 | CX46: 0,00 | DT46: 0,00 | EP46: 0,00
A47: Поступления доходов от выбытия нефинансовых активов | BS47: 1100 | CB47: 0.00 | CX47: 0,00 | DT47: 0,00 | EP47: 0,00
A48: Поступления доходов от выбытия финансовых активов | BS48: 1200 | CB48: 0,00 | CX48: 0,00 | DT48: 0,00 | EP48: 0,00
A49: Иные поступления | BS49: 1300 | CB49: 0.00 | CX49: =CX50+CX51 -> 0.00 | DT49: 0,00 | EP49: 0,00
A50: из них: возврат денежных обеспечений | BS50: 1301 | CB50: 0,00 | CX50: 0,00 | DT50: 0,00 | EP50: 0,00
A51: возврат денежных средств с депозитных счетов | BS51: 1302 | CB51: 0,00 | CX51: 0,00 | DT51: 0,00 | EP51: 0,00
A52: Итого | BS52: 9000 | CB52: =CB19+CB20+CB21+CB22+CB23+CB26+CB28+CB29+CB37+CB46+CB47+CB48+CB49 -> 15,972,675.27 | CX52: =CX19+CX20+CX21+CX22+CX23+CX26+CX28+CX29+CX37+CX46+CX47+CX48+CX49 -> 14,982,239.09 | DT52: х | EP52: 100,00%
B54: Раздел 2. Сведения о выплатах учреждения
DJ55: 0
A56: Наименование показателя | S56: Код строки | Y56: Сумма выплат за отчетный период, всего | AF56: Доля в общей сумме выплат, % | AL56: в том числе по источникам финансового обеспечения обязательств по выплатам
AL57: за счет средств субсидии на выполнение государствен-ного задания 4 | AU57: доля в общей сумме выплат, отраженных в графе 3, % | BC57: за счет средств субсидии на иные цели 5 | BJ57: доля в общей сумме выплат, отраженных в графе 3, % | BR57: за счет средств гранта в форме субсидии | CX57: ОМС 139 | DG57: доля в общей сумме выплат, отраженных в графе 3, % | DO57: за счет средств от приносящей доход деятельности, всего 2 | DX57: доля в общей сумме выплат, отраженных в графе 3, % | EF57: из них:
BR58: в том числе: | EF58: за счет средств, полученных от оказания услуг, выполнения работ, реализации продукции 131 | EN58: доля в общей сумме выплат, отраженных в графе 3, % | EV58: за счет без-возмездных поступлений 155 | FD58: доля в общей сумме выплат, отраженных в графе 3, %
BR59: из федерального бюджета | BZ59: доля в общей сумме выплат, отраженных в графе 3, % | CH59: из бюджетов субъектов Российской Федерации и местных бюджетов | CP59: доля в общей сумме выплат, отраженных в графе 3, %
A60: 1 | S60: 2 | Y60: 3 | AF60: 4 | AL60: 5 | AU60: 6 | BC60: 7 | BJ60: 8 | BR60: 9 | BZ60: 10 | CH60: 11 | CP60: 12 | CX60: 13 | DG60: 14 | DO60: 15 | DX60: 16 | EF60: 17 | EN60: 18 | EV60: 19 | FD60: 20
A61: Оплата труда и компенсационные выплаты работникам 211 212 | S61: 0100 | Y61: =AL61+BC61+BR61+CH61+CX61+DO61 -> 11,230,191.80 | AF61: 0,00 | AL61: 11,230,191.80 | AU61: 0,00 | BC61: 0,00 | BJ61: 0,00 | BR61: 0,00 | BZ61: 0,00 | CH61: 0,00 | CP61: 0,00 | CX61: 0,00 | DG61: 0,00 | DO61: 0,00 | DX61: 0,00 | EF61: 0,00 | EN61: 0,00 | EV61: 0,00 | FD61: 0,00
A62: Взносы по обязательному социальному страхованию 213 | S62: 0200 | Y62: =AL62+BC62+BR62+CH62+CX62+DO62 -> 3,374,159.38 | AF62: 0,00 | AL62: 3,374,159.38 | AU62: 0,00 | BC62: 0,00 | BJ62: 0,00 | BR62: 0,00 | BZ62: 0,00 | CH62: 0,00 | CP62: 0,00 | CX62: 0,00 | DG62: 0,00 | DO62: 0,00 | DX62: 0,00 | EF62: 0,00 | EN62: 0,00 | EV62: 0,00 | FD62: 0,00
A63: Приобретение товаров, работ, услуг, всего | S63: 0300 | Y63: =Y64+Y65+Y66+Y67+Y68+Y69+Y70 -> 1,706,220.13 | AF63: 0,00 | AL63: =AL64+AL65+AL66+AL67+AL68+AL69+AL70 -> 1,706,220.13 | AU63: 0,00 | BC63: =BC64+BC65+BC66+BC67+BC68+BC69+BC70 -> 0.00 | BJ63: 0,00 | BR63: 0,00 | BZ63: 0,00 | CH63: 0,00 | CP63: 0,00 | CX63: 0,00 | DG63: 0,00 | DO63: =DO64+DO65+DO66+DO67+DO68+DO69+DO70 -> 0.00 | DX63: 0,00 | EF63: =EF64+EF65+EF66+EF67+EF68+EF69+EF70 -> 0.00 | EN63: 0,00 | EV63: =EV64+EV65+EV66+EV67+EV68+EV69+EV70 -> 0.00 | FD63: 0,00
A64: из них: услуги связи 221 | S64: 0301 | Y64: =AL64+BC64+BR64+CH64+CX64+DO64 -> 0.00 | AF64: 0,00 | AL64: 0,00 | AU64: 0,00 | BC64: 0,00 | BJ64: 0,00 | BR64: 0,00 | BZ64: 0,00 | CH64: 0,00 | CP64: 0,00 | CX64: 0,00 | DG64: 0,00 | DO64: 0,00 | DX64: 0,00 | EF64: 0,00 | EN64: 0,00 | EV64: 0,00 | FD64: 0,00
A65: транспортные услуги 222 | S65: 0302 | Y65: 0.00 | AF65: 0,00 | AL65: 0,00 | AU65: 0,00 | BC65: 0,00 | BJ65: 0,00 | BR65: 0,00 | BZ65: 0,00 | CH65: 0,00 | CP65: 0,00 | CX65: 0,00 | DG65: 0,00 | DO65: 0,00 | DX65: 0,00 | EF65: 0,00 | EN65: 0,00 | EV65: 0,00 | FD65: 0,00
A66: коммунальные услуги 223 | S66: 0303 | Y66: 1,151,193.56 | AF66: 0,00 | AL66: 1,151,193.56 | AU66: 0,00 | BC66: 0,00 | BJ66: 0,00 | BR66: 0,00 | BZ66: 0,00 | CH66: 0,00 | CP66: 0,00 | CX66: 0,00 | DG66: 0,00 | DO66: 0,00 | DX66: 0,00 | EF66: 0,00 | EN66: 0,00 | EV66: 0,00 | FD66: 0,00
A67: арендная плата за пользование имуществом 224 | S67: 0304 | Y67: 0.00 | AF67: 0,00 | AL67: 0,00 | AU67: 0,00 | BC67: 0,00 | BJ67: 0,00 | BR67: 0,00 | BZ67: 0,00 | CH67: 0,00 | CP67: 0,00 | CX67: 0,00 | DG67: 0,00 | DO67: 0,00 | DX67: 0,00 | EF67: 0,00 | EN67: 0,00 | EV67: 0,00 | FD67: 0,00
A68: работы, услуги по содержанию имущества 225 | S68: 0305 | Y68: 329,932.75 | AF68: 0,00 | AL68: 329,932.75 | AU68: 0,00 | BC68: 0,00 | BJ68: 0,00 | BR68: 0,00 | BZ68: 0,00 | CH68: 0,00 | CP68: 0,00 | CX68: 0,00 | DG68: 0,00 | DO68: 0,00 | DX68: 0,00 | EF68: 0,00 | EN68: 0,00 | EV68: 0,00 | FD68: 0,00
A69: прочие работы, услуги 226 | S69: 0306 | Y69: 0.00 | AF69: 0,00 | AL69: 0,00 | AU69: 0,00 | BC69: 0,00 | BJ69: 0,00 | BR69: 0,00 | BZ69: 0,00 | CH69: 0,00 | CP69: 0,00 | CX69: 0,00 | DG69: 0,00 | DO69: 0,00 | DX69: 0,00 | EF69: 0,00 | EN69: 0,00 | EV69: 0,00 | FD69: 0,00
A70: нефинансовые активы 310 340 | S70: 0307 | Y70: 225,093.82 | AF70: 0,00 | AL70: 225,093.82 | AU70: 0,00 | BC70: 0,00 | BJ70: 0,00 | BR70: 0,00 | BZ70: 0,00 | CH70: 0,00 | CP70: 0,00 | CX70: 0,00 | DG70: 0,00 | DO70: 0,00 | DX70: 0,00 | EF70: 0,00 | EN70: 0,00 | EV70: 0,00 | FD70: 0,00
A71: Обслуживание долговых обязательств | S71: 0400 | Y71: 0.00 | AF71: 0,00 | AL71: 0,00 | AU71: 0,00 | BC71: 0,00 | BJ71: 0,00 | BR71: 0,00 | BZ71: 0,00 | CH71: 0,00 | CP71: 0,00 | CX71: 0,00 | DG71: 0,00 | DO71: 0,00 | DX71: 0,00 | EF71: 0,00 | EN71: 0,00 | EV71: 0,00 | FD71: 0,00
A72: Безвозмездные перечисления организациям | S72: 0500 | Y72: 0.00 | AF72: 0,00 | AL72: 0,00 | AU72: 0,00 | BC72: 0,00 | BJ72: 0,00 | BR72: 0,00 | BZ72: 0,00 | CH72: 0,00 | CP72: 0,00 | CX72: 0,00 | DG72: 0,00 | DO72: 0,00 | DX72: 0,00 | EF72: 0,00 | EN72: 0,00 | EV72: 0,00 | FD72: 0,00
A73: Социальное обеспечение 266 | S73: 0600 | Y73: 14,685.12 | AF73: 0,00 | AL73: 14,685.12 | AU73: 0,00 | BC73: 0,00 | BJ73: 0,00 | BR73: 0,00 | BZ73: 0,00 | CH73: 0,00 | CP73: 0,00 | CX73: 0,00 | DG73: 0,00 | DO73: 0,00 | DX73: 0,00 | EF73: 0,00 | EN73: 0,00 | EV73: 0,00 | FD73: 0,00
A74: Уплата налогов, сборов, прочих платежей в бюджет (за исключением взносов по обязательному социальному страхованию), всего | S74: 0700 | Y74: =Y75+Y76+Y77+Y78+Y79+Y80+Y81+Y82 -> 826,646.49 | AF74: 0,00 | AL74: =AL75+AL76+AL77+AL78+AL79+AL80+AL81+AL82 -> 826,646.49 | AU74: 0,00 | BC74: =BC75+BC76+BC77+BC78+BC79+BC80+BC81+BC82 -> 0.00 | BJ74: 0,00 | BR74: 0,00 | BZ74: 0,00 | CH74: 0,00 | CP74: 0,00 | CX74: 0,00 | DG74: 0,00 | DO74: =DO75+DO76+DO77+DO78+DO79+DO80+DO81+DO82 -> 0.00 | DX74: 0,00 | EF74: =EF75+EF76+EF77+EF78+EF79+EF80+EF81+EF82 -> 0.00 | EN74: 0,00 | EV74: =EV75+EV76+EV77+EV78+EV79+EV80+EV81+EV82 -> 0.00 | FD74: 0,00
A75: из них: налог на прибыль 189 | S75: 0701 | Y75: =AL75+BC75+BR75+CH75+CX75+DO75 -> 0.00 | AF75: 0,00 | AL75: 0,00 | AU75: 0,00 | BC75: 0,00 | BJ75: 0,00 | BR75: 0,00 | BZ75: 0,00 | CH75: 0,00 | CP75: 0,00 | CX75: 0,00 | DG75: 0,00 | DO75: 0,00 | DX75: 0,00 | EF75: 0,00 | EN75: 0,00 | EV75: 0,00 | FD75: 0,00
A76: налог на добавленную стоимость 189 | S76: 0702 | Y76: 0.00 | AF76: 0,00 | AL76: 0,00 | AU76: 0,00 | BC76: 0,00 | BJ76: 0,00 | BR76: 0,00 | BZ76: 0,00 | CH76: 0,00 | CP76: 0,00 | CX76: 0,00 | DG76: 0,00 | DO76: 0.00 | DX76: 0,00 | EF76: 0,00 | EN76: 0,00 | EV76: 0,00 | FD76: 0,00
A77: налог на имущество организаций 291014 | S77: 0703 | Y77: 2,476.00 | AF77: 0,00 | AL77: 2,476.00 | AU77: 0,00 | BC77: 0,00 | BJ77: 0,00 | BR77: 0,00 | BZ77: 0,00 | CH77: 0,00 | CP77: 0,00 | CX77: 0,00 | DG77: 0,00 | DO77: 0,00 | DX77: 0,00 | EF77: 0,00 | EN77: 0,00 | EV77: 0,00 | FD77: 0,00
A78: земельный налог 291001 | S78: 0704 | Y78: 0.00 | AF78: 0,00 | AL78: 0.00 | AU78: 0,00 | BC78: 0,00 | BJ78: 0,00 | BR78: 0,00 | BZ78: 0,00 | CH78: 0,00 | CP78: 0,00 | CX78: 0,00 | DG78: 0,00 | DO78: 0,00 | DX78: 0,00 | EF78: 0,00 | EN78: 0,00 | EV78: 0,00 | FD78: 0,00
A79: транспортный налог 291015 | S79: 0705 | Y79: 10,915.00 | AF79: 0,00 | AL79: 10,915.00 | AU79: 0,00 | BC79: 0,00 | BJ79: 0,00 | BR79: 0,00 | BZ79: 0,00 | CH79: 0,00 | CP79: 0,00 | CX79: 0,00 | DG79: 0,00 | DO79: 0,00 | DX79: 0,00 | EF79: 0,00 | EN79: 0,00 | EV79: 0,00 | FD79: 0,00
A80: водный налог | S80: 0706 | Y80: 0.00 | AF80: 0,00 | AL80: 0,00 | AU80: 0,00 | BC80: 0,00 | BJ80: 0,00 | BR80: 0,00 | BZ80: 0,00 | CH80: 0,00 | CP80: 0,00 | CX80: 0,00 | DG80: 0,00 | DO80: 0,00 | DX80: 0,00 | EF80: 0,00 | EN80: 0,00 | EV80: 0,00 | FD80: 0,00
A81: государственные пошлины 291005 | S81: 0707 | Y81: 0.00 | AF81: 0,00 | AL81: 0,00 | AU81: 0,00 | BC81: 0,00 | BJ81: 0,00 | BR81: 0,00 | BZ81: 0,00 | CH81: 0,00 | CP81: 0,00 | CX81: 0,00 | DG81: 0,00 | DO81: 0,00 | DX81: 0,00 | EF81: 0,00 | EN81: 0,00 | EV81: 0,00 | FD81: 0,00
A82: прочие налоги, сборы, платежи в бюджет 241 227 292 296 | S82: 0708 | Y82: 813,255.49 | AF82: 0,00 | AL82: 813,255.49 | AU82: 0,00 | BC82: 0,00 | BJ82: 0,00 | BR82: 0,00 | BZ82: 0,00 | CH82: 0,00 | CP82: 0,00 | CX82: 0,00 | DG82: 0,00 | DO82: 0,00 | DX82: 0,00 | EF82: 0,00 | EN82: 0,00 | EV82: 0,00 | FD82: 0,00
A83: Приобретение финансовых активов, всего: | S83: 0800 | Y83: =Y84+Y85 -> 0.00 | AF83: 0,00 | AL83: =AL84+AL85 -> 0.00 | AU83: 0,00 | BC83: =BC84+BC85 -> 0.00 | BJ83: 0,00 | BR83: 0,00 | BZ83: 0,00 | CH83: 0,00 | CP83: 0,00 | CX83: 0,00 | DG83: 0,00 | DO83: =DO84+DO85 -> 0.00 | DX83: 0,00 | EF83: =EF84+EF85 -> 0.00 | EN83: 0,00 | EV83: =EV84+EV85 -> 0.00 | FD83: 0,00
A84: из них: приобретение ценных бумаг, кроме акций и иных форм участия в капитале | S84: 0801 | Y84: 0,00 | AF84: 0,00 | AL84: 0,00 | AU84: 0,00 | BC84: 0,00 | BJ84: 0,00 | BR84: 0,00 | BZ84: 0,00 | CH84: 0,00 | CP84: 0,00 | CX84: 0,00 | DG84: 0,00 | DO84: 0,00 | DX84: 0,00 | EF84: 0,00 | EN84: 0,00 | EV84: 0,00 | FD84: 0,00
A85: приобретение акций и иные формы участия в капитале | S85: 0802 | Y85: =AL85+BC85+BR85+CH85+CX85+DO85 -> 0.00 | AF85: 0,00 | AL85: 0,00 | AU85: 0,00 | BC85: 0,00 | BJ85: 0,00 | BR85: 0,00 | BZ85: 0,00 | CH85: 0,00 | CP85: 0,00 | CX85: 0,00 | DG85: 0,00 | DO85: 0,00 | DX85: 0,00 | EF85: 0,00 | EN85: 0,00 | EV85: 0,00 | FD85: 0,00
A86: Иные выплаты, всего | S86: 0900 | Y86: =Y87+Y88 -> 0.00 | AF86: 0,00 | AL86: =AL87+AL88 -> 0.00 | AU86: 0,00 | BC86: =BC87+BC88 -> 0.00 | BJ86: 0,00 | BR86: 0,00 | BZ86: 0,00 | CH86: 0,00 | CP86: 0,00 | CX86: 0,00 | DG86: 0,00 | DO86: =DO87+DO88 -> 0.00 | DX86: 0,00 | EF86: =EF87+EF88 -> 0.00 | EN86: 0,00 | EV86: =EV87+EV88 -> 0.00 | FD86: 0,00
A87: из них: перечисление денежных обеспечений | S87: 0901 | Y87: =AL87+BC87+BR87+CH87+CX87+DO87 -> 0.00 | AF87: 0,00 | AL87: 0,00 | AU87: 0,00 | BC87: 0,00 | BJ87: 0,00 | BR87: 0,00 | BZ87: 0,00 | CH87: 0,00 | CP87: 0,00 | CX87: 0,00 | DG87: 0,00 | DO87: 0,00 | DX87: 0,00 | EF87: 0,00 | EN87: 0,00 | EV87: 0,00 | FD87: 0,00
A88: перечисление денежных средств на депозитные счета | S88: 0902 | Y88: =AL88+BC88+BR88+CH88+CX88+DO88 -> 0.00 | AF88: 0,00 | AL88: 0,00 | AU88: 0,00 | BC88: 0,00 | BJ88: 0,00 | BR88: 0,00 | BZ88: 0,00 | CH88: 0,00 | CP88: 0,00 | CX88: 0,00 | DG88: 0,00 | DO88: 0,00 | DX88: 0,00 | EF88: 0,00 | EN88: 0,00 | EV88: 0,00 | FD88: 0,00
A89: Итого | S89: 9000 | Y89: =Y61+Y62+Y63+Y71+Y72+Y73+Y74+Y83+Y86 -> 17,151,902.92 | AF89: 100,00% | AL89: =AL61+AL62+AL63+AL71+AL72+AL73+AL74+AL83+AL86 -> 17,151,902.92 | AU89: х | BC89: =BC61+BC62+BC63+BC71+BC72+BC73+BC74+BC83+BC86 -> 0.00 | BJ89: х | BR89: 0,00 | BZ89: х | CH89: 0,00 | CP89: х | CX89: 0,00 | DG89: х | DO89: =DO61+DO62+DO63+DO71+DO72+DO73+DO74+DO83+DO86 -> 0.00 | DX89: х | EF89: =EF61+EF62+EF63+EF71+EF72+EF73+EF74+EF83+EF86 -> 0.00 | EN89: х | EV89: =EV61+EV62+EV63+EV71+EV72+EV73+EV74+EV83+EV86 -> 0.00 | FD89: х
A91: Руководитель (уполномоченное лицо) Учреждения
AB92: (должность) | BM92: (подпись) | DK92: (расшифровка подписи)
A93: Исполнитель | AB93: Ведущий бухгалтер | BM93: Нуждина Л.Б. | DK93: 598 33 22 (5106)
AB94: (должность) | BM94: (фамилия, инициалы) | DK94: (телефон)
A96: " | F96: " | U96: 20 | AA96: г.

Sheet Услуги сверх ГЗ
A2: Сведения об оказываемых услугах, выполняемых работах сверх установленного государственного (муниципального) задания, а также выпускаемой продукции
BS3: на 1 | BX3: января | CK3: 2026 | CQ3: г. | EW3: КОДЫ
EG4: Дата | EW4: 01.01.2026
EG5: по Сводному реестру
EG6: ИНН
A7: Учреждение | AK7: МБУДО ФАКЕЛ | EG7: КПП
A8: Орган, осуществляющий функции и полномочия учредителя | EG8: глава по БК
A9: Публично-правовое образование | AK9: город Казань | EG9: по ОКТМО | EW9: 92701000001
A10: Периодичность: годовая
A12: Раздел 1. Сведения об услугах, оказываемых сверх установленного государственного (муниципального) задания
A14: Наименование оказываемых услуг | AK14: Код по ОКВЭД | AT14: Код строки | BB14: Объем оказанных услуг | CG14: Доход от оказания услуг, руб. | CX14: Цена (тариф) | DK14: Справочно: реквизиты акта, которым установлена цена (тариф)
BB15: единица измерения | BX15: всего | DK15: кем издан (ФОИВ, учреждение) | EF15: дата | EW15: номер
BB16: наименование | BM16: код по ОКЕИ
A17: 1 | AK17: 2 | AT17: 3 | BB17: 4 | BM17: 5 | BX17: 6 | CG17: 7 | CX17: 8 | DK17: 9 | EF17: 10 | EW17: 11
A18: Платные услуги | AK18: 85.41 | AT18: 1000 | BB18: рубль | BM18: 383 | BX18: 1.00 | CG18: 0.00 | CX18: 0.00
A20: Раздел 2. Сведения о работах, выполняемых сверх установленного государственного (муниципального) задания
A22: Наименование выполняемых работ | AK22: Код по ОКВЭД | AT22: Код строки | BB22: Объем выполненных работ | CG22: Доход от выполнения работ, руб. | CX22: Цена (тариф) | DK22: Справочно: реквизиты акта, которым установлена цена (тариф)
BB23: единица измерения | BX23: всего | DK23: кем издан (ФОИВ, учреждение) | EF23: дата | EW23: номер
BB24: наименование | BM24: код по ОКЕИ
A25: 1 | AK25: 2 | AT25: 3 | BB25: 4 | BM25: 5 | BX25: 6 | CG25: 7 | CX25: 8 | DK25: 9 | EF25: 10 | EW25: 11
A27: Раздел 3. Сведения о производимой продукции
A29: Наименование производимой продукции | AK29: Код по ОКВЭД | AT29: Код строки | BB29: Объем произведенной продукции | CG29: Доход от реализации продукции, руб. | CX29: Цена (тариф) | DK29: Справочно: реквизиты акта, которым установлена цена (тариф)
BB30: единица измерения | BX30: всего | DK30: кем издан (ФОИВ, учреждение) | EF30: дата | EW30: номер
BB31: наименование | BM31: код по ОКЕИ
A32: 1 | AK32: 2 | AT32: 3 | BB32: 4 | BM32: 5 | BX32: 6 | CG32: 7 | CX32: 8 | DK32: 9 | EF32: 10 | EW32: 11
A35: Руководитель (уполномоченное лицо) Учреждения
AD36: (должность) | CC36: (подпись) | DP36: (расшифровка подписи)
A37: Исполнитель | AD37: Ведущий бухгалтер | CC37: Нуждина Л.Б. | DP37: 598 33 22 (5106)
AD38: (должность) | CC38: (фамилия, инициалы) | DP38: (телефон)
A40: " | F40: " | R40: 20 | X40: г.

Sheet Прибыль
B1: Сведения о доходах учреждения в виде прибыли, приходящейся на доли в уставных (складочных) капиталах хозяйственных товариществ и обществ, или дивидендов по акциям, принадлежащим учреждению 1
EV3: КОДЫ
BS4: на 1 | BX4: января | CK4: 2026 | CQ4: г. | EA4: Дата | EV4: 01.01.2026
EA5: по Сводному реестру
EA6: ИНН
A7: Учреждение | EA7: КПП
A8: Орган, осуществляющий функции и полномочия учредителя | EA8: глава по БК
A9: Публично-правовое образование | AO9: город Казань | EA9: по ОКТМО | EV9: 92701000001
A10: Периодичность: годовая
A12: Организация (предприятие) | BL12: Код строки | BT12: Сумма вложений в уставный капитал | CI12: Доля в уставном капитале, % | CY12: Вид вложений 2 | DL12: Задолженность перед учреждением по перечислению части прибыли (дивидендов) на начало года | DZ12: Доходы, подлежащие получению за отчетный период | EV12: Задолженность перед учреждением по перечислению части прибыли (дивидендов) на конец отчетного периода
A13: наименование | V13: ИНН | AF13: код по ОКОПФ | AO13: дата создания | AY13: основной вид деятельности | DZ13: начислено, руб. | EK13: поступило, руб.
A14: 1 | V14: 2 | AF14: 3 | AO14: 4 | AY14: 5 | BL14: 6 | BT14: 7 | CI14: 8 | CY14: 9 | DL14: 10 | DZ14: 11 | EK14: 12 | EV14: 13
A17: Руководитель (уполномоченное лицо) Учреждения
AD18: (должность) | CC18: (подпись) | DP18: (расшифровка подписи)
A19: Исполнитель
AD20: (должность) | CC20: (фамилия, инициалы) | DP20: (телефон)
A22: " | F22: " | R22: 20 | X22: г.
A25: ¹ Сведения формируются в случаях, если в соответствии с законодательством Российской Федерации установлена возможность создания хозяйственных товариществ и обществ.
A26: ² Указывается вид вложений "1" - денежные средства, "2" - имущество, "3" - право пользования нематериальными активами.

Sheet КЗ
FK1: (в ред. Приказа Минфина России от 31.01.2023 № 10н)
A3: Сведения о кредиторской задолженности и обязательствах учреждения
EP5: КОДЫ
BS6: на 1 | BX6: января | CK6: 20 | CN6: 26 | CQ6: г. | EN6: Дата | EP6: 01.01.2026
EN7: по Сводному реестру
EN8: ИНН
A9: Учреждение | Z9: МУДОД "Центр детского технического творчества "Факел" Вахитовского р-на г.Казани | EN9: КПП
A10: Орган, осуществляющий
A11: функции и полномочия учредителя | EN11: глава по БК
A12: Публично-правовое образование | EN12: по ОКТМО | EP12: 92701000001
A13: Периодичность: годовая
A14: Единица измерения: руб. | EN14: по ОКЕИ | EP14: 383
A16: Наименование показателя | AU16: Код строки | BA16: Объем кредиторской задолженности на начало года | BR16: Объем кредиторской задолженности на конец отчетного периода | DV16: Объем отложенных обязательств учреждения
BA17: всего | BI17: из нее срок оплаты наступил в отчетном финансовом году | BR17: всего | BY17: из нее срок оплаты наступает в: | DV17: всего | EC17: в том числе:
BY18: 1 квартале, всего | CG18: из нее: в январе | CO18: 2 квартале | CW18: 3 квартале | DE18: 4 квартале | DM18: в очередном финансовом году и плановом периоде | EC18: по оплате труда | EJ18: по претензионным требованиям | EU18: по непоступившим расчетным документам | FF18: иные
A19: 1 | AU19: 2 | BA19: 3 | BI19: 4 | BR19: 5 | BY19: 6 | CG19: 7 | CO19: 8 | CW19: 9 | DE19: 10 | DM19: 11 | DV19: 12 | EC19: 13 | EJ19: 14 | EU19: 15 | FF19: 16
A20: По выплате заработной платы | AU20: 1000 | BA20: 457,237.48 | BI20: =BA20 -> 457,237.48 | BR20: 441,544.81 | BY20: =BR20/2 -> 220,772.41 | CG20: 0.00 | CO20: 220,772.40 | CW20: 0.00 | DE20: 0.00 | DM20: 0.00 | DV20: 0.00 | EC20: 0.00 | EJ20: 0.00 | EU20: 0.00 | FF20: 0.00
A21: По выплате стипендий, пособий, пенсий | AU21: 2000 | BA21: 0.00 | BI21: 0.00 | BR21: 0.00 | BY21: 0.00 | CG21: 0.00 | CW21: 0.00 | DE21: 0.00 | DM21: 0.00 | DV21: 0.00 | EC21: 0.00 | EJ21: 0.00 | EU21: 0.00 | FF21: 0.00
A22: По перечислению в бюджет, всего | AU22: 3000 | BA22: 138,085.71 | BI22: =BA22 -> 138,085.71 | BR22: 133,346.54 | BY22: =BR22/2 -> 66,673.27 | CG22: 0.00 | CO22: =BR22-BY22 -> 66,673.27 | CW22: 0.00 | DE22: 0.00 | DM22: 0.00 | DV22: 0.00 | EC22: 0.00 | EJ22: 0.00 | EU22: 0.00 | FF22: 0.00
A23: в том числе: по перечислению удержанного налога на доходы физических лиц | AU23: 3100 | BA23: 0.00 | BI23: 0.00 | BR23: 0.00 | BY23: 0.00 | CG23: 0.00 | CO23: 0.00 | CW23: 0.00 | DE23: 0.00 | DM23: 0.00 | DV23: 0.00 | EC23: 0.00 | EJ23: 0.00 | EU23: 0.00 | FF23: 0.00
A24: по оплате страховых взносов на обязательное социальное страхование | AU24: 3200 | BA24: =BA22 -> 138,085.71 | BI24: =BI22 -> 138,085.71 | BR24: =BR22 -> 133,346.54 | BY24: =BY22 -> 66,673.27 | CG24: 0.00 | CO24: =CO22 -> 66,673.27 | CW24: 0.00 | DE24: 0.00 | DM24: 0.00 | DV24: 0.00 | EC24: 0.00 | EJ24: 0.00 | EU24: 0.00 | FF24: 0.00
A25: по оплате налогов, сборов, за исключением страховых взносов на обязательное социальное страхование | AU25: 3300 | BA25: 0.00 | BI25: 0.00 | BR25: 0.00 | BY25: 0.00 | CG25: 0.00 | CO25: 0.00 | CW25: 0.00 | DE25: 0.00 | DM25: 0.00 | DV25: 0.00 | EC25: 0.00 | EJ25: 0.00 | EU25: 0.00 | FF25: 0.00
A26: по возврату в бюджет средств субсидий (грантов в форме субсидий) | AU26: 3400 | BA26: 0.00 | BI26: 0.00 | BR26: 0.00 | BY26: 0.00 | CG26: 0.00 | CO26: 0.00 | CW26: 0.00 | DE26: 0.00 | DM26: 0.00 | DV26: 0.00 | EC26: 0.00 | EJ26: 0.00 | EU26: 0.00 | FF26: 0.00
A27: из них: в связи с невыполнением государственного задания | AU27: 3410 | BA27: 0.00 | BI27: 0.00 | BR27: 0.00 | BY27: 0.00 | CG27: 0.00 | CO27: 0.00 | CW27: 0.00 | DE27: 0.00 | DM27: 0.00 | DV27: 0.00 | EC27: 0.00 | EJ27: 0.00 | EU27: 0.00 | FF27: 0.00
A28: в связи с недостижением результатов предоставления субсидий (грантов в форме субсидий) | AU28: 3420 | BA28: 0.00 | BI28: 0.00 | BR28: 0.00 | BY28: 0.00 | CG28: 0.00 | CO28: 0.00 | CW28: 0.00 | DE28: 0.00 | DM28: 0.00 | DV28: 0.00 | EC28: 0.00 | EJ28: 0.00 | EU28: 0.00 | FF28: 0.00
A29: в связи с невыполнением условий соглашений, в том числе по софинансированию расходов | AU29: 3430 | BA29: 0.00 | BI29: 0.00 | BR29: 0.00 | BY29: 0.00 | CG29: 0.00 | CO29: 0.00 | CW29: 0.00 | DE29: 0.00 | DM29: 0.00 | DV29: 0.00 | EC29: 0.00 | EJ29: 0.00 | EU29: 0.00 | FF29: 0.00
A30: По оплате товаров, работ, услуг, всего | AU30: 4000 | BA30: 126,506.82 | BI30: 126,506.82 | BR30: 157,556.04 | BY30: =BR30 -> 157,556.04 | CG30: =BY30 -> 157,556.04 | CO30: 0.00 | CW30: 0.00 | DE30: 0.00 | DM30: 0.00 | DV30: 0.00 | EC30: 0.00 | EJ30: 0.00 | EU30: 0.00 | FF30: 0.00
A31: из них: по публичным договорам | AU31: 4100 | BA31: =BA30 -> 126,506.82 | BI31: =BI30 -> 126,506.82 | BR31: =BR30 -> 157,556.04 | BY31: =BY30 -> 157,556.04 | CG31: =CG30 -> 157,556.04 | CO31: 0.00 | CW31: 0.00 | DE31: 0.00 | DM31: 0.00 | DV31: 0.00 | EC31: 0.00 | EJ31: 0.00 | EU31: 0.00 | FF31: 0.00
A32: По оплате прочих расходов, всего | AU32: 5000 | BA32: 0.00 | BI32: 0.00 | BR32: 0.00 | BY32: 0.00 | CG32: 0.00 | CO32: 0.00 | CW32: 0.00 | DE32: 0.00 | DM32: 0.00 | DV32: 0.00 | EC32: 0.00 | EJ32: 0.00 | EU32: 0.00 | FF32: 0.00
A33: из них: по выплатам, связанным с причинением вреда гражданам | AU33: 5100 | BA33: 0.00 | BI33: 0.00 | BR33: 0.00 | BY33: 0.00 | CG33: 0.00 | CO33: 0.00 | CW33: 0.00 | DE33: 0.00 | DM33: 0.00 | DV33: 0.00 | EC33: 0.00 | EJ33: 0.00 | EU33: 0.00 | FF33: 0.00
A34: Итого | AU34: 9000 | BA34: =BA20+BA21+BA22+BA30+BA32 -> 721,830.01 | BI34: =BI20+BI21+BI22+BI30+BI32 -> 721,830.01 | BR34: =BR20+BR21+BR22+BR30+BR32 -> 732,447.39 | BY34: =BY20+BY21+BY22+BY30+BY32 -> 445,001.72 | CG34: =CG30+CG32 -> 157,556.04 | CO34: =CO20+CO22 -> 287,445.67 | CW34: 0.00 | DE34: 0.00 | DM34: 0.00 | DV34: 0.00 | EC34: 0.00 | EJ34: 0.00 | EU34: 0.00 | FF34: 0.00
A36: Руководитель (уполномоченное лицо) Учреждения
AU37: (должность) | CG37: (расшифровка подписи)
A38: Исполнитель | AU38: Ведущий бухгалтер | BS38: Булатова Светлана Равилевна | CG38: 598-33-22 (5103)
AU39: (должность) | CG39: (телефон)
A41: " | F41: " | R41: 20 | X41: г.

Sheet Просроченная КЗ
B1: Сведения о просроченной кредиторской задолженности
FA2: КОДЫ
BS3: на 1 | BX3: января | CK3: 20 | CN3: 26 | CQ3: г. | EY3: Дата | FA3: 01.01.2026
EY4: по Сводному реестру
EY5: ИНН
A6: Учреждение | AO6: МУДОД "Центр детского технического творчества "Факел" Вахитовского р-на г.Казани | EY6: КПП
A7: Орган, осуществляющий функции и полномочия учредителя | EY7: глава по БК
A8: Публично-правовое образование | EY8: по ОКТМО | FA8: 92701000001
A9: Периодичность: годовая
A11: Наименование показателя | AO11: Код строки | AU11: Объем просроченной кредиторской задолженности на начало года | BK11: Предельно допустимые значения просроченной кредиторской задолженности 3 | CG11: Объем просроченной кредиторской задолженности на конец отчетного периода | ED11: Изменение кредиторской задолженности 6 | ER11: Причина образования | FA11: Меры, принимаемые по погашению просроченной кредиторской задолженности
AU12: всего | AZ12: из нее по исполнительным листам | BK12: значение | CB12: срок, дней | CG12: всего | CL12: из нее по исполнительным листам | CX12: в том числе по срокам | ED12: сумма, руб. | EJ12: в процентах
BK13: в абсолютных величинах 4 | BT13: в процентах_5 | CX13: менее 30 дней просрочки | DF13: от 30 до 90 дней просрочки | DN13: от 90 до 180 дней просрочки | DV13: более 180 дней просрочки
A14: 1 | AO14: 2 | AU14: 3 | AZ14: 4 | BK14: 5 | BT14: 6 | CB14: 7 | CG14: 8 | CL14: 9 | CX14: 10 | DF14: 11 | DN14: 12 | DV14: 13 | ED14: 14 | EJ14: 15 | ER14: 16 | FA14: 17
A15: По выплате заработной платы | AO15: 1000 | AU15: 0.00 | AZ15: 0.00 | BK15: 0.00 | BV15: 0.00 | CG15: 0.00 | CL15: 0.00 | CX15: 0.00 | DF15: 0.00 | DN15: 0.00 | DV15: 0.00 | ED15: 0.00 | EJ15: 0.00 | ER15: 0.00 | FA15: 0.00
A16: По выплате стипендий, пособий, пенсий | AO16: 2000 | AU16: 0.00 | AZ16: 0.00 | BK16: 0.00 | BV16: 0.00 | CG16: 0.00 | CL16: 0.00 | CX16: 0.00 | DF16: 0.00 | DN16: 0.00 | DV16: 0.00 | ED16: 0.00 | EJ16: 0.00 | ER16: 0.00 | FA16: 0.00
A17: По перечислению в бюджет, всего | AO17: 3000 | AU17: 0.00 | AZ17: 0.00 | BK17: 0.00 | BV17: 0.00 | CG17: 0.00 | CL17: 0.00 | CX17: 0.00 | DF17: 0.00 | DN17: 0.00 | DV17: 0.00 | ED17: 0.00 | EJ17: 0.00 | ER17: 0.00 | FA17: 0.00
A18: в том числе: по перечислению удержанного налога на доходы физических лиц | AO18: 3100 | AU18: 0.00 | AZ18: 0.00 | BK18: 0.00 | BV18: 0.00 | CG18: 0.00 | CL18: 0.00 | CX18: 0.00 | DF18: 0.00 | DN18: 0.00 | DV18: 0.00 | ED18: 0.00 | EJ18: 0.00 | ER18: 0.00 | FA18: 0.00
A19: по оплате страховых взносов на обязательное социальное страхование | AO19: 3200 | AU19: 0.00 | AZ19: 0.00 | BK19: 0.00 | BV19: 0.00 | CG19: 0.00 | CL19: 0.00 | CX19: 0.00 | DF19: 0.00 | DN19: 0.00 | DV19: 0.00 | ED19: 0.00 | EJ19: 0.00 | ER19: 0.00 | FA19: 0.00
A20: по оплате налогов, сборов, за исключением страховых взносов на обязательное социальное страхование | AO20: 3300 | AU20: 0.00 | AZ20: 0.00 | BK20: 0.00 | BV20: 0.00 | CG20: 0.00 | CL20: 0.00 | CX20: 0.00 | DF20: 0.00 | DN20: 0.00 | DV20: 0.00 | ED20: 0.00 | EJ20: 0.00 | ER20: 0.00 | FA20: 0.00
A21: по возврату в бюджет средств субсидий (грантов в форме субсидий) | AO21: 3400 | AU21: 0.00 | AZ21: 0.00 | BK21: 0.00 | BV21: 0.00 | CG21: 0.00 | CL21: 0.00 | CX21: 0.00 | DF21: 0.00 | DN21: 0.00 | DV21: 0.00 | ED21: 0.00 | EJ21: 0.00 | ER21: 0.00 | FA21: 0.00
A22: из них: в связи с невыполнением государственного (муниципального) задания | AO22: 3410 | AU22: 0.00 | AZ22: 0.00 | BK22: 0.00 | BV22: 0.00 | CG22: 0.00 | CL22: 0.00 | CX22: 0.00 | DF22: 0.00 | DN22: 0.00 | DV22: 0.00 | ED22: 0.00 | EJ22: 0.00 | ER22: 0.00 | FA22: 0.00
A23: в связи с недостижением результатов предоставления субсидий (грантов в форме субсидий) | AO23: 3420 | AU23: 0.00 | AZ23: 0.00 | BK23: 0.00 | BV23: 0.00 | CG23: 0.00 | CL23: 0.00 | CX23: 0.00 | DF23: 0.00 | DN23: 0.00 | DV23: 0.00 | ED23: 0.00 | EJ23: 0.00 | ER23: 0.00 | FA23: 0.00
A24: в связи с невыполнением условий соглашений, в том числе по софинансированию расходов | AO24: 3430 | AU24: 0.00 | AZ24: 0.00 | BK24: 0.00 | BV24: 0.00 | CG24: 0.00 | CL24: 0.00 | CX24: 0.00 | DF24: 0.00 | DN24: 0.00 | DV24: 0.00 | ED24: 0.00 | EJ24: 0.00 | ER24: 0.00 | FA24: 0.00
A25: По оплате товаров, работ, услуг, всего | AO25: 4000 | AU25: 0.00 | AZ25: 0.00 | BK25: 0.00 | BV25: 0.00 | CG25: 0.00 | CL25: 0.00 | CX25: 0.00 | DF25: 0.00 | DN25: 0.00 | DV25: 0.00 | ED25: 0.00 | EJ25: 0.00 | ER25: 0.00 | FA25: 0.00
A26: из них: по публичным договорам | AO26: 4100 | AU26: 0.00 | AZ26: 0.00 | BK26: 0.00 | BV26: 0.00 | CG26: 0.00 | CL26: 0.00 | CX26: 0.00 | DF26: 0.00 | DN26: 0.00 | DV26: 0.00 | ED26: 0.00 | EJ26: 0.00 | ER26: 0.00 | FA26: 0.00
A27: По оплате прочих расходов, всего | AO27: 5000 | AU27: 0.00 | AZ27: 0.00 | BK27: 0.00 | BV27: 0.00 | CG27: 0.00 | CL27: 0.00 | CX27: 0.00 | DF27: 0.00 | DN27: 0.00 | DV27: 0.00 | ED27: 0.00 | EJ27: 0.00 | ER27: 0.00 | FA27: 0.00
A28: из них: по выплатам, связанным с причинением вреда гражданам | AO28: 5100 | AU28: 0.00 | AZ28: 0.00 | BK28: 0.00 | BV28: 0.00 | CG28: 0.00 | CL28: 0.00 | CX28: 0.00 | DF28: 0.00 | DN28: 0.00 | DV28: 0.00 | ED28: 0.00 | EJ28: 0.00 | ER28: 0.00 | FA28: 0.00
A29: Итого | AO29: 9000 | AU29: 0.00 | AZ29: х | CG29: 0 | CL29: х | ED29: 0
A31: Руководитель (уполномоченное лицо) Учреждения
AO32: (должность) | BT32: (подпись) | CX32: (расшифровка подписи)
A33: Исполнитель | AO33: ведущий бухгалтер | BT33: Булатова Светлана Равилевна | CX33: 598-33-22 (5103)
AO34: (должность) | BT34: (фамилия, инициалы) | CX34: (телефон)
A35: " | F35: " | R35: 20 | X35: г.
A37: 3_Указываются предельно допустимые значения, установленные органом, осуществляющим функции и полномочия учредителя.
A38: 4_Заполняется в случае, если значения просроченной кредиторской задолженности установлены органом, осуществляющим функции и полномочия учредителя, в абсолютных значениях (рублях).
A39: 5_Заполняется в случае, если значения просроченной кредиторской задолженности установлены органом, осуществляющим функции и полномочия учредителя, в процентах от общей суммы кредиторской задолженности.
A40: 6_Указывается общая сумма увеличения или уменьшения кредиторской задолженности.

Sheet Ущерб
B1: Сведения о задолженности по ущербу, недостачам, хищениям денежных средств и материальных ценностей
EX3: КОДЫ
BS4: на 1 | BX4: января | CK4: 2026 | CQ4: г. | EE4: Дата | EX4: 01.01.2026
EE5: по Сводному реестру
EE6: ИНН
A7: Учреждение | EE7: КПП
A8: Орган, осуществляющий функции и полномочия учредителя | EE8: глава по БК
A9: Публично-правовое образование | AM9: город Казань | EE9: по ОКТМО | EX9: 92701000001
A10: Периодичность: годовая
A12: Наименование показателя | AF12: Код строки | AM12: Остаток задолженности по возмещению ущерба на начало года | BG12: Выявлено недостач, хищений, нанесения ущерба | CJ12: Возмещено недостач, хищений, нанесения ущерба | DV12: Списано | EQ12: Остаток задолженности по возмещению ущерба на конец отчетного периода
AM13: всего | AT13: из него на взыскании в службе судебных приставов | BG13: всего | BN13: в том числе: | CJ13: всего | CP13: из них взыскано с виновных лиц | DK13: страховыми организациями | DV13: всего | EC13: из них в связи с прекращением взыскания по исполнительным листам | EQ13: всего | EX13: из него на взыскании в службе судебных приставов
BN14: виновные лица установлены | BZ14: виновные лица не установлены | CP14: всего | CW14: из них по решению суда
A15: 1 | AF15: 2 | AM15: 3 | AT15: 4 | BG15: 5 | BN15: 6 | BZ15: 7 | CJ15: 8 | CP15: 9 | CW15: 10 | DK15: 11 | DV15: 12 | EC15: 13 | EQ15: 14 | EX15: 15
A16: Недостача, хищение денежных средств, всего | AF16: 0100 | AM16: 0,00 | AT16: 0,00 | BG16: 0,00 | BN16: 0,00 | BZ16: 0,00 | CJ16: 0,00 | CP16: 0,00 | CW16: 0,00 | DK16: 0,00 | DV16: 0,00 | EC16: 0,00 | EQ16: 0,00 | EX16: 0,00
A17: в том числе: в связи с хищением (кражами) | AF17: 0110 | AM17: 0,00 | AT17: 0,00 | BG17: 0,00 | BN17: 0,00 | BZ17: 0,00 | CJ17: 0,00 | CP17: 0,00 | CW17: 0,00 | DK17: 0,00 | DV17: 0,00 | EC17: 0,00 | EQ17: 0,00 | EX17: 0,00
A18: из них: возбуждено уголовных дел (находится в следственных органах) | AF18: 0111 | AM18: 0,00 | AT18: 0,00 | BG18: 0,00 | BN18: 0,00 | BZ18: 0,00 | CJ18: 0,00 | CP18: 0,00 | CW18: 0,00 | DK18: 0,00 | DV18: 0,00 | EC18: 0,00 | EQ18: 0,00 | EX18: 0,00
A19: в связи с выявлением при обработке наличных денег денежных знаков, имеющих признаки подделки | AF19: 0120 | AM19: 0,00 | AT19: 0,00 | BG19: 0,00 | BN19: 0,00 | BZ19: 0,00 | CJ19: 0,00 | CP19: 0,00 | CW19: 0,00 | DK19: 0,00 | DV19: 0,00 | EC19: 0,00 | EQ19: 0,00 | EX19: 0,00
A20: в связи с банкротством кредитной организации | AF20: 0130 | AM20: 0,00 | AT20: 0,00 | BG20: 0,00 | BN20: 0,00 | BZ20: 0,00 | CJ20: 0,00 | CP20: 0,00 | CW20: 0,00 | DK20: 0,00 | DV20: 0,00 | EC20: 0,00 | EQ20: 0,00 | EX20: 0,00
A21: Ущерб имуществу (за исключением денежных средств) | AF21: 0200 | AM21: 0,00 | AT21: 0,00 | BG21: 0,00 | BN21: 0,00 | BZ21: 0,00 | CJ21: 0,00 | CP21: 0,00 | CW21: 0,00 | DK21: 0,00 | DV21: 0,00 | EC21: 0,00 | EQ21: 0,00 | EX21: 0,00
A22: в том числе: в связи с недостачами, включая хищения (кражи) | AF22: 0210 | AM22: 0,00 | AT22: 0,00 | BG22: 0,00 | BN22: 0,00 | BZ22: 0,00 | CJ22: 0,00 | CP22: 0,00 | CW22: 0,00 | DK22: 0,00 | DV22: 0,00 | EC22: 0,00 | EQ22: 0,00 | EX22: 0,00
A23: из них: возбуждено уголовных дел (находится в следственных органах) | AF23: 0211 | AM23: 0,00 | AT23: 0,00 | BG23: 0,00 | BN23: 0,00 | BZ23: 0,00 | CJ23: 0,00 | CP23: 0,00 | CW23: 0,00 | DK23: 0,00 | DV23: 0,00 | EC23: 0,00 | EQ23: 0,00 | EX23: 0,00
A24: в связи с нарушением правил хранения | AF24: 0220 | AM24: 0,00 | AT24: 0,00 | BG24: 0,00 | BN24: 0,00 | BZ24: 0,00 | CJ24: 0,00 | CP24: 0,00 | CW24: 0,00 | DK24: 0,00 | DV24: 0,00 | EC24: 0,00 | EQ24: 0,00 | EX24: 0,00
A25: в связи с нанесением ущерба техническому состоянию объекта | AF25: 0230 | AM25: 0,00 | AT25: 0,00 | BG25: 0,00 | BN25: 0,00 | BZ25: 0,00 | CJ25: 0,00 | CP25: 0,00 | CW25: 0,00 | DK25: 0,00 | DV25: 0,00 | EC25: 0,00 | EQ25: 0,00 | EX25: 0,00
A26: В связи с нарушением условий договоров (контрактов) | AF26: 0300 | AM26: 0,00 | AT26: 0,00 | BG26: 0,00 | BN26: 0,00 | BZ26: 0,00 | CJ26: 0,00 | CP26: 0,00 | CW26: 0,00 | DK26: 0,00 | DV26: 0,00 | EC26: 0,00 | EQ26: 0,00 | EX26: 0,00
A27: в том числе: в связи с нарушением сроков (начислено пени, штрафов, неустойки) | AF27: 0310 | AM27: 0,00 | AT27: 0,00 | BG27: 0,00 | BN27: 0,00 | BZ27: 0,00 | CJ27: 0,00 | CP27: 0,00 | CW27: 0,00 | DK27: 0,00 | DV27: 0,00 | EC27: 0,00 | EQ27: 0,00 | EX27: 0,00
A28: в связи с невыполнением условий о возврате предоплаты (аванса) | AF28: 0320 | AM28: 0,00 | AT28: 0,00 | BG28: 0,00 | BN28: 0,00 | BZ28: 0,00 | CJ28: 0,00 | CP28: 0,00 | CW28: 0,00 | DK28: 0,00 | DV28: 0,00 | EC28: 0,00 | EQ28: 0,00 | EX28: 0,00
A29: Итого | AF29: 9000 | AM29: 0,00 | AT29: 0,00 | BG29: 0,00 | BN29: 0,00 | BZ29: 0,00 | CJ29: 0,00 | CP29: 0,00 | CW29: 0,00 | DK29: 0,00 | DV29: 0,00 | EC29: 0,00 | EQ29: 0,00 | EX29: 0,00
A31: Руководитель (уполномоченное лицо) Учреждения
AF32: (должность) | BN32: (подпись) | CW32: (расшифровка подписи)
A33: Исполнитель
AF34: (должность) | BN34: (фамилия, инициалы) | CW34: (телефон)
A35: " | F35: " | R35: 20 | X35: г.

Sheet численность
B1: Сведения о численности сотрудников и оплате труда
FC3: КОДЫ
BS4: на 1 | BX4: января | CK4: 2026 | CQ4: г. | EI4: Дата | FC4: 01.01.2026
EI5: по Сводному реестру
EI6: ИНН
A7: Учреждение | Z7: Факел | EI7: КПП
A8: Орган, осуществляющий функции и полномочия учредителя | EI8: глава по БК
A9: Публично-правовое образование | EI9: по ОКТМО | FC9: 92701000001
A10: Периодичность: годовая
A12: Раздел 1. Сведения о численности сотрудников
A14: Группы персонала (категория персонала) | Z14: Код строки | AG14: Штатная численность на начало года | BN14: Средняя численность сотрудников за отчетный период | DF14: По договорам гражданско-правового характера 9 | EA14: Штатная численность на конец отчетного периода
AG15: установлено штатным расписанием | AW15: в том числе: | BN15: всего 7 | BU15: в том числе: | DF15: в том числе: | EA15: установлено штатным расписанием | EU15: в том числе:
AG16: всего | AM16: из нее по основным видам деятельности | AW16: замещено | BE16: вакантных должностей | BU16: по основному месту работы | CM16: по внутреннему совмести-тельству (по совмещению должностей)8 | CW16: по внешнему совмести-тельству | DF16: сотрудники учреждения 10 | DP16: физические лица, не являющиеся сотрудниками учреждения 11 | EA16: всего | EH16: из нее по основным видам деятельности | EU16: замещено | FC16: вакантных должностей
BU17: всего | CB17: из нее по основным видам деятельности
A18: 1 | Z18: 2 | AG18: 3 | AM18: 4 | AW18: 5 | BE18: 6 | BN18: 7 | BU18: 8 | CB18: 9 | CM18: 10 | CW18: 11 | DF18: 12 | DP18: 13 | EA18: 14 | EH18: 15 | EU18: 16 | FC18: 17
A19: Основной персонал, всего ¹² | Z19: 1000 | AG19: 14.90 | AM19: 14.90 | AW19: 10.66 | BE19: 4.24 | BN19: =BU19+CW19 -> 10.56 | BU19: 8.99 | CB19: =BU19 -> 8.99 | CM19: 0.89 | CW19: 1.57 | DF19: 0,00 | DP19: 0,00 | EA19: 14.90 | EH19: 14.90 | EU19: 11.55 | FC19: 3.35
A20: Вспомогательный персонал, всего ¹⁴ | Z20: 2000 | AG20: 17.05 | AM20: 17.05 | AW20: 15.80 | BE20: 1.25 | BN20: =BU20+CW20 -> 9.82 | BU20: 9.32 | CB20: =BU20 -> 9.32 | CM20: 4.00 | CW20: 0.50 | DF20: 0,00 | DP20: 0,00 | EA20: 17.05 | EH20: 17.05 | EU20: 15.80 | FC20: 1.25
A21: Административно-управленческий персонал, всего ¹⁵ | Z21: 3000 | AG21: 3.00 | AM21: 3.00 | AW21: 3.00 | BE21: 0,00 | BN21: 2.18 | BU21: 2.18 | CB21: 2.18 | CM21: 2.00 | CW21: 0.00 | DF21: 0,00 | DP21: 0,00 | EA21: 3.00 | EH21: 3.00 | EU21: 3.00 | FC21: 0,00
A22: Итого | Z22: 9000 | AG22: =AG19+AG20+AG21 -> 34.95 | AM22: =AM19+AM20+AM21 -> 34.95 | AW22: =AW19+AW20+AW21 -> 29.46 | BE22: =BE19+BE20+BE21 -> 5.49 | BN22: =BN19+BN20+BN21 -> 22.56 | BU22: =BU19+BU20+BU21 -> 20.49 | CB22: =CB19+CB20+CB21 -> 20.49 | CM22: =CM19+CM20+CM21 -> 6.89 | CW22: =CW19+CW20+CW21 -> 2.07 | DF22: =DF19+DF20+DF21 -> 0.00 | DP22: =DP19+DP20+DP21 -> 0.00 | EA22: =EA19+EA20+EA21 -> 34.95 | EH22: =EH19+EH20+EH21 -> 34.95 | EU22: =EU19+EU20+EU21 -> 30.35 | FC22: =FC19+FC20+FC21 -> 4.60
A26: ⁷ При расчете показателя не учитывается численность сотрудников учреждения, работающих по внутреннему совместительству (по совмещению должностей). ⁷
A27: ⁸ Указывается численность сотрудников учреждения, работающих по внутреннему совместительству (по совмещению должностей). При расчете общей численности сотрудников учреждения показатель не учитывается.
A28: ⁹ Указывается численность физических лиц, привлекаемых к оказанию услуг, выполнению работ без заключения трудового договора (на основании договоров гражданско-правового характера). Детализация численности по группам персонала указывается в соответствии с предметом договора, в зависимости от характера работ, для выполнения которых привлекается сотрудник.
A29: ¹⁰ Указывается численность физических лиц, привлекаемых к оказанию услуг, выполнению работ без заключения трудового договора (на основании договоров гражданско-правового характера), являющихся сотрудниками учреждения.
A30: ¹¹ Указывается численность физических лиц, привлекаемых к оказанию услуг, выполнению работ без заключения трудового договора (на основании договоров гражданско-правового характера), не являющихся сотрудниками учреждения.
A31: ¹² Указывается численность работников учреждения, непосредственно оказывающих услуги (выполняющих работы), направленные на достижение определенных уставом учреждения целей деятельности этого учреждения.
A32: ¹³ Детализация показателей по группе (категории) персонала устанавливается порядком органа, осуществляющего функции и полномочия учредителя.
A33: ¹⁴ Указывается численность работников учреждения, создающих условия для оказания услуг (выполнения работ), направленных на достижение определенных уставом учреждения целей деятельности этого учреждения, включая обслуживание зданий и оборудования.
A34: ¹⁵ Указывается численность работников учреждения, занятых управлением (организацией) оказания услуг (выполнения работ), а также работников учреждения, выполняющих административные функции, необходимые для обеспечения деятельности учреждения.
A37: Руководитель (уполномоченное лицо) Учреждения
AD38: (должность) | CC38: (подпись) | DP38: (расшифровка подписи)
A39: Исполнитель | AD39: ведущий специалист | CC39: Пуганова Т.В. | DP39: 5983322(3128)
AD40: (должность) | CC40: (фамилия, инициалы) | DP40: (телефон)
A42: " | F42: " | R42: 20 | X42: г.

Sheet фот
B1: Сведения о численности сотрудников и оплате труда
FC3: КОДЫ
BS4: на 1 | BX4: января | CK4: 2026 | CQ4: г. | EI4: Дата | FC4: 01.01.2026
EI5: по Сводному реестру
EI6: ИНН
A7: Учреждение | Z7: Факел | EI7: КПП
A8: Орган, осуществляющий функции и полномочия учредителя | EI8: глава по БК
A9: Публично-правовое образование | Z9: город Казань | EI9: по ОКТМО | FC9: 92701000001
A10: Периодичность: годовая
B12: Раздел 2. Сведения об оплате труда
A14: Группы персонала | Z14: Код строки | AF14: Фонд начисленной оплаты труда сотрудников за отчетный период, руб. | CF14: Начислено по договорам гражданско-правового характера, руб.16 | CZ14: Аналитическое распределение оплаты труда сотрудников по источникам финансового обеспечения, руб.17
AF15: всего | AL15: в том числе: | CF15: в том числе: | CZ15: в том числе:
AL16: по основному месту работы | BH16: по внутреннему совместительству (совмещению должностей) | BT16: по внешнему совместительству | CF16: сотрудникам учреждения | CP16: физическим лицам, не являющимся сотрудниками учреждения | CZ16: по основному месту работы
AL17: всего | AR17: в том числе на условиях: | CZ17: за счет средств субсидии на выполнение государственного (муниципального) задания | DM17: за счет средств субсидии на иные цели | DV17: за счет средств гранта в форме субсидии | ET17: ОМС 18 | FA17: за счет средств от приносящей доход деятельности 19
AR18: полного рабочего времени | AZ18: неполного рабочего времени | DV18: в том числе:
DV19: из федерального бюджета | EF19: из бюджетов субъектов Российской Федерации и местных бюджетов
A20: 1 | Z20: 2 | AF20: 3 | AL20: 4 | AR20: 5 | AZ20: 6 | BH20: 7 | BT20: 8 | CF20: 9 | CP20: 10 | CZ20: 11 | DM20: 12 | DV20: 13 | EF20: 14 | ET20: 15 | FA20: 16
A21: Основной персонал, всего ²⁰ | Z21: 1000 | AF21: =AL21+BH21+BT21 -> 6634500 | AL21: =AR21+AZ21 -> 4657500 | AR21: =CZ21+DV21+EF21+ET21+FA21+DM21 -> 4657500 | AZ21: 0 | BH21: =AD41+AY41+BL41+CC41+CJ41+AQ41 -> 1384600 | BT21: =CU41+DH41+DP41+EC41+ET41+FA41 -> 592400 | CF21: =AD53+AQ53+AY53+BL53+CC53+CJ53 -> 0 | CP21: =CU53+DH53+DP53+EC53+ET53+FA53 -> 0 | CZ21: 4657500 | DM21: 0 | DV21: 0 | EF21: 0 | ET21: 0 | FA21: 0
A22: Вспомогательный персонал, всего ²¹ | Z22: 2000 | AF22: =AL22+BH22+BT22 -> 3281000 | AL22: =AR22+AZ22 -> 2811100 | AR22: =CZ22+DV22+EF22+ET22+FA22+DM22 -> 2811100 | AZ22: 0 | BH22: =AD42+AY42+BL42+CC42+CJ42+AQ42 -> 421400 | BT22: =CU42+DH42+DP42+EC42+ET42+FA42 -> 48500 | CF22: =AD54+AQ54+AY54+BL54+CC54+CJ54 -> 0 | CP22: =CU54+DH54+DP54+EC54+ET54+FA54 -> 0 | CZ22: 2811100 | DM22: 0 | DV22: 0 | EF22: 0 | ET22: 0 | FA22: 0
A23: Административно-управленческий персонал, всего ²² | Z23: 3000 | AF23: 1257200 | AL23: 1000600 | AR23: 1000600 | AZ23: 0 | BH23: 256600 | BT23: 0 | CF23: 0 | CP23: 0 | CZ23: 1000600 | DM23: 0 | DV23: 0 | EF23: 0 | ET23: 0 | FA23: 0
A24: Итого | Z24: 9000 | AF24: =AF21+AF22+AF23 -> 11172700 | AL24: =AL21+AL22+AL23 -> 8469200 | AR24: =AR21+AR22+AR23 -> 8469200 | AZ24: =AZ21+AZ22+AZ23 -> 0 | BH24: =BH21+BH22+BH23 -> 2062600 | BT24: =BT21+BT22+BT23 -> 640900 | CF24: =CF21+CF22+CF23 -> 0 | CP24: =CP21+CP22+CP23 -> 0 | CZ24: =CZ21+CZ22+CZ23 -> 8469200 | DM24: =DM21+DM22+DM23 -> 0 | DV24: =DV21+DV22+DV23 -> 0 | EF24: =EF21+EF22+EF23 -> 0 | ET24: =ET21+ET22+ET23 -> 0 | FA24: =FA21+FA22+FA23 -> 0
A26: ¹⁶ Указывается сумма, начисленная по договорам гражданско-правового характера, заключенным с лицами, привлекаемыми для оказания услуг (выполнения работ). Детализация начисленного вознаграждения по группам персонала указывается в соответствии с предметом договора, в зависимости от характера работ, для выполнения которых привлекается сотрудник.
A27: ¹⁷ Показатели аналитического распределения оплаты труда сотрудников по источникам финансового обеспечения формируются в случае, если требование о детализации установлено органом, осуществляющим функции и полномочия учредителя.
A28: ¹⁸ Указывается сумма начисленной оплаты труда работникам учреждения, оказывающим услуги (выполняющим работы) в рамках программ обязательного медицинского страхования.
A29: ¹⁹ Указывается сумма начисленной оплаты труда работникам учреждения, оказывающим услуги (выполняющим работы) в рамках осуществления приносящей доход деятельности.
A30: ²⁰ Указывается сумма начисленной оплаты труда работникам учреждения, непосредственно оказывающим услуги (выполняющим работы), направленные на достижение определенных уставом учреждения целей деятельности этого учреждения.
A31: ²¹ Указывается сумма начисленной оплаты труда работникам учреждения, создающим условия для оказания услуг (выполнения работ), направленных на достижение определенных уставом учреждения целей деятельности этого учреждения, включая обслуживание зданий и оборудования.
A32: ²² Указывается сумма начисленной оплаты труда работникам учреждения, занятым управлением (организацией) оказания услуг (выполнения работ), а также работникам учреждения, выполняющим административные функции, необходимые для обеспечения деятельности учреждения.
A34: Группы персонала | Y34: Код строки | AD34: Аналитическое распределение оплаты труда сотрудников по источникам финансового обеспечения, руб.
AD35: в том числе:
AD36: по внутреннему совместительству (совмещению должностей) | CU36: по внешнему совместительству
AD37: за счет средств субсидии на выполнение государственного (муниципального) задания | AQ37: за счет средств субсидии на иные цели | AY37: за счет средств гранта в форме субсидии | CC37: ОМС | CJ37: за счет средств от приносящей доход деятельности | CU37: за счет средств субсидии на выполнение государственного (муниципального) задания | DH37: за счет средств субсидии на иные цели | DP37: за счет средств гранта в форме субсидии | ET37: ОМС | FA37: за счет средств от приносящей доход деятельности
AY38: в том числе: | DP38: в том числе:
AY39: из федерального бюджета | BL39: из бюджетов субъектов Российской Федерации и местных бюджетов | DP39: из федерального бюджета | EC39: из бюджетов субъектов Российской Федерации и местных бюджетов
A40: 1 | Y40: 2 | AD40: 17 | AQ40: 18 | AY40: 19 | BL40: 20 | CC40: 21 | CJ40: 22 | CU40: 23 | DH40: 24 | DP40: 25 | EC40: 26 | ET40: 27 | FA40: 28
A41: Основной персонал, всего ²⁰ | Y41: 1000 | AD41: 1384600 | AQ41: 0 | AY41: 0 | BL41: 0 | CC41: 0 | CJ41: 0 | CU41: 592400 | DH41: 0 | DP41: 0 | EC41: 0 | ET41: 0 | FA41: 0
A42: Вспомогательный персонал, всего ²¹ | Y42: 2000 | AD42: 421400 | AQ42: 0 | AY42: 0 | BL42: 0 | CC42: 0 | CJ42: 0 | CU42: 48500 | DH42: 0 | DP42: 0 | EC42: 0 | ET42: 0 | FA42: 0
A43: Административно-управленческий персонал, всего ²² | Y43: 3000 | AD43: 256600 | AQ43: 0 | AY43: 0 | BL43: 0 | CC43: 0 | CJ43: 0 | CU43: 0 | DH43: 0 | DP43: 0 | EC43: 0 | ET43: 0 | FA43: 0
A44: Итого | Y44: 9000 | AD44: =AD41+AD42+AD43 -> 2062600 | AQ44: =AQ41+AQ42+AQ43 -> 0 | AY44: =AY41+AY42+AY43 -> 0 | BL44: =BL41+BL42+BL43 -> 0 | CC44: =CC41+CC42+CC43 -> 0 | CJ44: =CJ41+CJ42+CJ43 -> 0 | CU44: =CU41+CU42+CU43 -> 640900 | DH44: =DH41+DH42+DH43 -> 0 | DP44: =DP41+DP42+DP43 -> 0 | EC44: =EC41+EC42+EC43 -> 0 | ET44: =ET41+ET42+ET43 -> 0 | FA44: =FA41+FA42+FA43 -> 0
A46: Группы персонала | Y46: Код строки | AD46: Аналитическое распределение оплаты труда сотрудников по источникам финансового обеспечения, руб.
AD47: в том числе:
AD48: по договорам гражданско-правового характера с сотрудниками учреждения | CU48: по договорам гражданско-правового характера с физическими лицами, не являющимися сотрудниками учреждения
AD49: за счет средств субсидии на выполнение государственного (муниципального) задания | AQ49: за счет средств субсидии на иные цели | AY49: за счет средств гранта в форме субсидии | CC49: ОМС | CJ49: за счет средств от приносящей доход деятельности | CU49: за счет средств субсидии на выполнение государственного (муниципального) задания | DH49: за счет средств субсидии на иные цели | DP49: за счет средств гранта в форме субсидии | ET49: ОМС | FA49: за счет средств от приносящей доход деятельности
AY50: в том числе: | DP50: в том числе:
AY51: из федерального бюджета | BL51: из бюджетов субъектов Российской Федерации и местных бюджетов | DP51: из федерального бюджета | EC51: из бюджетов субъектов Российской Федерации и местных бюджетов
A52: 1 | Y52: 2 | AD52: 29 | AQ52: 30 | AY52: 31 | BL52: 32 | CC52: 33 | CJ52: 34 | CU52: 35 | DH52: 36 | DP52: 37 | EC52: 38 | ET52: 39 | FA52: 40
A53: Основной персонал, всего ²⁰ | Y53: 1000 | AD53: 0 | AQ53: 0 | AY53: 0 | BL53: 0 | CC53: 0 | CJ53: 0 | CU53: 0 | DH53: 0 | DP53: 0 | EC53: 0 | ET53: 0 | FA53: 0
A54: Вспомогательный персонал, всего ²¹ | Y54: 2000 | AD54: 0 | AQ54: 0 | AY54: 0 | BL54: 0 | CC54: 0 | CJ54: 0 | CU54: 0 | DH54: 0 | DP54: 0 | EC54: 0 | ET54: 0 | FA54: 0
A55: Административно-управленческий персонал, всего ²² | Y55: 3000 | AD55: 0 | AQ55: 0 | AY55: 0 | BL55: 0 | CC55: 0 | CJ55: 0 | CU55: 0 | DH55: 0 | DP55: 0 | EC55: 0 | ET55: 0 | FA55: 0
A56: Итого | Y56: 9000 | AD56: =AD53+AD54+AD55 -> 0 | AQ56: =AQ53+AQ54+AQ55 -> 0 | AY56: =AY53+AY54+AY55 -> 0 | BL56: =BL53+BL54+BL55 -> 0 | CC56: =CC53+CC54+CC55 -> 0 | CJ56: =CJ53+CJ54+CJ55 -> 0 | CU56: =CU53+CU54+CU55 -> 0 | DH56: =DH53+DH54+DH55 -> 0 | DP56: =DP53+DP54+DP55 -> 0 | EC56: =EC53+EC54+EC55 -> 0 | ET56: =ET53+ET54+ET55 -> 0 | FA56: =FA53+FA54+FA55 -> 0
A59: Руководитель (уполномоченное лицо) Учреждения
AD60: (должность) | CC60: (подпись) | DP60: (расшифровка подписи)
A61: Исполнитель | AD61: ведущий специалист | CC61: Пуганова Т.В. | DP61: 5983322(3128)
AD62: (должность) | CC62: (фамилия, инициалы) | DP62: (телефон)
A64: " | F64: " | R64: 20 | X64: г.

Sheet НИ в опер.упрв.
DN1: (в ред. Приказа Минфина России от 08.11.2022 № 159н)
B3: Сведения о недвижимом имуществе, за исключением земельных участков, закрепленном на праве оперативного управления
EY5: КОДЫ
BS6: на 1 | BX6: января | CK6: 2026 | CQ6: г. | EE6: Дата | EY6: 01.01.2026
EE7: по Сводному реестру
EE8: ИНН | EY8: 1655030953
A9: Учреждение | AF9: МБУДО "Факел" Вахитовского района г. Казани | EE9: КПП | EY9: 165501001
A10: Орган, осуществляющий функции и полномочия учредителя | EE10: глава по БК
A11: Публично-правовое образование | AF11: город Казань | EE11: по ОКТМО | EY11: 92701000
A12: Периодичность: годовая
A14: Наименование объекта | X14: Адрес | AE14: Кадастровый номер | AN14: Код по ОКТМО | AU14: Уникаль- ный код объекта 24.1 | BC14: Год постройки | BJ14: Единица измерения | BZ14: Код строки | CF14: Используется учреждением | DW14: Передано во временное пользование сторонним организациям (индивидуальным предпринимателям)
BJ15: наименование | BT15: код по ОКЕИ | CF15: всего | CN15: в том числе: | DW15: всего | ED15: в том числе:
CN16: для осуществления основной деятельности | DN16: для иных целей | ED16: на основании договоров аренды | EM16: на основании договоров безвозмездного пользования | EY16: без оформления права пользования (с почасовой оплатой)
CN17: в рамках государственного (муниципального) задания | DA17: за плату сверх государственного (муниципального) задания
A18: 1 | X18: 2 | AE18: 3 | AN18: 4 | AU18: 5 | BC18: 6 | BJ18: 7 | BT18: 8 | BZ18: 9 | CF18: 10 | CN18: 11 | DA18: 12 | DN18: 13 | DW18: 14 | ED18: 15 | EM18: 16 | EY18: 17
A19: Площадные объекты ²⁵, всего | X19: х | AE19: х | AN19: х | AU19: х | BC19: х | BJ19: Квадратный метр | BT19: 055 | BZ19: 1000 | CF19: =CF20+CF21+CF22 -> 1885.30 | CN19: =CN20+CN21+CN22 -> 1885.30 | DA19: 0,00 | DN19: 0,00 | DW19: =EM19 -> 0.00 | ED19: 0.00 | EM19: =EM20 -> 0.00 | EY19: 0,00
A20: Нежилое учебное здание (здание школы), строение №1 | X20: РТ, г. Казань, Айвазовского, д. 27 | AE20: 16:50:011123:1406 | AN20: 92701000 | BC20: 1966 | BJ20: Квадратный метр | BT20: 55 | BZ20: 1001 | CF20: 1782.20 | CN20: 1782.20 | DW20: 0.00 | ED20: 0.00
A21: Нежилое учебное здание (подсобное помещение), строение №2 | X21: РТ, г. Казань, Айвазовского, д. 27 | AE21: 16:50:011123:1409 | AN21: 92701000 | BC21: 1966 | BJ21: Квадратный метр | BT21: 55 | BZ21: 1002 | CF21: 103.10 | CN21: 103.10 | DW21: 0.00 | ED21: 0.00
A23: Линейные объекты ²⁶, всего | X23: х | AE23: х | AN23: х | AU23: х | BC23: х | BJ23: Метр | BT23: 006 | BZ23: 2000 | CF23: 0,00 | CN23: 0,00 | DA23: 0,00 | DN23: 0,00 | DW23: 0,00 | ED23: 0,00 | EM23: 0,00 | EY23: 0,00
A24: Резервуары, емкости, иные аналогичные объекты, всего | X24: х | AE24: х | AN24: х | AU24: х | BC24: х | BJ24: Кубический метр | BT24: 113 | BZ24: 3000 | CF24: 0,00 | CN24: 0,00 | DA24: 0,00 | DN24: 0,00 | DW24: 0,00 | ED24: 0,00 | EM24: 0,00 | EY24: 0,00
A25: Скважины, иные аналогичные объекты, всего | X25: х | AE25: х | AN25: х | AU25: х | BC25: х | BJ25: Метр | BT25: 006 | BZ25: 4000 | CF25: 0,00 | CN25: 0,00 | DA25: 0,00 | DN25: 0,00 | DW25: 0,00 | ED25: 0,00 | EM25: 0,00 | EY25: 0,00
A26: Иные объекты, включая точечные, всего | X26: х | AE26: х | AN26: х | AU26: х | BC26: х | BJ26: Штука | BT26: 796 | BZ26: 5000 | CF26: 0,00 | CN26: 0,00 | DA26: 0,00 | DN26: 0,00 | DW26: 0,00 | ED26: 0,00 | EM26: 0,00 | EY26: 0,00
BT27: Итого | BZ27: 9000 | CF27: =CF20+CF21 -> 1885.30 | CN27: =CN20+CN21 -> 1885.30 | DA27: 0.00 | DN27: 0.00 | DW27: =DW19 -> 0.00 | ED27: =ED19 -> 0.00 | EM27: =EM20 -> 0.00 | EY27: 0.00
A29: ²⁴ Указывается уникальный код объекта капитального строительства, объекта недвижимого имущества (при наличии).
A30: ²⁵ Указываются здания, строения, сооружения и иные аналогичные объекты.
A31: ²⁶ Указываются линии электропередачи, линии связи (в том числе линейно-кабельные сооружения), трубопроводы, автомобильные дороги, железнодорожные линии и другие подобные сооружения.
A33: Наименование объекта | Y33: Код строки | AE33: Не используется | BO33: Фактические расходы на содержание объекта недвижимого имущества (руб. в год)
AE34: всего | AK34: из них: | BO34: всего | BV34: из них:
AK35: проводится капитальный ремонт и/или реконструкция | AW35: в связи с аварийным состоянием | BV35: коммунальные услуги | DB35: услуги по содержанию имущества | EG35: налог на имущество
AW36: требуется ремонт | BF36: ожидает списания | BV36: всего | CC36: из них: | DB36: всего | DH36: из них: | EG36: всего | EM36: из них:
CC37: возмещается пользователями имущества | CO37: по неиспользуемому имуществу | DH37: возмещается пользователями имущества | DT37: по неиспользуемому имуществу | EM37: возмещается пользователями имущества | EY37: по неиспользуемому имуществу
A38: 1 | Y38: 9 | AE38: 18 | AK38: 19 | AW38: 20 | BF38: 21 | BO38: 22 | BV38: 23 | CC38: 24 | CO38: 25 | DB38: 26 | DH38: 27 | DT38: 28 | EG38: 29 | EM38: 30 | EY38: 31
A39: Площадные объекты ²⁵, всего | Y39: 1000 | AE39: 0,00 | AK39: 0,00 | AW39: 0,00 | BF39: 0,00 | BO39: =BV39+DB39+EG39 -> 1424519.47 | BV39: =CC39 -> 1151193.56 | CC39: 1151193.56 | CO39: 0,00 | DB39: 270,849.91 | DH39: 270,849.91 | DT39: 0,00 | EG39: 2476.00 | EM39: 2476.00 | EY39: 0,00
Y40: 1001 | AE40: 0,00 | AK40: 0,00 | AW40: 0,00 | BF40: 0,00 | BO40: 0.00 | BV40: 0,00 | CC40: 0,00 | CO40: 0,00 | DB40: 0,00 | DH40: 0,00 | DT40: 0,00 | EM40: 0.00 | EY40: 0,00
Y41: 1002 | AE41: 0,00 | AK41: 0,00 | AW41: 0,00 | BF41: 0,00 | BO41: =EG41 -> 0.00 | BV41: 0,00 | CC41: 0,00 | CO41: 0,00 | DB41: 0,00 | DH41: 0,00 | DT41: 0,00 | EG41: 0.00 | EM41: =EG41 -> 0.00 | EY41: 0,00
Y42: 1003 | AE42: 0,00 | AK42: 0,00 | AW42: 0,00 | BF42: 0,00 | BO42: =EG42+EM42 -> 0.00 | BV42: 0,00 | CC42: 0,00 | CO42: 0,00 | DB42: 0,00 | DH42: 0,00 | DT42: 0,00 | EG42: 0,00 | EM42: 0,00 | EY42: 0,00
A43: Линейные объекты ²⁶, всего | Y43: 2000 | AE43: 0,00 | AK43: 0,00 | AW43: 0,00 | BF43: 0,00 | BO43: 0,00 | BV43: 0,00 | CC43: 0,00 | CO43: 0,00 | DB43: 0,00 | DH43: 0,00 | DT43: 0,00 | EG43: 0,00 | EM43: 0,00 | EY43: 0,00
A44: Резервуары, емкости, иные аналогичные объекты, всего | Y44: 3000 | AE44: 0,00 | AK44: 0,00 | AW44: 0,00 | BF44: 0,00 | BO44: 0,00 | BV44: 0,00 | CC44: 0,00 | CO44: 0,00 | DB44: 0,00 | DH44: 0,00 | DT44: 0,00 | EG44: 0,00 | EM44: 0,00 | EY44: 0,00
A45: Скважины, иные аналогичные объекты, всего | Y45: 4000 | AE45: 0,00 | AK45: 0,00 | AW45: 0,00 | BF45: 0,00 | BO45: 0,00 | BV45: 0,00 | CC45: 0,00 | CO45: 0,00 | DB45: 0,00 | DH45: 0,00 | DT45: 0,00 | EG45: 0,00 | EM45: 0,00 | EY45: 0,00
A46: Иные объекты, включая точечные, всего | Y46: 5000 | AE46: 0,00 | AK46: 0,00 | AW46: 0,00 | BF46: 0,00 | BO46: 0,00 | BV46: 0,00 | CC46: 0,00 | CO46: 0,00 | DB46: 0,00 | DH46: 0,00 | DT46: 0,00 | EG46: 0,00 | EM46: 0,00 | EY46: 0,00
A47: Итого | Y47: 9000 | AE47: х | AK47: х | AW47: х | BF47: х | BO47: =BO39 -> 1424519.47 | BV47: 0.00 | CC47: 0.00 | CO47: 0.00 | DB47: 270,849.91 | DH47: 270,849.91 | DT47: 0.00 | EG47: =EG39 -> 2476.00 | EM47: 0.00 | EY47: 0.00
A50: Руководитель (уполномоченное лицо) Учреждения
AD51: (должность) | CC51: (подпись) | DP51: (расшифровка подписи)
A52: Исполнитель | AD52: Ведущий бухгалтер ТМЦ Ведущий бухгалтер отд.кассовое исп. | CC52: Идиятова Эльза Наилевна Хабибуллина Р.Р. | DP52: 598-33-22 (8104) 598-33-22 (6109)
AD53: (должность) | CC53: (фамилия, инициалы) | DP53: (телефон)
A55: " | F55: " | R55: 20 | X55: г.

Sheet Счета
B1: Сведения о счетах учреждения, открытых в кредитных организациях
EQ3: КОДЫ
BS4: на 1 | BX4: января | CK4: 2026 | CQ4: г. | DW4: Дата | EQ4: 01.01.2026
DW5: по Сводному реестру
DW6: ИНН
A7: Учреждение | DW7: КПП
A8: Орган, осуществляющий функции и полномочия учредителя | DW8: глава по БК
A9: Публично-правовое образование | AB9: город Казань | DW9: по ОКТМО | EQ9: 92701000001
A10: Периодичность: годовая
A13: Номер счета в кредитной организации | AV13: Вид счета 23 | BT13: Реквизиты акта, в соответствии с которым открыт счет | DV13: Остаток средств на счете на начало года 24 | EQ13: Остаток средств на счете на конец отчетного периода 24
BT14: вид акта | CM14: дата | DE14: номер
A15: 1 | AV15: 2 | BT15: 3 | CM15: 4 | DE15: 5 | DV15: 6 | EQ15: 7
A16: Счета в кредитных организациях в валюте Российской Федерации | AV16: х | BT16: х | CM16: х | DE16: х | DV16: х | EQ16: х
A17: Всего | AV17: х | BT17: х | CM17: х | DE17: х | DV17: 0,00 | EQ17: 0,00
A18: Счета в кредитных организациях в иностранной валюте | AV18: х | BT18: х | CM18: х | DE18: х | DV18: х | EQ18: х
A19: Всего | AV19: х | BT19: х | CM19: х | DE19: х | DV19: 0,00 | EQ19: 0,00
A20: Итого | AV20: х | BT20: х | CM20: х | DE20: х | DV20: 0,00 | EQ20: 0,00
A23: Руководитель (уполномоченное лицо) Учреждения
AD24: (должность) | CC24: (подпись) | DP24: (расшифровка подписи)
A25: Исполнитель
AD26: (должность) | CC26: (фамилия, инициалы) | DP26: (телефон)
A28: " | F28: " | R28: 20 | X28: г.
A31: ²³ Указывается вид банковского счета, открытого в кредитной организации (например, номинальный счет, счет эскроу, публичный депозитный счет).
A32: ²⁴ Показатели счетов в иностранной валюте указываются в рублевом эквиваленте.

Sheet Земельные участки
B1: Сведения о земельных участках, предоставленных на праве постоянного (бессрочного) пользования
EV3: КОДЫ
BS4: на 1 | BX4: января | CK4: 2026 | CQ4: г. | DW4: Дата | EV4: 01.01.2026
DW5: по Сводному реестру
DW6: ИНН | EV6: 1655030953
A7: Учреждение | Z7: МБУДО "Факел" Вахитовского района г. Казани | DW7: КПП | EV7: 165501001
A8: Орган, осуществляющий функции и полномочия учредителя | DW8: глава по БК
A9: Публично-правовое образование | Z9: город Казань | DW9: по ОКТМО | EV9: 92701000
A10: Периодичность: годовая
A12: Наименование показателя | O12: Адрес | T12: Код по ОКТМО | Z12: Кадастро-вый номер | AH12: Единица измерения | AS12: Код строки | AX12: Всего | BC12: Используется учреждением | CM12: Справочно: используется по соглашениям об установлении сервитута | CX12: Не используется учреждением | EL12: Фактические расходы на содержание земельного участка (руб. в год)
AH13: наимено-вание | AN13: код по ОКЕИ | BC13: всего | BH13: в том числе: | CX13: всего | DC13: в том числе: | EL13: всего | EQ13: в том числе:
BH14: для осуществления основной деятельности | CH14: для иных целей | DC14: передано во временное пользование сторонним организациям | EE14: по иным причинам | EQ14: эксплуатационные расходы | FG14: налог на землю
BH15: в рамках государственного (муниципального) задания | BU15: за плату сверх государственного (муниципального) задания | DC15: на основании договоров аренды | DK15: на основании договоров безвозмездного пользования | DV15: без оформления права пользования | EQ15: всего | EV15: из них возмещается пользователями имущества
A16: 1 | O16: 2 | T16: 3 | Z16: 4 | AH16: 5 | AN16: 6 | AS16: 7 | AX16: 8 | BC16: 9 | BH16: 10 | BU16: 11 | CH16: 12 | CM16: 13 | CX16: 14 | DC16: 15 | DK16: 16 | DV16: 17 | EE16: 18 | EL16: 19 | EQ16: 20 | EV16: 21 | FG16: 22
AH17: кв.м. | AN17: 055 | AS17: 104 | FG17: =EQ17 -> 0.00
A18: Итого | AX18: =AX17 -> 0.00 | BC18: =BC17 -> 0.00 | BH18: =BH17 -> 0.00 | FG18: 0.00
A19: Руководитель (уполномоченное лицо) Учреждения
AD20: (должность) | CC20: (подпись) | DP20: (расшифровка подписи)
A21: Исполнитель | AD21: Ведущий бухгалтер ТМЦ | CC21: Идиятова Эльза Наилевна | DP21: 598-33-22 (8104)
AD22: (должность) | CC22: (фамилия, инициалы) | DP22: (телефон)
A24: " | F24: " | R24: 20 | X24: г.

Sheet ОСДИ
B1: Сведения об особо ценном движимом имуществе (за исключением транспортных средств)
ER3: КОДЫ
BS4: на 1 | BX4: января | CK4: 2026 | CQ4: г. | DY4: Дата | ER4: 01.01.2026
DY5: по Сводному реестру
DY6: ИНН | ER6: 1655030953
A7: Учреждение | AL7: МБУДО "Факел" Вахитовского района г. Казани | DY7: КПП | ER7: 165501001
A8: Орган, осуществляющий функции и полномочия учредителя | DY8: глава по БК
A10: Публично-правовое образование | AL10: город Казань | DY10: по ОКТМО | ER10: 92701000
A11: Периодичность: годовая
A13: Раздел 1. Сведения о наличии, состоянии и использовании особо ценного движимого имущества
A15: Наименование показателя (группа основных средств) | AL15: Код строки | AR15: Наличие движимого имущества на конец отчетного периода
AR16: всего | BC16: в том числе:
BC17: используется учреждением | BN17: передано в пользование | DD17: не используется
BN18: всего | BY18: в том числе: | DD18: требует ремонта | DX18: физически и морально изношено, ожидает согласования, списания
BY19: в аренду | CJ19: безвозмездно | DX19: всего | ER19: из них требует замены
A20: 1 | AL20: 2 | AR20: 3 | BC20: 4 | BN20: 5 | BY20: 6 | CJ20: 7 | DD20: 8 | DX20: 9 | ER20: 10
A21: Нежилые помещения, здания и сооружения, не отнесенные к недвижимому имуществу | AL21: 1000 | AR21: 0,00 | BC21: 0,00 | BN21: 0,00 | BY21: 0,00 | CJ21: 0,00 | DD21: 0,00 | DX21: 0,00 | ER21: 0,00
A22: в том числе: для основной деятельности | AL22: 1100 | AR22: 0,00 | BC22: 0,00 | BN22: 0,00 | BY22: 0,00 | CJ22: 0,00 | DD22: 0,00 | DX22: 0,00 | ER22: 0,00
A23: из них: для оказания услуг (выполнения работ) в рамках утвержденного государственного (муниципального) задания | AL23: 1110 | AR23: 0,00 | BC23: 0,00 | BN23: 0,00 | BY23: 0,00 | CJ23: 0,00 | DD23: 0,00 | DX23: 0,00 | ER23: 0,00
A24: для иной деятельности | AL24: 1200 | AR24: 0,00 | BC24: 0,00 | BN24: 0,00 | BY24: 0,00 | CJ24: 0,00 | DD24: 0,00 | DX24: 0,00 | ER24: 0,00
A25: Машины и оборудование | AL25: 2000 | AR25: 83.00 | BC25: 83.00 | BN25: 0,00 | BY25: 0,00 | CJ25: 0,00 | DD25: 0,00 | DX25: 0,00 | ER25: 0,00
A26: в том числе: для основной деятельности | AL26: 2100 | AR26: 83.00 | BC26: 83.00 | BN26: 0,00 | BY26: 0,00 | CJ26: 0,00 | DD26: 0,00 | DX26: 0,00 | ER26: 0,00
A27: из них: для оказания услуг (выполнения работ) в рамках утвержденного государственного (муниципального) задания | AL27: 2110 | AR27: 79.00 | BC27: 79.00 | BN27: 0,00 | BY27: 0,00 | CJ27: 0,00 | DD27: 0,00 | DX27: 0,00 | ER27: 0,00
A28: для иной деятельности | AL28: 2200 | AR28: 0,00 | BC28: 0,00 | BN28: 0,00 | BY28: 0,00 | CJ28: 0,00 | DD28: 0,00 | DX28: 0,00 | ER28: 0,00
A29: Хозяйственный и производственный инвентарь, всего | AL29: 3000 | AR29: 49.00 | BC29: 49.00 | BN29: 0,00 | BY29: 0,00 | CJ29: 0,00 | DD29: 0,00 | DX29: 0,00 | ER29: 0,00
A30: в том числе: для основной деятельности | AL30: 3100 | AR30: 49.00 | BC30: 49.00 | BN30: 0,00 | BY30: 0,00 | CJ30: 0,00 | DD30: 0,00 | DX30: 0,00 | ER30: 0,00
A31: из них: для оказания услуг (выполнения работ) в рамках утвержденного государственного (муниципального) задания | AL31: 3110 | AR31: 45.00 | BC31: 45.00 | BN31: 0,00 | BY31: 0,00 | CJ31: 0,00 | DD31: 0,00 | DX31: 0,00 | ER31: 0,00
A32: для иной деятельности | AL32: 3200 | AR32: 0,00 | BC32: 0,00 | BN32: 0,00 | BY32: 0,00 | CJ32: 0,00 | DD32: 0,00 | DX32: 0,00 | ER32: 0,00
A33: Прочие основные средства, всего | AL33: 4000 | AR33: 0.00 | BC33: 0.00 | BN33: 0,00 | BY33: 0,00 | CJ33: 0,00 | DD33: 0,00 | DX33: 0,00 | ER33: 0,00
A34: в том числе: для основной деятельности | AL34: 4100 | AR34: 0.00 | BC34: 0.00 | BN34: 0,00 | BY34: 0,00 | CJ34: 0,00 | DD34: 0,00 | DX34: 0,00 | ER34: 0,00
A35: из них: для оказания услуг (выполнения работ) в рамках утвержденного государственного (муниципального) задания | AL35: 4110 | AR35: 0.00 | BC35: 0.00 | BN35: 0,00 | BY35: 0,00 | CJ35: 0,00 | DD35: 0,00 | DX35: 0,00 | ER35: 0,00
A36: для иной деятельности | AL36: 4200 | AR36: 0,00 | BC36: 0,00 | BN36: 0,00 | BY36: 0,00 | CJ36: 0,00 | DD36: 0,00 | DX36: 0,00 | ER36: 0,00
A37: Итого | AL37: 9000 | AR37: =AR25+AR29+AR33 -> 132.00 | BC37: =BC21+BC25+BC29+BC33 -> 132.00 | BN37: =BN21+BN25+BN29+BN33 -> 0.00 | BY37: =BY21+BY25+BY29+BY33 -> 0.00 | CJ37: =CJ21+CJ25+CJ29+CJ33 -> 0.00 | DD37: =DD21+DD25+DD29+DD33 -> 0.00 | DX37: =DX21+DX25+DX29+DX33 -> 0.00 | ER37: =ER21+ER25+ER29+ER33 -> 0.00
A39: Наименование показателя (группа основных средств) | AL39: Код строки | AR39: Фактический срок использования ²⁹
AR40: от 121 месяца и более | BN40: от 85 до 120 месяцев | CJ40: от 61 до 84 месяцев | DD40: от 37 до 60 месяцев | DX40: от 13 до 36 месяцев | ER40: менее 12 месяцев
AR41: количество, ед. | BC41: балансовая стоимость, руб. | BN41: количество, ед. | BY41: балансовая стоимость, руб. | CJ41: количество, ед. | CT41: балансовая стоимость, руб. | DD41: количество, ед. | DN41: балансовая стоимость, руб. | DX41: количество, ед. | EH41: балансовая стоимость, руб. | ER41: количество, ед. | FB41: балансовая стоимость, руб.
A42: 1 | AL42: 2 | AR42: 11 | BC42: 12 | BN42: 13 | BY42: 14 | CJ42: 15 | CT42: 16 | DD42: 17 | DN42: 18 | DX42: 19 | EH42: 20 | ER42: 21 | FB42: 22
A43: Нежилые помещения, здания и сооружения, не отнесенные к недвижимому имуществу | AL43: 1000 | AR43: 0,00 | BC43: 0,00 | BN43: 0,00 | BY43: 0,00 | CJ43: 0,00 | CT43: 0,00 | DD43: 0,00 | DN43: 0,00 | DX43: 0,00 | EH43: 0,00 | ER43: 0,00 | FB43: 0,00
A44: в том числе: для основной деятельности | AL44: 1100 | AR44: 0,00 | BC44: 0,00 | BN44: 0,00 | BY44: 0,00 | CJ44: 0,00 | CT44: 0,00 | DD44: 0,00 | DN44: 0,00 | DX44: 0,00 | EH44: 0,00 | ER44: 0,00 | FB44: 0,00
A45: из них: для оказания услуг (выполнения работ) в рамках утвержденного государственного (муниципального) задания | AL45: 1110 | AR45: 0,00 | BC45: 0,00 | BN45: 0,00 | BY45: 0,00 | CJ45: 0,00 | CT45: 0,00 | DD45: 0,00 | DN45: 0,00 | DX45: 0,00 | EH45: 0,00 | ER45: 0,00 | FB45: 0,00
A46: для иной деятельности | AL46: 1200 | AR46: 0,00 | BC46: 0,00 | BN46: 0,00 | BY46: 0,00 | CJ46: 0,00 | CT46: 0,00 | DD46: 0,00 | DN46: 0,00 | DX46: 0,00 | EH46: 0,00 | ER46: 0,00 | FB46: 0,00
A47: Машины и оборудование | AL47: 2000 | AR47: 69.00 | BC47: 1979627.03 | BN47: 2.00 | BY47: 93480.00 | CJ47: 0.00 | CT47: 0.00 | DD47: 9.00 | DN47: 150361.92 | DX47: 2.00 | EH47: 55834.00 | ER47: 1.00 | FB47: 20400.00
A48: в том числе: для основной деятельности | AL48: 2100 | AR48: 69.00 | BC48: 1979627.03 | BN48: 2.00 | BY48: 93480.00 | CJ48: 0.00 | CT48: 0.00 | DD48: 9.00 | DN48: 150361.92 | DX48: 2.00 | EH48: 55834.00 | ER48: 1.00 | FB48: 20400.00
A49: из них: для оказания услуг (выполнения работ) в рамках утвержденного государственного (муниципального) задания | AL49: 2110 | AR49: 65.00 | BC49: 1933990.33 | BN49: 2.00 | BY49: 93480.00 | CJ49: 0.00 | CT49: 0.00 | DD49: 9.00 | DN49: 150361.92 | DX49: 2.00 | EH49: 55834.00 | ER49: 1.00 | FB49: 20400.00
A50: для иной деятельности | AL50: 2200 | AR50: 0,00 | BC50: 0,00 | BN50: 0,00 | BY50: 0.00 | CJ50: 0,00 | CT50: 0,00 | DD50: 0,00 | DN50: 0,00 | DX50: 0,00 | EH50: 0,00 | ER50: 0,00 | FB50: 0,00
A51: Хозяйственный и производственный инвентарь, всего | AL51: 3000 | AR51: 40.00 | BC51: 427503.88 | BN51: 8.00 | BY51: 36020.00 | CJ51: 0.00 | CT51: 0.00 | DD51: 0.00 | DN51: 0.00 | DX51: 1.00 | EH51: 391698.33 | ER51: 0.00 | FB51: 0.00
A52: в том числе: для основной деятельности | AL52: 3100 | AR52: 40.00 | BC52: 427503.88 | BN52: 8.00 | BY52: 36020.00 | CJ52: 0.00 | CT52: 0.00 | DD52: 0.00 | DN52: 0.00 | DX52: 1.00 | EH52: 391698.33 | ER52: 0.00 | FB52: 0.00
A53: из них: для оказания услуг (выполнения работ) в рамках утвержденного государственного (муниципального) задания | AL53: 3110 | AR53: 31.00 | BC53: 376841.88 | BN53: 3.00 | BY53: 13020.00 | CJ53: 0.00 | CT53: 0.00 | DD53: 0.00 | DN53: 0.00 | DX53: 1.00 | EH53: 391698.33 | ER53: 0.00 | FB53: 0.00
A54: для иной деятельности | AL54: 3200 | AR54: 0,00 | BC54: 0,00 | BN54: 0,00 | BY54: 0,00 | CJ54: 0,00 | CT54: 0,00 | DD54: 0,00 | DN54: 0,00 | DX54: 0,00 | EH54: 0,00 | ER54: 0,00 | FB54: 0,00
A55: Прочие основные средства, всего | AL55: 4000 | AR55: 0.00 | BC55: 0.00 | BN55: 0.00 | BY55: 0.00 | CJ55: 0.00 | CT55: 0.00 | DD55: 0.00 | DN55: 0.00 | DX55: 0.00 | EH55: 0.00 | ER55: 0.00 | FB55: 0.00
A56: в том числе: для основной деятельности | AL56: 4100 | AR56: 0.00 | BC56: 0.00 | BN56: 0.00 | BY56: 0.00 | CJ56: 0.00 | CT56: 0.00 | DD56: 0.00 | DN56: 0.00 | DX56: 0.00 | EH56: 0.00 | ER56: 0.00 | FB56: 0.00
A57: из них: для оказания услуг (выполнения работ) в рамках утвержденного государственного (муниципального) задания | AL57: 4110 | AR57: 0.00 | BC57: 0.00 | BN57: 0.00 | BY57: 0.00 | CJ57: 0.00 | CT57: 0.00 | DD57: 0.00 | DN57: 0.00 | DX57: 0.00 | EH57: 0.00 | ER57: 0.00 | FB57: 0.00
A58: для иной деятельности | AL58: 4200 | AR58: 0,00 | BC58: 0,00 | BN58: 0.00 | BY58: 0,00 | CJ58: 0,00 | CT58: 0,00 | DD58: 0,00 | DN58: 0,00 | DX58: 0,00 | EH58: 0,00 | ER58: 0,00 | FB58: 0,00
A59: Итого | AL59: 9000 | AR59: =AR43+AR47+AR51+AR55 -> 109.00 | BC59: =BC43+BC47+BC51+BC55 -> 2407130.91 | BN59: =BN43+BN47+BN51+BN55 -> 10.00 | BY59: =BY43+BY47+BY51+BY56 -> 129500.00 | CJ59: =CJ43+CJ47+CJ51+CJ55 -> 0.00 | CT59: =CT43+CT47+CT51+CT55 -> 0.00 | DD59: =DD43+DD47+DD51+DD55 -> 9.00 | DN59: =DN43+DN47+DN51+DN55 -> 150361.92 | DX59: =DN43+DN47+DN51+DN55 -> 150361.92 | EH59: =EH43+EH47+EH51+EH55 -> 447532.33 | ER59: =ER43+ER47+ER51+ER55 -> 1.00 | FB59: =FB43+FB47+FB51+FB55 -> 20400.00
A61: Наименование показателя (группа основных средств) | AL61: Код строки | AR61: Остаточная стоимость объектов особо ценного движимого имущества, в том числе с оставшимся сроком полезного использования
AR62: менее 12 месяцев | BC62: от 12 до 24 месяцев | BN62: от 25 до 36 месяцев | BY62: от 37 до 48 месяцев | CJ62: от 49 до 60 месяцев | CT62: от 61 до 72 месяцев | DD62: от 73 до 84 месяцев | DN62: от 85 до 96 месяцев | DX62: от 97 до 108 месяцев | EH62: от 109 до 120 месяцев | ER62: от 121 месяца и более
A63: 1 | AL63: 2 | AR63: 23 | BC63: 24 | BN63: 25 | BY63: 26 | CJ63: 27 | CT63: 28 | DD63: 29 | DN63: 30 | DX63: 31 | EH63: 32 | ER63: 33
A64: Нежилые помещения, здания и сооружения, не отнесенные к недвижимому имуществу | AL64: 1000 | AR64: 0,00 | BC64: 0,00 | BN64: 0,00 | BY64: 0,00 | CJ64: 0,00 | CT64: 0,00 | DD64: 0,00 | DN64: 0,00 | DX64: 0,00 | EH64: 0,00 | ER64: 0,00
A65: в том числе: для основной деятельности | AL65: 1100 | AR65: 0,00 | BC65: 0,00 | BN65: 0,00 | BY65: 0,00 | CJ65: 0,00 | CT65: 0,00 | DD65: 0,00 | DN65: 0,00 | DX65: 0,00 | EH65: 0,00 | ER65: 0,00
A66: из них: для оказания услуг (выполнения работ) в рамках утвержденного государственного (муниципального) задания | AL66: 1110 | AR66: 0,00 | BC66: 0,00 | BN66: 0,00 | BY66: 0,00 | CJ66: 0,00 | CT66: 0,00 | DD66: 0,00 | DN66: 0,00 | DX66: 0,00 | EH66: 0,00 | ER66: 0,00
A67: для иной деятельности | AL67: 1200 | AR67: 0,00 | BC67: 0,00 | BN67: 0,00 | BY67: 0,00 | CJ67: 0,00 | CT67: 0,00 | DD67: 0,00 | DN67: 0,00 | DX67: 0,00 | EH67: 0,00 | ER67: 0,00
A68: Машины и оборудование | AL68: 2000 | AR68: 966.50 | BC68: 0.00 | BN68: 0.00 | BY68: 0.00 | CJ68: 0.00 | CT68: 0.00 | DD68: 0.00 | DN68: 0.00 | DX68: 0,00 | EH68: 0.00 | ER68: 0.00
A69: в том числе: для основной деятельности | AL69: 2100 | AR69: 966.50 | BC69: 0.00 | BN69: 0.00 | BY69: 0.00 | CJ69: 0.00 | CT69: 0.00 | DD69: 0.00 | DN69: 0.00 | DX69: 0,00 | EH69: 0.00 | ER69: 0.00
A70: из них: для оказания услуг (выполнения работ) в рамках утвержденного государственного (муниципального) задания | AL70: 2110 | AR70: 966.50 | BC70: 0.00 | BN70: 0.00 | BY70: 0.00 | CJ70: 0.00 | CT70: 0.00 | DD70: 0.00 | DN70: 0.00 | DX70: 0.00 | EH70: 0.00 | ER70: 0.00
A71: для иной деятельности | AL71: 2200 | AR71: 0,00 | BC71: 0,00 | BN71: 0,00 | BY71: 0,00 | CJ71: 0,00 | CT71: 0,00 | DD71: 0,00 | DN71: 0,00 | DX71: 0,00 | EH71: 0.00 | ER71: 0,00
A72: Хозяйственный и производственный инвентарь, всего | AL72: 3000 | AR72: 0,00 | BC72: 0.00 | BN72: 0.00 | BY72: 0,00 | CJ72: 256469.12 | CT72: 0,00 | DD72: 0.00 | DN72: 0,00 | DX72: 0.00 | EH72: 0.00 | ER72: 0.00
A73: в том числе: для основной деятельности | AL73: 3100 | AR73: 0,00 | BC73: 0.00 | BN73: 0.00 | BY73: 0,00 | CJ73: 256469.12 | CT73: 0,00 | DD73: 0.00 | DN73: 0,00 | DX73: 0.00 | EH73: 0.00 | ER73: 0.00
A74: из них: для оказания услуг (выполнения работ) в рамках утвержденного государственного (муниципального) задания | AL74: 3110 | AR74: 0,00 | BC74: 0.00 | BN74: 0,00 | BY74: 0,00 | CJ74: 256469.12 | CT74: 0,00 | DD74: 0.00 | DN74: 0,00 | DX74: 0.00 | EH74: 0.00 | ER74: 0,00
A75: для иной деятельности | AL75: 3200 | AR75: 0,00 | BC75: 0.00 | BN75: 0,00 | BY75: 0,00 | CJ75: 0,00 | CT75: 0,00 | DD75: 0,00 | DN75: 0,00 | DX75: 0,00 | EH75: 0,00 | ER75: 0,00
A76: Прочие основные средства, всего | AL76: 4000 | AR76: 0,00 | BC76: 0,00 | BN76: 0,00 | BY76: 0,00 | CJ76: 0,00 | CT76: 0,00 | DD76: 0,00 | DN76: 0,00 | DX76: 0,00 | EH76: 0,00 | ER76: 0,00
A77: в том числе: для основной деятельности | AL77: 4100 | AR77: 0,00 | BC77: 0,00 | BN77: 0,00 | BY77: 0,00 | CJ77: 0,00 | CT77: 0,00 | DD77: 0,00 | DN77: 0,00 | DX77: 0,00 | EH77: 0,00 | ER77: 0,00
A78: из них: для оказания услуг (выполнения работ) в рамках утвержденного государственного (муниципального) задания | AL78: 4110 | AR78: 0,00 | BC78: 0,00 | BN78: 0,00 | BY78: 0,00 | CJ78: 0,00 | CT78: 0,00 | DD78: 0,00 | DN78: 0,00 | DX78: 0,00 | EH78: 0,00 | ER78: 0,00
A79: для иной деятельности | AL79: 4200 | AR79: 0,00 | BC79: 0,00 | BN79: 0,00 | BY79: 0,00 | CJ79: 0,00 | CT79: 0,00 | DD79: 0,00 | DN79: 0,00 | DX79: 0,00 | EH79: 0,00 | ER79: 0,00
A80: Итого | AL80: 9000 | AR80: =AR64+AR68+AR72+AR76 -> 966.50 | BC80: =BC64+BC68+BC72+BC76 -> 0.00 | BN80: =BN64+BN68+BN72+BN76 -> 0.00 | BY80: =BY64+BY68+BY72+BY76 -> 0.00 | CJ80: =CJ64+CJ68+CJ72+CJ76 -> 256469.12 | CT80: =CT64+CT68+CT72+CT76 -> 0.00 | DD80: =DD64+DD68+DD72+DD76 -> 0.00 | DN80: =DN64+DN68+DN72+DN76 -> 0.00 | DX80: =DX64+DX68+DX72+DX76 -> 0.00 | EH80: =EH68+EH72+EH76 -> 0.00 | ER80: =ER64+ER68+ER72+ER76 -> 0.00
A82: ²⁹ Срок использования имущества считается начиная с 1-го числа месяца, следующего за месяцем принятия его к бухгалтерскому учету.
A84: Раздел 2. Сведения о расходах на содержание особо ценного движимого имущества
A86: Наименование показателя | AL86: Код строки | AR86: Всего за отчетный период | BF86: Расходы на содержание особо ценного движимого имущества
BF87: в том числе:
BF88: на текущее обслуживание | DK88: капитальный ремонт, включая приобретение запасных частей | DZ88: на уплату налогов | EJ88: заработная плата обслуживающего персонала | EX88: иные расходы
BF89: расходы на периодическое техническое (профилактическое) обслуживание | BU89: расходы на текущий ремонт, включая приобретение запасных частей | CI89: расходы на обязательное страхование | CW89: расходы на добровольное страхование
A90: 1 | AL90: 2 | AR90: 3 | BF90: 4 | BU90: 5 | CI90: 6 | CW90: 7 | DK90: 8 | DZ90: 9 | EJ90: 10 | EX90: 11
A91: Нежилые помещения, здания и сооружения, не отнесенные к недвижимому имуществу | AL91: 1000 | AR91: 0,00 | BF91: 0,00 | BU91: 0,00 | CI91: 0,00 | CW91: 0,00 | DK91: 0,00 | DZ91: 0,00 | EJ91: 0,00 | EX91: 0,00
A92: в том числе: для основной деятельности | AL92: 1100 | AR92: 0,00 | BF92: 0,00 | BU92: 0,00 | CI92: 0,00 | CW92: 0,00 | DK92: 0,00 | DZ92: 0,00 | EJ92: 0,00 | EX92: 0,00
A93: из них: для оказания услуг (выполнения работ) в рамках утвержденного государственного (муниципального) задания | AL93: 1110 | AR93: 0,00 | BF93: 0,00 | BU93: 0,00 | CI93: 0,00 | CW93: 0,00 | DK93: 0,00 | DZ93: 0,00 | EJ93: 0,00 | EX93: 0,00
A94: для иной деятельности | AL94: 1200 | AR94: 0,00 | BF94: 0 | BU94: 0,00 | CI94: 0,00 | CW94: 0,00 | DK94: 0,00 | DZ94: 0,00 | EJ94: 0,00 | EX94: 0,00
A95: Машины и оборудование | AL95: 2000 | AR95: 0,00 | BF95: 0 | BU95: 0,00 | CI95: 0,00 | CW95: 0,00 | DK95: 0,00 | DZ95: 0,00 | EJ95: 0,00 | EX95: 0,00
A96: в том числе: для основной деятельности | AL96: 2100 | AR96: 0,00 | BF96: 0 | BU96: 0,00 | CI96: 0,00 | CW96: 0,00 | DK96: 0,00 | DZ96: 0,00 | EJ96: 0,00 | EX96: 0,00
A97: из них: для оказания услуг (выполнения работ) в рамках утвержденного государственного (муниципального) задания | AL97: 2110 | AR97: 0,00 | BF97: 0 | BU97: 0,00 | CI97: 0,00 | CW97: 0,00 | DK97: 0,00 | DZ97: 0,00 | EJ97: 0,00 | EX97: 0,00
A98: для иной деятельности | AL98: 2200 | AR98: 0,00 | BF98: 0,00 | BU98: 0,00 | CI98: 0,00 | CW98: 0,00 | DK98: 0,00 | DZ98: 0,00 | EJ98: 0,00 | EX98: 0,00
A99: Хозяйственный и производственный инвентарь, всего | AL99: 3000 | AR99: 0,00 | BF99: 0,00 | BU99: 0,00 | CI99: 0,00 | CW99: 0,00 | DK99: 0,00 | DZ99: 0,00 | EJ99: 0,00 | EX99: 0,00
A100: в том числе: для основной деятельности | AL100: 3100 | AR100: 0,00 | BF100: 0,00 | BU100: 0,00 | CI100: 0,00 | CW100: 0,00 | DK100: 0,00 | DZ100: 0,00 | EJ100: 0,00 | EX100: 0,00
A101: из них: для оказания услуг (выполнения работ) в рамках утвержденного государственного (муниципального) задания | AL101: 3110 | AR101: 0,00 | BF101: 0,00 | BU101: 0,00 | CI101: 0,00 | CW101: 0,00 | DK101: 0,00 | DZ101: 0,00 | EJ101: 0,00 | EX101: 0,00
A102: для иной деятельности | AL102: 3200 | AR102: 0,00 | BF102: 0,00 | BU102: 0,00 | CI102: 0,00 | CW102: 0,00 | DK102: 0,00 | DZ102: 0,00 | EJ102: 0,00 | EX102: 0,00
A103: Прочие основные средства, всего | AL103: 4000 | AR103: 0,00 | BF103: 0,00 | BU103: 0,00 | CI103: 0,00 | CW103: 0,00 | DK103: 0,00 | DZ103: 0,00 | EJ103: 0,00 | EX103: 0,00
A104: в том числе: для основной деятельности | AL104: 4100 | AR104: 0,00 | BF104: 0,00 | BU104: 0,00 | CI104: 0,00 | CW104: 0,00 | DK104: 0,00 | DZ104: 0,00 | EJ104: 0,00 | EX104: 0,00
A105: из них: для оказания услуг (выполнения работ) в рамках утвержденного государственного (муниципального) задания | AL105: 4110 | AR105: 0,00 | BF105: 0,00 | BU105: 0,00 | CI105: 0,00 | CW105: 0,00 | DK105: 0,00 | DZ105: 0,00 | EJ105: 0,00 | EX105: 0,00
A106: для иной деятельности | AL106: 4200 | AR106: 0,00 | BF106: 0,00 | BU106: 0,00 | CI106: 0,00 | CW106: 0,00 | DK106: 0,00 | DZ106: 0,00 | EJ106: 0,00 | EX106: 0,00
A107: Итого | AL107: 9000 | AR107: 0 | BF107: =BF95 -> 0 | BU107: 0 | CI107: 0 | CW107: 0 | DK107: 0 | DZ107: 0 | EJ107: 0 | EX107: 0
A110: Руководитель (уполномоченное лицо) Учреждения
AD111: (должность) | CC111: (подпись) | DP111: (расшифровка подписи)
A112: Исполнитель по разделу 1 | AD112: Ведущий бухгалтер ТМЦ | CC112: Идиятова Эльза Наилевна | DP112: 598-33-22 (8104)
AD113: (должность) | CC113: (фамилия, инициалы) | DP113: (телефон)
A114: Исполнитель по разделу 2
AD115: (должность) | CC115: (фамилия, инициалы) | DP115: (телефон)

Sheet НИ исп по дог.аренды
B1: Сведения о недвижимом имуществе, используемом по договору аренды
EY3: КОДЫ
BS4: на 1 | BX4: января | CK4: 2026 | CQ4: г. | EC4: Дата | EY4: 01.01.2026
EC5: по Сводному реестру
EC6: ИНН
A7: Учреждение | AG7: МБУДО "Факел" Вахитовского района г. Казани | EC7: КПП
A8: Орган, осуществляющий функции и полномочия учредителя | EC8: глава по БК
A9: Публично-правовое образование | AG9: город Казань | EC9: по ОКТМО | EY9: 92701000001
A10: Периодичность: годовая
A12: Раздел 1. Сведения о недвижимом имуществе, используемом на праве аренды с помесячной оплатой
A14: Наименование объекта | AA14: Адрес | AG14: Единица измерения | AX14: Код строки | BD14: Количество арендуемого имущества | BM14: Арендодатель (ссудодатель) | CJ14: Срок пользования | DB14: Арендная плата | DQ14: Фактические расходы на содержание арендованного имущества (руб./год) | EB14: Направление использования арендованного имущества | EY14: Обоснование заключения договора аренды
AG15: наименование | AR15: код по ОКЕИ | BM15: наименование | BX15: ИНН | CC15: код по КИСЭ | CJ15: начала | CT15: окончания | DB15: за единицу меры (руб./мес.) | DJ15: за объект (руб./год) | EB15: для осуществления основной деятельности 27 | EN15: для осуществления иной деятельности 28
A16: 1 | AA16: 2 | AG16: 3 | AR16: 4 | AX16: 5 | BD16: 6 | BM16: 7 | BX16: 8 | CC16: 9 | CJ16: 10 | CT16: 11 | DB16: 12 | DJ16: 13 | DQ16: 14 | EB16: 15 | EN16: 16 | EY16: 17
A17: Площадные объекты ²⁵, всего | AA17: х | AG17: Квадратный метр | AR17: 055 | AX17: 1000 | BD17: 0,00 | BM17: х | BX17: х | CC17: х | CJ17: х | CT17: х | DB17: х | DJ17: 0,00 | DQ17: 0,00 | EB17: х | EN17: х | EY17: х
A18: Линейные объекты ²⁶, всего | AA18: х | AG18: Метр | AR18: 006 | AX18: 2000 | BD18: 0,00 | BM18: х | BX18: х | CC18: х | CJ18: х | CT18: х | DB18: х | DJ18: 0,00 | DQ18: 0,00 | EB18: х | EN18: х | EY18: х
A19: Резервуары, емкости, иные аналогичные объекты, всего | AA19: х | AG19: Кубический метр | AR19: 113 | AX19: 3000 | BD19: 0,00 | BM19: х | BX19: х | CC19: х | CJ19: х | CT19: х | DB19: х | DJ19: 0,00 | DQ19: 0,00 | EB19: х | EN19: х | EY19: х
A20: Скважины, иные аналогичные объекты, всего | AA20: х | AG20: Метр | AR20: 006 | AX20: 4000 | BD20: 0,00 | BM20: х | BX20: х | CC20: х | CJ20: х | CT20: х | DB20: х | DJ20: 0,00 | DQ20: 0,00 | EB20: х | EN20: х | EY20: х
A21: Иные объекты, включая точечные, всего | AA21: х | AG21: Штука | AR21: 796 | AX21: 5000 | BD21: 0,00 | BM21: х | BX21: х | CC21: х | CJ21: х | CT21: х | DB21: х | DJ21: 0,00 | DQ21: 0,00 | EB21: х | EN21: х | EY21: х
A22: Итого | AX22: 9000 | BD22: х | BM22: х | BX22: х | CC22: х | CJ22: х | CT22: х | DB22: х | DJ22: 0,00 | DQ22: 0,00 | EB22: х | EN22: х | EY22: х
A24: Раздел 2. Сведения о недвижимом имуществе, используемом на праве аренды с почасовой оплатой
A26: Наименование объекта | AA26: Адрес | AG26: Единица измерения | AX26: Код строки | BD26: Количество арендуемого имущества | BM26: Арендодатель (ссудодатель) | CJ26: Длительность использования (час) | CT26: Арендная плата | DQ26: Фактические расходы на содержание объекта недвижимого имущества (руб./год) | EB26: Направление использования объекта недвижимого имущества | EY26: Обоснование заключения договора аренды
AG27: наименование | AR27: код по ОКЕИ | BM27: наименование | BX27: ИНН | CC27: код по КИСЭ | CT27: за единицу меры (руб./час) | DB27: за объект (руб./час) | DJ27: всего за год (руб.) | EB27: для осуществления основной деятельности ²⁷ | EN27: для осуществления иной деятельности ²⁸
A28: 1 | AA28: 2 | AG28: 3 | AR28: 4 | AX28: 5 | BD28: 6 | BM28: 7 | BX28: 8 | CC28: 9 | CJ28: 10 | CT28: 11 | DB28: 12 | DJ28: 13 | DQ28: 14 | EB28: 15 | EN28: 16 | EY28: 17
A29: Площадные объекты ²⁵, всего | AA29: х | AG29: Квадратный метр | AR29: 055 | AX29: 1000 | BD29: 0,00 | BM29: х | BX29: х | CC29: х | CJ29: х | CT29: х | DB29: х | DJ29: 0,00 | DQ29: 0,00 | EB29: х | EN29: х | EY29: х
A30: Линейные объекты ²⁶, всего | AA30: х | AG30: Метр | AR30: 006 | AX30: 2000 | BD30: 0,00 | BM30: х | BX30: х | CC30: х | CJ30: х | CT30: х | DB30: х | DJ30: 0,00 | DQ30: 0,00 | EB30: х | EN30: х | EY30: х
A31: Резервуары, емкости, иные аналогичные объекты, всего | AA31: х | AG31: Кубический метр | AR31: 113 | AX31: 3000 | BD31: 0,00 | BM31: х | BX31: х | CC31: х | CJ31: х | CT31: х | DB31: х | DJ31: 0,00 | DQ31: 0,00 | EB31: х | EN31: х | EY31: х
A32: Скважины, иные аналогичные объекты, всего | AA32: х | AG32: Метр | AR32: 006 | AX32: 4000 | BD32: 0,00 | BM32: х | BX32: х | CC32: х | CJ32: х | CT32: х | DB32: х | DJ32: 0,00 | DQ32: 0,00 | EB32: х | EN32: х | EY32: х
A33: Иные объекты, включая точечные, всего | AA33: х | AG33: Штука | AR33: 796 | AX33: 5000 | BD33: 0,00 | BM33: х | BX33: х | CC33: х | CJ33: х | CT33: х | DB33: х | DJ33: 0,00 | DQ33: 0,00 | EB33: х | EN33: х | EY33: х
A34: Итого | AX34: 9000 | BD34: х | BM34: х | BX34: х | CC34: х | CJ34: х | CT34: х | DB34: х | DJ34: 0,00 | DQ34: 0,00 | EB34: х | EN34: х | EY34: х
A37: ²⁷ Указывается направление использования объекта недвижимого имущества "1" - для осуществления основной деятельности в рамках государственного (муниципального) задания, "2" - для осуществления основной деятельности за плату сверх государственного (муниципального) задания.
A38: ²⁸ Указывается направление использования объекта недвижимого имущества "3" - проведение концертно-зрелищных мероприятий и иных культурно-массовых мероприятий, "4" - проведение спортивных мероприятий, "5" - проведение конференций, семинаров, выставок, переговоров, встреч, совещаний, съездов, конгрессов, "6" - для иных мероприятий.
A41: Руководитель (уполномоченное лицо) Учреждения
AD42: (должность) | CC42: (подпись) | DP42: (расшифровка подписи)
A43: Исполнитель
AD44: (должность) | CC44: (фамилия, инициалы) | DP44: (телефон)
A46: " | F46: " | R46: 20 | X46: г.

Sheet Безвозм.польз. НИ
B1: Сведения о недвижимом имуществе, используемом по договору безвозмездного пользования (договору ссуды)
EV3: КОДЫ
BS4: на 1 | BX4: января | CK4: 2026 | CQ4: г. | DY4: Дата | EV4: 01.01.2026
DY5: по Сводному реестру
DY6: ИНН | EV6: 1655030953
A7: Учреждение | Y7: МБУДО "Факел" Вахитовского района г. Казани | DY7: КПП | EV7: 165501001
A8: Орган, осуществляющий функции и полномочия учредителя | DY8: глава по БК
A9: Публично-правовое образование | Y9: город Казань | DY9: по ОКТМО | EV9: 92701000
A10: Периодичность: годовая
A12: Наименование объекта | Y12: Адрес | AG12: Единица измерения | BA12: Код строки | BG12: Количество имущества | BQ12: Ссудодатель | CR12: Срок пользования | DI12: Фактические расходы на содержание объекта недвижимого имущества (руб./год) | DX12: Направление использования объекта недвижимого имущества | EV12: Обоснование заключения договора ссуды
AG13: наименование | AR13: код по ОКЕИ | BQ13: наименование | CB13: ИНН | CJ13: код по КИСЭ | CR13: начала | CZ13: окончания | DX13: для осуществления основной деятельности 27 | EJ13: для осуществления иной деятельности 28
A14: 1 | Y14: 2 | AG14: 3 | AR14: 4 | BA14: 5 | BG14: 6 | BQ14: 7 | CB14: 8 | CJ14: 9 | CR14: 10 | CZ14: 11 | DI14: 12 | DX14: 13 | EJ14: 14 | EV14: 15
A15: Площадные объекты ²⁵, всего | Y15: х | AG15: Квадратный метр | AR15: 055 | BA15: 1000 | BG15: =BG16+BG17+BG18 -> 1051.7 | BQ15: х | CB15: х | CJ15: х | CR15: х | CZ15: х | DI15: 0,00 | DX15: х | EJ15: х | EV15: х
A16: Помещение №16,26,59 | Y16: г.Казань, ул. К.Тинчурина | AG16: кв.м. | AR16: 055 | BA16: 1001 | BG16: 406.7 | BQ16: МБОУ "Школа№51" | CB16: 1654036568 | CR16: 20.12.2023 | CZ16: 20.12.2028
A17: Помещение №1,23,35 | Y17: г.Казань, ул. К.Тинчурина | AG17: кв.м. | AR17: 055 | BA17: 1002 | BG17: 95.7 | BQ17: МБОУ "Школа№51" | CB17: 1654036568 | CR17: 20.12.2023 | CZ17: 20.12.2028
A18: Помещение №1 в здании ангара | Y18: г.Казань, ул. К.Тинчурина | AG18: кв.м. | AR18: 055 | BA18: 1003 | BG18: 549.3 | BQ18: МБОУ "Школа№98 | CB18: 1655037839 | CR18: 11.01.2024 | CZ18: 11.01.2029
A19: Линейные объекты ²⁶, всего | Y19: х | AG19: Метр | AR19: 006 | BA19: 2000 | BG19: 0,00 | BQ19: х | CB19: х | CJ19: х | CR19: х | CZ19: х | DI19: 0,00 | DX19: х | EJ19: х | EV19: х
A20: Резервуары, емкости, иные аналогичные объекты, всего | Y20: х | AG20: Кубический метр | AR20: 113 | BA20: 3000 | BG20: 0,00 | BQ20: х | CB20: х | CJ20: х | CR20: х | CZ20: х | DI20: 0,00 | DX20: х | EJ20: х | EV20: х
A21: Скважины, иные аналогичные объекты, всего | Y21: х | AG21: Метр | AR21: 006 | BA21: 4000 | BG21: 0,00 | BQ21: х | CB21: х | CJ21: х | CR21: х | CZ21: х | DI21: 0,00 | DX21: х | EJ21: х | EV21: х
A22: Иные объекты, включая точечные, всего | Y22: х | AG22: Штука | AR22: 796 | BA22: 5000 | BG22: 0,00 | BQ22: х | CB22: х | CJ22: х | CR22: х | CZ22: х | DI22: 0,00 | DX22: х | EJ22: х | EV22: х
A23: Итого | BA23: 9000 | BG23: =BG16+BG17+BG18 -> 1051.7 | BQ23: х | CB23: х | CJ23: х | CR23: х | CZ23: х | DI23: 0,00 | DX23: х | EJ23: х | EV23: х
A26: Руководитель (уполномоченное лицо) Учреждения
AD27: (должность) | CC27: (подпись) | DP27: (расшифровка подписи)
A28: Исполнитель по разделу 1 | AD28: Ведущий бухгалтер ТМЦ | CC28: Идиятова Эльза Наилевна | DP28: 598-33-22 (8104)
AD29: (должность) | CC29: (фамилия, инициалы) | DP29: (телефон)
A31: " | F31: " | R31: 20 | X31: г.

Sheet Транспорт-1
B1: Сведения о транспортных средствах
EW3: КОДЫ
BS4: на 1 | BX4: января | CK4: 2026 | CQ4: г. | EH4: Дата | EW4: 01.01.2026
EF5: по Сводному реестру
EH6: ИНН | EW6: 1655030953
A7: Учреждение | AB7: МБУДО "Факел" Вахитовского района г. Казани | EH7: КПП | EW7: 165501001
A8: Орган, осуществляющий функции и полномочия учредителя | EH8: глава по БК
A10: Публично-правовое образование | AB10: город Казань | EH10: по ОКТМО | EW10: 92701000
A11: Периодичность: годовая
A12: Раздел 1. Сведения об используемых транспортных средствах
A14: Наименование показателя | AK14: Код строки | AQ14: Транспортные средства, ед.
AQ15: всего | BU15: в том числе:
BU16: в оперативном управлении учреждения | DA16: по договорам аренды | EG16: по договорам безвозмездного пользования
AQ17: на отчетную дату | BF17: в среднем за год | BU17: на отчетную дату | CK17: в среднем за год | DA17: на отчетную дату | DQ17: в среднем за год | EG17: на отчетную дату | EW17: в среднем за год
A18: 1 | AK18: 2 | AQ18: 3 | BF18: 4 | BU18: 5 | CK18: 6 | DA18: 7 | DQ18: 8 | EG18: 9 | EW18: 10
A19: Наземные транспортные средства | AK19: 1000 | AQ19: 0,00 | BF19: 0,00 | BU19: 0,00 | CK19: 0,00 | DA19: 0,00 | DQ19: 0,00 | EG19: 0,00 | EW19: 0,00
A20: автомобили легковые (за исключением автомобилей скорой медицинской помощи), всего | AK20: 1100 | AQ20: 2 | BF20: 2 | BU20: 2 | CK20: 2 | DA20: 0,00 | DQ20: 0,00 | EG20: 0,00 | EW20: 0,00
A21: в том числе:30 средней стоимостью менее 3 миллионов рублей, с года выпуска которых прошло не более 3 лет | AK21: 1101 | AQ21: 0,00 | BF21: 0,00 | BU21: 0,00 | CK21: 0,00 | DA21: 0,00 | DQ21: 0,00 | EG21: 0,00 | EW21: 0,00
A22: средней стоимостью менее 3 миллионов рублей, с года выпуска которых прошло более 3 лет | AK22: 1102 | AQ22: 0,00 | BF22: 0,00 | BU22: 0,00 | CK22: 0,00 | DA22: 0,00 | DQ22: 0,00 | EG22: 0,00 | EW22: 0,00
A23: средней стоимостью от 3 миллионов до 5 миллионов рублей включительно, с года выпуска которых прошло не более 3 лет | AK23: 1103 | AQ23: 0,00 | BF23: 0,00 | BU23: 0,00 | CK23: 0,00 | DA23: 0,00 | DQ23: 0,00 | EG23: 0,00 | EW23: 0,00
A24: средней стоимостью от 3 миллионов до 5 миллионов рублей включительно, с года выпуска которых прошло более 3 лет | AK24: 1104 | AQ24: 0,00 | BF24: 0,00 | BU24: 0,00 | CK24: 0,00 | DA24: 0,00 | DQ24: 0,00 | EG24: 0,00 | EW24: 0,00
A25: средней стоимостью от 5 миллионов до 10 миллионов рублей включительно, с года выпуска которых прошло не более 3 лет | AK25: 1105 | AQ25: 0,00 | BF25: 0,00 | BU25: 0,00 | CK25: 0,00 | DA25: 0,00 | DQ25: 0,00 | EG25: 0,00 | EW25: 0,00
A26: средней стоимостью от 5 миллионов до 10 миллионов рублей включительно, с года выпуска которых прошло более 3 лет | AK26: 1106 | AQ26: 0,00 | BF26: 0,00 | BU26: 0,00 | CK26: 0,00 | DA26: 0,00 | DQ26: 0,00 | EG26: 0,00 | EW26: 0,00
A27: средней стоимостью от 10 миллионов до 15 миллионов рублей включительно | AK27: 1107 | AQ27: 0,00 | BF27: 0,00 | BU27: 0,00 | CK27: 0,00 | DA27: 0,00 | DQ27: 0,00 | EG27: 0,00 | EW27: 0,00
A28: средней стоимостью от 15 миллионов рублей | AK28: 1108 | AQ28: 0,00 | BF28: 0,00 | BU28: 0,00 | CK28: 0,00 | DA28: 0,00 | DQ28: 0,00 | EG28: 0,00 | EW28: 0,00
A29: автомобили скорой медицинской помощи | AK29: 1200 | AQ29: 0,00 | BF29: 0,00 | BU29: 0,00 | CK29: 0,00 | DA29: 0,00 | DQ29: 0,00 | EG29: 0,00 | EW29: 0,00
A30: автомобили грузовые, за исключением специальных | AK30: 1300 | AQ30: 0,00 | BF30: 0,00 | BU30: 0,00 | CK30: 0,00 | DA30: 0,00 | DQ30: 0,00 | EG30: 0,00 | EW30: 0,00
A31: специальные грузовые автомашины (молоковозы, скотовозы, специальные машины для перевозки птицы, машины для перевозки минеральных удобрений, ветеринарной помощи, технического обслуживания) | AK31: 1400 | AQ31: 0,00 | BF31: 0,00 | BU31: 0,00 | CK31: 0,00 | DA31: 0,00 | DQ31: 0,00 | EG31: 0,00 | EW31: 0,00
A32: автобусы | AK32: 1500 | AQ32: 0.00 | BF32: 0.00 | BU32: 0.00 | CK32: 0.00 | DA32: 0.00 | DQ32: 0.00 | EG32: 0.00 | EW32: 0.00
A33: тракторы самоходные, комбайны | AK33: 1600 | AQ33: 0,00 | BF33: 0,00 | BU33: 0,00 | CK33: 0,00 | DA33: 0,00 | DQ33: 0,00 | EG33: 0,00 | EW33: 0,00
A34: мотосани, снегоходы | AK34: 1700 | AQ34: 0,00 | BF34: 0,00 | BU34: 0,00 | CK34: 0,00 | DA34: 0,00 | DQ34: 0,00 | EG34: 0,00 | EW34: 0,00
A35: прочие самоходные машины и механизмы на пневматическом и гусеничном ходу | AK35: 1800 | AQ35: 0,00 | BF35: 0,00 | BU35: 0,00 | CK35: 0,00 | DA35: 0,00 | DQ35: 0,00 | EG35: 0,00 | EW35: 0,00
A36: мотоциклы, мотороллеры | AK36: 1900 | AQ36: 0,00 | BF36: 0,00 | BU36: 0,00 | CK36: 0,00 | DA36: 0,00 | DQ36: 0,00 | EG36: 0,00 | EW36: 0,00
A37: Воздушные судна | AK37: 2000 | AQ37: 0,00 | BF37: 0,00 | BU37: 0,00 | CK37: 0,00 | DA37: 0,00 | DQ37: 0,00 | EG37: 0,00 | EW37: 0,00
A38: самолеты, всего | AK38: 2100 | AQ38: 0,00 | BF38: 0,00 | BU38: 0,00 | CK38: 0,00 | DA38: 0,00 | DQ38: 0,00 | EG38: 0,00 | EW38: 0,00
A39: в том числе:30 самолеты пассажирские | AK39: 2101 | AQ39: 0,00 | BF39: 0,00 | BU39: 0,00 | CK39: 0,00 | DA39: 0,00 | DQ39: 0,00 | EG39: 0,00 | EW39: 0,00
A40: самолеты грузовые | AK40: 2102 | AQ40: 0,00 | BF40: 0,00 | BU40: 0,00 | CK40: 0,00 | DA40: 0,00 | DQ40: 0,00 | EG40: 0,00 | EW40: 0,00
A41: самолеты пожарные | AK41: 2103 | AQ41: 0,00 | BF41: 0,00 | BU41: 0,00 | CK41: 0,00 | DA41: 0,00 | DQ41: 0,00 | EG41: 0,00 | EW41: 0,00
A42: самолеты аварийно-технической службы | AK42: 2104 | AQ42: 0,00 | BF42: 0,00 | BU42: 0,00 | CK42: 0,00 | DA42: 0,00 | DQ42: 0,00 | EG42: 0,00 | EW42: 0,00
A43: другие самолеты | AK43: 2105 | AQ43: 0,00 | BF43: 0,00 | BU43: 0,00 | CK43: 0,00 | DA43: 0,00 | DQ43: 0,00 | EG43: 0,00 | EW43: 0,00
A44: вертолеты, всего | AK44: 2200 | AQ44: 0,00 | BF44: 0,00 | BU44: 0,00 | CK44: 0,00 | DA44: 0,00 | DQ44: 0,00 | EG44: 0,00 | EW44: 0,00
A45: в том числе:30 вертолеты пассажирские | AK45: 2201 | AQ45: 0,00 | BF45: 0,00 | BU45: 0,00 | CK45: 0,00 | DA45: 0,00 | DQ45: 0,00 | EG45: 0,00 | EW45: 0,00
A46: вертолеты грузовые | AK46: 2202 | AQ46: 0,00 | BF46: 0,00 | BU46: 0,00 | CK46: 0,00 | DA46: 0,00 | DQ46: 0,00 | EG46: 0,00 | EW46: 0,00
A47: вертолеты пожарные | AK47: 2203 | AQ47: 0,00 | BF47: 0,00 | BU47: 0,00 | CK47: 0,00 | DA47: 0,00 | DQ47: 0,00 | EG47: 0,00 | EW47: 0,00
A48: вертолеты аварийно-технической службы | AK48: 2204 | AQ48: 0,00 | BF48: 0,00 | BU48: 0,00 | CK48: 0,00 | DA48: 0,00 | DQ48: 0,00 | EG48: 0,00 | EW48: 0,00
A49: другие вертолеты | AK49: 2205 | AQ49: 0,00 | BF49: 0,00 | BU49: 0,00 | CK49: 0,00 | DA49: 0,00 | DQ49: 0,00 | EG49: 0,00 | EW49: 0,00
A50: воздушные транспортные средства, не имеющие двигателей | AK50: 2206 | AQ50: 0,00 | BF50: 0,00 | BU50: 0,00 | CK50: 0,00 | DA50: 0,00 | DQ50: 0,00 | EG50: 0,00 | EW50: 0,00
A51: Водные транспортные средства | AK51: 3000 | AQ51: 0,00 | BF51: 0,00 | BU51: 0,00 | CK51: 0,00 | DA51: 0,00 | DQ51: 0,00 | EG51: 0,00 | EW51: 0,00
A52: суда пассажирские морские и речные | AK52: 3100 | AQ52: 0,00 | BF52: 0,00 | BU52: 0,00 | CK52: 0,00 | DA52: 0,00 | DQ52: 0,00 | EG52: 0,00 | EW52: 0,00
A53: суда грузовые морские и речные самоходные | AK53: 3200 | AQ53: 0,00 | BF53: 0,00 | BU53: 0,00 | CK53: 0,00 | DA53: 0,00 | DQ53: 0,00 | EG53: 0,00 | EW53: 0,00
A54: яхты | AK54: 3300 | AQ54: 0,00 | BF54: 0,00 | BU54: 0,00 | CK54: 0,00 | DA54: 0,00 | DQ54: 0,00 | EG54: 0,00 | EW54: 0,00
A55: катера | AK55: 3400 | AQ55: 0,00 | BF55: 0,00 | BU55: 0,00 | CK55: 0,00 | DA55: 0,00 | DQ55: 0,00 | EG55: 0,00 | EW55: 0,00
A56: гидроциклы | AK56: 3500 | AQ56: 0,00 | BF56: 0,00 | BU56: 0,00 | CK56: 0,00 | DA56: 0,00 | DQ56: 0,00 | EG56: 0,00 | EW56: 0,00
A57: моторные лодки | AK57: 3600 | AQ57: 0,00 | BF57: 0,00 | BU57: 0,00 | CK57: 0,00 | DA57: 0,00 | DQ57: 0,00 | EG57: 0,00 | EW57: 0,00
A58: парусно-моторные суда | AK58: 3700 | AQ58: 0,00 | BF58: 0,00 | BU58: 0,00 | CK58: 0,00 | DA58: 0,00 | DQ58: 0,00 | EG58: 0,00 | EW58: 0,00
A59: другие водные транспортные средства самоходные | AK59: 3800 | AQ59: 0,00 | BF59: 0,00 | BU59: 0,00 | CK59: 0,00 | DA59: 0,00 | DQ59: 0,00 | EG59: 0,00 | EW59: 0,00
A60: несамоходные (буксируемые) суда и иные транспортные средства (водные транспортные средства, не имеющие двигателей) | AK60: 3900 | AQ60: 0,00 | BF60: 0,00 | BU60: 0,00 | CK60: 0,00 | DA60: 0,00 | DQ60: 0,00 | EG60: 0,00 | EW60: 0,00
A61: Итого | AK61: 9000 | AQ61: 2 | BF61: 2 | BU61: 2 | CK61: 2 | DA61: 0 | DQ61: 0,00 | EG61: 0,00 | EW61: 0,00
A64: 30_Показатели формируются в случае, если требование о детализации установлено органом, осуществляющим функции и полномочия учредителя.
B66: Раздел 2. Сведения о неиспользуемых транспортных средствах, находящихся в оперативном управлении учреждения
A68: Наименование показателя | AK68: Код строки | AQ68: Передано во временное пользование сторонним организациям (индивидуальным предпринимателям) | CQ68: Не используется
AQ69: всего | AX69: в том числе: | CQ69: всего | DA69: в том числе:
AX70: на основании договоров аренды | BM70: на основании договоров безвозмездного пользования | CB70: без оформления права пользования | DA70: проводится капитальный ремонт и/или реконструкция | DQ70: в связи с аварийным состоянием (требуется ремонт) | EG70: в связи с аварийным состоянием (подлежит списанию)31 | EW70: излишнее имущество (подлежит передаче в казну РФ)
A71: 1 | AK71: 2 | AQ71: 3 | AX71: 4 | BM71: 5 | CB71: 6 | CQ71: 7 | DA71: 8 | DQ71: 9 | EG71: 10 | EW71: 11
A72: Наземные транспортные средства | AK72: 1000 | AQ72: 0 | AX72: 0 | BM72: 0 | CB72: 0 | CQ72: 0 | DA72: 0 | DQ72: 0 | EG72: 0 | EW72: 0
A73: автомобили легковые (за исключением автомобилей скорой медицинской помощи), всего | AK73: 1100 | AQ73: 0,00 | AX73: 0,00 | BM73: 0,00 | CB73: 0,00 | CQ73: 0,00 | DA73: 0,00 | DQ73: 0,00 | EG73: 0,00 | EW73: 0,00
A74: в том числе:30 средней стоимостью менее 3 миллионов рублей, с года выпуска которых прошло не более 3 лет | AK74: 1101 | AQ74: 0,00 | AX74: 0,00 | BM74: 0,00 | CB74: 0,00 | CQ74: 0,00 | DA74: 0,00 | DQ74: 0,00 | EG74: 0,00 | EW74: 0,00
A75: средней стоимостью менее 3 миллионов рублей, с года выпуска которых прошло более 3 лет | AK75: 1102 | AQ75: 0,00 | AX75: 0,00 | BM75: 0,00 | CB75: 0,00 | CQ75: 0,00 | DA75: 0,00 | DQ75: 0,00 | EG75: 0,00 | EW75: 0,00
A76: средней стоимостью от 3 миллионов до 5 миллионов рублей включительно, с года выпуска которых прошло не более 3 лет | AK76: 1103 | AQ76: 0,00 | AX76: 0,00 | BM76: 0,00 | CB76: 0,00 | CQ76: 0,00 | DA76: 0,00 | DQ76: 0,00 | EG76: 0,00 | EW76: 0,00
A77: средней стоимостью от 3 миллионов до 5 миллионов рублей включительно, с года выпуска которых прошло более 3 лет | AK77: 1104 | AQ77: 0,00 | AX77: 0,00 | BM77: 0,00 | CB77: 0,00 | CQ77: 0,00 | DA77: 0,00 | DQ77: 0,00 | EG77: 0,00 | EW77: 0,00
A78: средней стоимостью от 5 миллионов до 10 миллионов рублей включительно, с года выпуска которых прошло не более 3 лет | AK78: 1105 | AQ78: 0,00 | AX78: 0,00 | BM78: 0,00 | CB78: 0,00 | CQ78: 0,00 | DA78: 0,00 | DQ78: 0,00 | EG78: 0,00 | EW78: 0,00
A79: средней стоимостью от 5 миллионов до 10 миллионов рублей включительно, с года выпуска которых прошло более 3 лет | AK79: 1106 | AQ79: 0,00 | AX79: 0,00 | BM79: 0,00 | CB79: 0,00 | CQ79: 0,00 | DA79: 0,00 | DQ79: 0,00 | EG79: 0,00 | EW79: 0,00
A80: средней стоимостью от 10 миллионов до 15 миллионов рублей включительно | AK80: 1107 | AQ80: 0,00 | AX80: 0,00 | BM80: 0,00 | CB80: 0,00 | CQ80: 0,00 | DA80: 0,00 | DQ80: 0,00 | EG80: 0,00 | EW80: 0,00
A81: средней стоимостью от 15 миллионов рублей | AK81: 1108 | AQ81: 0,00 | AX81: 0,00 | BM81: 0,00 | CB81: 0,00 | CQ81: 0,00 | DA81: 0,00 | DQ81: 0,00 | EG81: 0,00 | EW81: 0,00
A82: автомобили скорой медицинской помощи | AK82: 1200 | AQ82: 0,00 | AX82: 0,00 | BM82: 0,00 | CB82: 0,00 | CQ82: 0,00 | DA82: 0,00 | DQ82: 0,00 | EG82: 0,00 | EW82: 0,00
A83: автомобили грузовые, за исключением специальных | AK83: 1300 | AQ83: 0,00 | AX83: 0,00 | BM83: 0,00 | CB83: 0,00 | CQ83: 0,00 | DA83: 0,00 | DQ83: 0,00 | EG83: 0,00 | EW83: 0,00
A84: специальные грузовые автомашины (молоковозы, скотовозы, специальные машины для перевозки птицы, машины для перевозки минеральных удобрений, ветеринарной помощи, технического обслуживания) | AK84: 1400 | AQ84: 0,00 | AX84: 0,00 | BM84: 0,00 | CB84: 0,00 | CQ84: 0,00 | DA84: 0,00 | DQ84: 0,00 | EG84: 0,00 | EW84: 0,00
A85: автобусы | AK85: 1500 | AQ85: 0,00 | AX85: 0,00 | BM85: 0,00 | CB85: 0,00 | CQ85: 0,00 | DA85: 0,00 | DQ85: 0,00 | EG85: 0,00 | EW85: 0,00
A86: тракторы самоходные, комбайны | AK86: 1600 | AQ86: 0,00 | AX86: 0,00 | BM86: 0,00 | CB86: 0,00 | CQ86: 0,00 | DA86: 0,00 | DQ86: 0,00 | EG86: 0,00 | EW86: 0,00
A87: мотосани, снегоходы | AK87: 1700 | AQ87: 0,00 | AX87: 0,00 | BM87: 0,00 | CB87: 0,00 | CQ87: 0,00 | DA87: 0,00 | DQ87: 0,00 | EG87: 0,00 | EW87: 0,00
A88: прочие самоходные машины и механизмы на пневматическом и гусеничном ходу | AK88: 1800 | AQ88: 0,00 | AX88: 0,00 | BM88: 0,00 | CB88: 0,00 | CQ88: 0,00 | DA88: 0,00 | DQ88: 0,00 | EG88: 0,00 | EW88: 0,00
A89: мотоциклы, мотороллеры | AK89: 1900 | AQ89: 0,00 | AX89: 0,00 | BM89: 0,00 | CB89: 0,00 | CQ89: 0,00 | DA89: 0,00 | DQ89: 0,00 | EG89: 0,00 | EW89: 0,00
A90: Воздушные судна | AK90: 2000 | AQ90: 0,00 | AX90: 0,00 | BM90: 0,00 | CB90: 0,00 | CQ90: 0,00 | DA90: 0,00 | DQ90: 0,00 | EG90: 0,00 | EW90: 0,00
A91: самолеты, всего | AK91: 2100 | AQ91: 0,00 | AX91: 0,00 | BM91: 0,00 | CB91: 0,00 | CQ91: 0,00 | DA91: 0,00 | DQ91: 0,00 | EG91: 0,00 | EW91: 0,00
A92: в том числе:30 самолеты пассажирские | AK92: 2101 | AQ92: 0,00 | AX92: 0,00 | BM92: 0,00 | CB92: 0,00 | CQ92: 0,00 | DA92: 0,00 | DQ92: 0,00 | EG92: 0,00 | EW92: 0,00
A93: самолеты грузовые | AK93: 2102 | AQ93: 0,00 | AX93: 0,00 | BM93: 0,00 | CB93: 0,00 | CQ93: 0,00 | DA93: 0,00 | DQ93: 0,00 | EG93: 0,00 | EW93: 0,00
A94: самолеты пожарные | AK94: 2103 | AQ94: 0,00 | AX94: 0,00 | BM94: 0,00 | CB94: 0,00 | CQ94: 0,00 | DA94: 0,00 | DQ94: 0,00 | EG94: 0,00 | EW94: 0,00
A95: самолеты аварийно-технической службы | AK95: 2104 | AQ95: 0,00 | AX95: 0,00 | BM95: 0,00 | CB95: 0,00 | CQ95: 0,00 | DA95: 0,00 | DQ95: 0,00 | EG95: 0,00 | EW95: 0,00
A96: другие самолеты | AK96: 2105 | AQ96: 0,00 | AX96: 0,00 | BM96: 0,00 | CB96: 0,00 | CQ96: 0,00 | DA96: 0,00 | DQ96: 0,00 | EG96: 0,00 | EW96: 0,00
A97: вертолеты, всего | AK97: 2200 | AQ97: 0,00 | AX97: 0,00 | BM97: 0,00 | CB97: 0,00 | CQ97: 0,00 | DA97: 0,00 | DQ97: 0,00 | EG97: 0,00 | EW97: 0,00
A98: в том числе:30 вертолеты пассажирские | AK98: 2201 | AQ98: 0,00 | AX98: 0,00 | BM98: 0,00 | CB98: 0,00 | CQ98: 0,00 | DA98: 0,00 | DQ98: 0,00 | EG98: 0,00 | EW98: 0,00
A99: вертолеты грузовые | AK99: 2202 | AQ99: 0,00 | AX99: 0,00 | BM99: 0,00 | CB99: 0,00 | CQ99: 0,00 | DA99: 0,00 | DQ99: 0,00 | EG99: 0,00 | EW99: 0,00
A100: вертолеты пожарные | AK100: 2203 | AQ100: 0,00 | AX100: 0,00 | BM100: 0,00 | CB100: 0,00 | CQ100: 0,00 | DA100: 0,00 | DQ100: 0,00 | EG100: 0,00 | EW100: 0,00
A101: вертолеты аварийно-технической службы | AK101: 2204 | AQ101: 0,00 | AX101: 0,00 | BM101: 0,00 | CB101: 0,00 | CQ101: 0,00 | DA101: 0,00 | DQ101: 0,00 | EG101: 0,00 | EW101: 0,00
A102: другие вертолеты | AK102: 2205 | AQ102: 0,00 | AX102: 0,00 | BM102: 0,00 | CB102: 0,00 | CQ102: 0,00 | DA102: 0,00 | DQ102: 0,00 | EG102: 0,00 | EW102: 0,00
A103: воздушные транспортные средства, не имеющие двигателей | AK103: 2206 | AQ103: 0,00 | AX103: 0,00 | BM103: 0,00 | CB103: 0,00 | CQ103: 0,00 | DA103: 0,00 | DQ103: 0,00 | EG103: 0,00 | EW103: 0,00
A104: Водные транспортные средства | AK104: 3000 | AQ104: 0,00 | AX104: 0,00 | BM104: 0,00 | CB104: 0,00 | CQ104: 0,00 | DA104: 0,00 | DQ104: 0,00 | EG104: 0,00 | EW104: 0,00
A105: суда пассажирские морские и речные | AK105: 3100 | AQ105: 0,00 | AX105: 0,00 | BM105: 0,00 | CB105: 0,00 | CQ105: 0,00 | DA105: 0,00 | DQ105: 0,00 | EG105: 0,00 | EW105: 0,00
A106: суда грузовые морские и речные самоходные | AK106: 3200 | AQ106: 0,00 | AX106: 0,00 | BM106: 0,00 | CB106: 0,00 | CQ106: 0,00 | DA106: 0,00 | DQ106: 0,00 | EG106: 0,00 | EW106: 0,00
A107: яхты | AK107: 3300 | AQ107: 0,00 | AX107: 0,00 | BM107: 0,00 | CB107: 0,00 | CQ107: 0,00 | DA107: 0,00 | DQ107: 0,00 | EG107: 0,00 | EW107: 0,00
A108: катера | AK108: 3400 | AQ108: 0,00 | AX108: 0,00 | BM108: 0,00 | CB108: 0,00 | CQ108: 0,00 | DA108: 0,00 | DQ108: 0,00 | EG108: 0,00 | EW108: 0,00
A109: гидроциклы | AK109: 3500 | AQ109: 0,00 | AX109: 0,00 | BM109: 0,00 | CB109: 0,00 | CQ109: 0,00 | DA109: 0,00 | DQ109: 0,00 | EG109: 0,00 | EW109: 0,00
A110: моторные лодки | AK110: 3600 | AQ110: 0,00 | AX110: 0,00 | BM110: 0,00 | CB110: 0,00 | CQ110: 0,00 | DA110: 0,00 | DQ110: 0,00 | EG110: 0,00 | EW110: 0,00
A111: парусно-моторные суда | AK111: 3700 | AQ111: 0,00 | AX111: 0,00 | BM111: 0,00 | CB111: 0,00 | CQ111: 0,00 | DA111: 0,00 | DQ111: 0,00 | EG111: 0,00 | EW111: 0,00
A112: другие водные транспортные средства самоходные | AK112: 3800 | AQ112: 0,00 | AX112: 0,00 | BM112: 0,00 | CB112: 0,00 | CQ112: 0,00 | DA112: 0,00 | DQ112: 0,00 | EG112: 0,00 | EW112: 0,00
A113: несамоходные (буксируемые) суда и иные транспортные средства (водные транспортные средства, не имеющие двигателей) | AK113: 3900 | AQ113: 0,00 | AX113: 0,00 | BM113: 0,00 | CB113: 0,00 | CQ113: 0,00 | DA113: 0,00 | DQ113: 0,00 | EG113: 0,00 | EW113: 0,00
A114: Итого | AK114: 9000 | AQ114: 0,00 | AX114: 0,00 | BM114: 0,00 | CB114: 0,00 | CQ114: 0,00 | DA114: 0,00 | DQ114: 0,00 | EG114: 0,00 | EW114: 0,00
A116: 31_Указываются транспортные средства, в отношении которых принято решение о списании, ожидается согласование органом, осуществляющим функции и полномочия учредителя.
A118: Руководитель (уполномоченное лицо) Учреждения
AK119: (должность) | BY119: (подпись) | DR119: (расшифровка подписи)
A120: Исполнитель | AK120: Ведущий бухгалтер ТМЦ | CJ120: Идиятова Эльза Наилевна | DW120: 598-33-22 (8104)
AK121: (должность) | BY121: (фамилия, инициалы) | DR121: (телефон)
A123: " | F123: " | R123: 20 | X123: г.

Sheet Транспорт-2
B1: Сведения о транспортных средствах
EW3: КОДЫ
BS4: на 1 | BX4: января | CK4: 2026 | CQ4: г. | EH4: Дата | EW4: 01.01.2026
EF5: по Сводному реестру
EH6: ИНН | EW6: 1655030953
A7: Учреждение | AB7: МБУДО "Факел" Вахитовского района г. Казани | EH7: КПП | EW7: 165501001
A8: Орган, осуществляющий функции и полномочия учредителя | EH8: глава по БК
A10: Публично-правовое образование | AB10: город Казань | EH10: по ОКТМО | EW10: 92701000
A11: Периодичность: годовая
B14: Раздел 3. Направления использования транспортных средств
A16: Наименование показателя | Y16: Код строки | AD16: Транспортные средства, непосредственно используемые в целях оказания услуг, выполнения работ | BW16: Транспортные средства, используемые в общехозяйственных целях
BW17: в целях обслуживания административно-управленческого персонала | DQ17: в иных целях 32
AD18: всего | AO18: в том числе: | BW18: всего | CI18: в том числе: | DQ18: всего | EC18: в том числе:
AO19: в оперативном управлении учреждения, ед. | AZ19: по договорам аренды, ед. | BL19: по договорам безвозмездного пользования, ед. | CI19: в оперативном управлении учреждения, ед. | CT19: по договорам аренды, ед. | DF19: по договорам безвозмездного пользования, ед. | EC19: в оперативном управлении учреждения, ед. | EN19: по договорам аренды, ед. | EZ19: по договорам безвозмездного пользования, ед.
AD20: на отчетную дату | AJ20: в среднем за год | AO20: на отчетную дату | AU20: в среднем за год | AZ20: на отчетную дату | BF20: в среднем за год | BL20: на отчетную дату | BR20: в среднем за год | BW20: на отчетную дату | CC20: в среднем за год | CI20: на отчетную дату | CO20: в среднем за год | CT20: на отчетную дату | CZ20: в среднем за год | DF20: на отчетную дату | DL20: в среднем за год | DQ20: на отчетную дату | DW20: в среднем за год | EC20: на отчетную дату | EI20: в среднем за год | EN20: на отчетную дату | ET20: в среднем за год | EZ20: на отчетную дату | FF20: в среднем за год
A21: 1 | Y21: 2 | AD21: 3 | AJ21: 4 | AO21: 5 | AU21: 6 | AZ21: 7 | BF21: 8 | BL21: 9 | BR21: 10 | BW21: 11 | CC21: 12 | CI21: 13 | CO21: 14 | CT21: 15 | CZ21: 16 | DF21: 17 | DL21: 18 | DQ21: 19 | DW21: 20 | EC21: 21 | EI21: 22 | EN21: 23 | ET21: 24 | EZ21: 25 | FF21: 26
A22: Наземные транспортные средства | Y22: 1000 | AD22: 0,00 | AJ22: 0,00 | AO22: 0,00 | AU22: 0,00 | AZ22: 0,00 | BF22: 0,00 | BL22: 0,00 | BR22: 0,00 | BW22: 0,00 | CC22: 0,00 | CI22: 0,00 | CO22: 0,00 | CT22: 0,00 | CZ22: 0,00 | DF22: 0,00 | DL22: 0,00 | DQ22: 0,00 | DW22: 0,00 | EC22: 0,00 | EI22: 0,00 | EN22: 0,00 | ET22: 0,00 | EZ22: 0,00 | FF22: 0,00
A23: автомобили легковые (за исключением автомобилей скорой медицинской помощи), всего | Y23: 1100 | AD23: 0,00 | AJ23: 0,00 | AO23: 0,00 | AU23: 0,00 | AZ23: 0,00 | BF23: 0,00 | BL23: 0,00 | BR23: 0,00 | BW23: 0,00 | CC23: 0,00 | CI23: 0,00 | CO23: 0,00 | CT23: 0,00 | CZ23: 0,00 | DF23: 0,00 | DL23: 0,00 | DQ23: 0,00 | DW23: 0,00 | EC23: 0,00 | EI23: 0,00 | EN23: 0,00 | ET23: 0,00 | EZ23: 0,00 | FF23: 0,00
A24: в том числе:30 средней стоимостью менее 3 миллионов рублей, с года выпуска которых прошло не более 3 лет | Y24: 1101 | AD24: 0,00 | AJ24: 0,00 | AO24: 0,00 | AU24: 0,00 | AZ24: 0,00 | BF24: 0,00 | BL24: 0,00 | BR24: 0,00 | BW24: 0,00 | CC24: 0,00 | CI24: 0,00 | CO24: 0,00 | CT24: 0,00 | CZ24: 0,00 | DF24: 0,00 | DL24: 0,00 | DQ24: 0,00 | DW24: 0,00 | EC24: 0,00 | EI24: 0,00 | EN24: 0,00 | ET24: 0,00 | EZ24: 0,00 | FF24: 0,00
A25: средней стоимостью менее 3 миллионов рублей, с года выпуска которых прошло более 3 лет | Y25: 1102 | AD25: 0,00 | AJ25: 0,00 | AO25: 0,00 | AU25: 0,00 | AZ25: 0,00 | BF25: 0,00 | BL25: 0,00 | BR25: 0,00 | BW25: 0,00 | CC25: 0,00 | CI25: 0,00 | CO25: 0,00 | CT25: 0,00 | CZ25: 0,00 | DF25: 0,00 | DL25: 0,00 | DQ25: 0,00 | DW25: 0,00 | EC25: 0,00 | EI25: 0,00 | EN25: 0,00 | ET25: 0,00 | EZ25: 0,00 | FF25: 0,00
A26: средней стоимостью от 3 миллионов до 5 миллионов рублей включительно, с года выпуска которых прошло не более 3 лет | Y26: 1103 | AD26: 0,00 | AJ26: 0,00 | AO26: 0,00 | AU26: 0,00 | AZ26: 0,00 | BF26: 0,00 | BL26: 0,00 | BR26: 0,00 | BW26: 0,00 | CC26: 0,00 | CI26: 0,00 | CO26: 0,00 | CT26: 0,00 | CZ26: 0,00 | DF26: 0,00 | DL26: 0,00 | DQ26: 0,00 | DW26: 0,00 | EC26: 0,00 | EI26: 0,00 | EN26: 0,00 | ET26: 0,00 | EZ26: 0,00 | FF26: 0,00
A27: средней стоимостью от 3 миллионов до 5 миллионов рублей включительно, с года выпуска которых прошло более 3 лет | Y27: 1104 | AD27: 0,00 | AJ27: 0,00 | AO27: 0,00 | AU27: 0,00 | AZ27: 0,00 | BF27: 0,00 | BL27: 0,00 | BR27: 0,00 | BW27: 0,00 | CC27: 0,00 | CI27: 0,00 | CO27: 0,00 | CT27: 0,00 | CZ27: 0,00 | DF27: 0,00 | DL27: 0,00 | DQ27: 0,00 | DW27: 0,00 | EC27: 0,00 | EI27: 0,00 | EN27: 0,00 | ET27: 0,00 | EZ27: 0,00 | FF27: 0,00
A28: средней стоимостью от 5 миллионов до 10 миллионов рублей включительно, с года выпуска которых прошло не более 3 лет | Y28: 1105 | AD28: 0,00 | AJ28: 0,00 | AO28: 0,00 | AU28: 0,00 | AZ28: 0,00 | BF28: 0,00 | BL28: 0,00 | BR28: 0,00 | BW28: 0,00 | CC28: 0,00 | CI28: 0,00 | CO28: 0,00 | CT28: 0,00 | CZ28: 0,00 | DF28: 0,00 | DL28: 0,00 | DQ28: 0,00 | DW28: 0,00 | EC28: 0,00 | EI28: 0,00 | EN28: 0,00 | ET28: 0,00 | EZ28: 0,00 | FF28: 0,00
A29: средней стоимостью от 5 миллионов до 10 миллионов рублей включительно, с года выпуска которых прошло более 3 лет | Y29: 1106 | AD29: 0,00 | AJ29: 0,00 | AO29: 0,00 | AU29: 0,00 | AZ29: 0,00 | BF29: 0,00 | BL29: 0,00 | BR29: 0,00 | BW29: 0,00 | CC29: 0,00 | CI29: 0,00 | CO29: 0,00 | CT29: 0,00 | CZ29: 0,00 | DF29: 0,00 | DL29: 0,00 | DQ29: 0,00 | DW29: 0,00 | EC29: 0,00 | EI29: 0,00 | EN29: 0,00 | ET29: 0,00 | EZ29: 0,00 | FF29: 0,00
A30: средней стоимостью от 10 миллионов до 15 миллионов рублей включительно | Y30: 1107 | AD30: 0,00 | AJ30: 0,00 | AO30: 0,00 | AU30: 0,00 | AZ30: 0,00 | BF30: 0,00 | BL30: 0,00 | BR30: 0,00 | BW30: 0,00 | CC30: 0,00 | CI30: 0,00 | CO30: 0,00 | CT30: 0,00 | CZ30: 0,00 | DF30: 0,00 | DL30: 0,00 | DQ30: 0,00 | DW30: 0,00 | EC30: 0,00 | EI30: 0,00 | EN30: 0,00 | ET30: 0,00 | EZ30: 0,00 | FF30: 0,00
A31: средней стоимостью от 15 миллионов рублей | Y31: 1108 | AD31: 0,00 | AJ31: 0,00 | AO31: 0,00 | AU31: 0,00 | AZ31: 0,00 | BF31: 0,00 | BL31: 0,00 | BR31: 0,00 | BW31: 0,00 | CC31: 0,00 | CI31: 0,00 | CO31: 0,00 | CT31: 0,00 | CZ31: 0,00 | DF31: 0,00 | DL31: 0,00 | DQ31: 0,00 | DW31: 0,00 | EC31: 0,00 | EI31: 0,00 | EN31: 0,00 | ET31: 0,00 | EZ31: 0,00 | FF31: 0,00
A32: автомобили скорой медицинской помощи | Y32: 1200 | AD32: 0,00 | AJ32: 0,00 | AO32: 0,00 | AU32: 0,00 | AZ32: 0,00 | BF32: 0,00 | BL32: 0,00 | BR32: 0,00 | BW32: 0,00 | CC32: 0,00 | CI32: 0,00 | CO32: 0,00 | CT32: 0,00 | CZ32: 0,00 | DF32: 0,00 | DL32: 0,00 | DQ32: 0,00 | DW32: 0,00 | EC32: 0,00 | EI32: 0,00 | EN32: 0,00 | ET32: 0,00 | EZ32: 0,00 | FF32: 0,00
A33: автомобили грузовые, за исключением специальных | Y33: 1300 | AD33: 0,00 | AJ33: 0,00 | AO33: 0,00 | AU33: 0,00 | AZ33: 0,00 | BF33: 0,00 | BL33: 0,00 | BR33: 0,00 | BW33: 0,00 | CC33: 0,00 | CI33: 0,00 | CO33: 0,00 | CT33: 0,00 | CZ33: 0,00 | DF33: 0,00 | DL33: 0,00 | DQ33: 0,00 | DW33: 0,00 | EC33: 0,00 | EI33: 0,00 | EN33: 0,00 | ET33: 0,00 | EZ33: 0,00 | FF33: 0,00
A34: специальные грузовые автомашины (молоковозы, скотовозы, специальные машины для перевозки птицы, машины для перевозки минеральных удобрений, ветеринарной помощи, технического обслуживания) | Y34: 1400 | AD34: 0,00 | AJ34: 0,00 | AO34: 0,00 | AU34: 0,00 | AZ34: 0,00 | BF34: 0,00 | BL34: 0,00 | BR34: 0,00 | BW34: 0 | CC34: 0,00 | CI34: 0,00 | CO34: 0,00 | CT34: 0,00 | CZ34: 0,00 | DF34: 0,00 | DL34: 0,00 | DQ34: 0,00 | DW34: 0,00 | EC34: 0,00 | EI34: 0,00 | EN34: 0,00 | ET34: 0,00 | EZ34: 0,00 | FF34: 0,00
A35: автобусы | Y35: 1500 | AD35: 0,00 | AJ35: 0,00 | AO35: 0,00 | AU35: 0,00 | AZ35: 0,00 | BF35: 0,00 | BL35: 0,00 | BR35: 0,00 | BW35: 0,00 | CC35: 0,00 | CI35: 0,00 | CO35: 0,00 | CT35: 0,00 | CZ35: 0,00 | DF35: 0,00 | DL35: 0,00 | DQ35: 0,00 | DW35: 0,00 | EC35: 0,00 | EI35: 0,00 | EN35: 0,00 | ET35: 0,00 | EZ35: 0,00 | FF35: 0,00
A36: тракторы самоходные, комбайны | Y36: 1600 | AD36: 0,00 | AJ36: 0,00 | AO36: 0,00 | AU36: 0,00 | AZ36: 0,00 | BF36: 0,00 | BL36: 0,00 | BR36: 0,00 | BW36: 0,00 | CC36: 0,00 | CI36: 0,00 | CO36: 0,00 | CT36: 0,00 | CZ36: 0,00 | DF36: 0,00 | DL36: 0,00 | DQ36: 0,00 | DW36: 0,00 | EC36: 0,00 | EI36: 0,00 | EN36: 0,00 | ET36: 0,00 | EZ36: 0,00 | FF36: 0,00
A37: мотосани, снегоходы | Y37: 1700 | AD37: 0,00 | AJ37: 0,00 | AO37: 0,00 | AU37: 0,00 | AZ37: 0,00 | BF37: 0,00 | BL37: 0,00 | BR37: 0,00 | BW37: 0,00 | CC37: 0,00 | CI37: 0,00 | CO37: 0,00 | CT37: 0,00 | CZ37: 0,00 | DF37: 0,00 | DL37: 0,00 | DQ37: 0,00 | DW37: 0,00 | EC37: 0,00 | EI37: 0,00 | EN37: 0,00 | ET37: 0,00 | EZ37: 0,00 | FF37: 0,00
A38: прочие самоходные машины и механизмы на пневматическом и гусеничном ходу | Y38: 1800 | AD38: 0,00 | AJ38: 0,00 | AO38: 0,00 | AU38: 0,00 | AZ38: 0,00 | BF38: 0,00 | BL38: 0,00 | BR38: 0,00 | BW38: 0,00 | CC38: 0,00 | CI38: 0,00 | CO38: 0,00 | CT38: 0,00 | CZ38: 0,00 | DF38: 0,00 | DL38: 0,00 | DQ38: 0,00 | DW38: 0,00 | EC38: 0,00 | EI38: 0,00 | EN38: 0,00 | ET38: 0,00 | EZ38: 0,00 | FF38: 0,00
A39: мотоциклы, мотороллеры | Y39: 1900 | AD39: 0,00 | AJ39: 0,00 | AO39: 0,00 | AU39: 0,00 | AZ39: 0,00 | BF39: 0,00 | BL39: 0,00 | BR39: 0,00 | BW39: 0,00 | CC39: 0,00 | CI39: 0,00 | CO39: 0,00 | CT39: 0,00 | CZ39: 0,00 | DF39: 0,00 | DL39: 0,00 | DQ39: 0,00 | DW39: 0,00 | EC39: 0,00 | EI39: 0,00 | EN39: 0,00 | ET39: 0,00 | EZ39: 0,00 | FF39: 0,00
A40: Воздушные судна | Y40: 2000 | AD40: 0,00 | AJ40: 0,00 | AO40: 0,00 | AU40: 0,00 | AZ40: 0,00 | BF40: 0,00 | BL40: 0,00 | BR40: 0,00 | BW40: 0,00 | CC40: 0,00 | CI40: 0,00 | CO40: 0,00 | CT40: 0,00 | CZ40: 0,00 | DF40: 0,00 | DL40: 0,00 | DQ40: 0,00 | DW40: 0,00 | EC40: 0,00 | EI40: 0,00 | EN40: 0,00 | ET40: 0,00 | EZ40: 0,00 | FF40: 0,00
A41: самолеты, всего | Y41: 2100 | AD41: 0,00 | AJ41: 0,00 | AO41: 0,00 | AU41: 0,00 | AZ41: 0,00 | BF41: 0,00 | BL41: 0,00 | BR41: 0,00 | BW41: 0,00 | CC41: 0,00 | CI41: 0,00 | CO41: 0,00 | CT41: 0,00 | CZ41: 0,00 | DF41: 0,00 | DL41: 0,00 | DQ41: 0,00 | DW41: 0,00 | EC41: 0,00 | EI41: 0,00 | EN41: 0,00 | ET41: 0,00 | EZ41: 0,00 | FF41: 0,00
A42: в том числе:30 самолеты пассажирские | Y42: 2101 | AD42: 0,00 | AJ42: 0,00 | AO42: 0,00 | AU42: 0,00 | AZ42: 0,00 | BF42: 0,00 | BL42: 0,00 | BR42: 0,00 | BW42: 0,00 | CC42: 0,00 | CI42: 0,00 | CO42: 0,00 | CT42: 0,00 | CZ42: 0,00 | DF42: 0,00 | DL42: 0,00 | DQ42: 0,00 | DW42: 0,00 | EC42: 0,00 | EI42: 0,00 | EN42: 0,00 | ET42: 0,00 | EZ42: 0,00 | FF42: 0,00
A43: самолеты грузовые | Y43: 2102 | AD43: 0,00 | AJ43: 0,00 | AO43: 0,00 | AU43: 0,00 | AZ43: 0,00 | BF43: 0,00 | BL43: 0,00 | BR43: 0,00 | BW43: 0,00 | CC43: 0,00 | CI43: 0,00 | CO43: 0,00 | CT43: 0,00 | CZ43: 0,00 | DF43: 0,00 | DL43: 0,00 | DQ43: 0,00 | DW43: 0,00 | EC43: 0,00 | EI43: 0,00 | EN43: 0,00 | ET43: 0,00 | EZ43: 0,00 | FF43: 0,00
A44: самолеты пожарные | Y44: 2103 | AD44: 0,00 | AJ44: 0,00 | AO44: 0,00 | AU44: 0,00 | AZ44: 0,00 | BF44: 0,00 | BL44: 0,00 | BR44: 0,00 | BW44: 0,00 | CC44: 0,00 | CI44: 0,00 | CO44: 0,00 | CT44: 0,00 | CZ44: 0,00 | DF44: 0,00 | DL44: 0,00 | DQ44: 0,00 | DW44: 0,00 | EC44: 0,00 | EI44: 0,00 | EN44: 0,00 | ET44: 0,00 | EZ44: 0,00 | FF44: 0,00
A45: самолеты аварийно-технической службы | Y45: 2104 | AD45: 0,00 | AJ45: 0,00 | AO45: 0,00 | AU45: 0,00 | AZ45: 0,00 | BF45: 0,00 | BL45: 0,00 | BR45: 0,00 | BW45: 0,00 | CC45: 0,00 | CI45: 0,00 | CO45: 0,00 | CT45: 0,00 | CZ45: 0,00 | DF45: 0,00 | DL45: 0,00 | DQ45: 0,00 | DW45: 0,00 | EC45: 0,00 | EI45: 0,00 | EN45: 0,00 | ET45: 0,00 | EZ45: 0,00 | FF45: 0,00
A46: другие самолеты | Y46: 2105 | AD46: 0,00 | AJ46: 0,00 | AO46: 0,00 | AU46: 0,00 | AZ46: 0,00 | BF46: 0,00 | BL46: 0,00 | BR46: 0,00 | BW46: 0,00 | CC46: 0,00 | CI46: 0,00 | CO46: 0,00 | CT46: 0,00 | CZ46: 0,00 | DF46: 0,00 | DL46: 0,00 | DQ46: 0,00 | DW46: 0,00 | EC46: 0,00 | EI46: 0,00 | EN46: 0,00 | ET46: 0,00 | EZ46: 0,00 | FF46: 0,00
A47: вертолеты, всего | Y47: 2200 | AD47: 0,00 | AJ47: 0,00 | AO47: 0,00 | AU47: 0,00 | AZ47: 0,00 | BF47: 0,00 | BL47: 0,00 | BR47: 0,00 | BW47: 0,00 | CC47: 0,00 | CI47: 0,00 | CO47: 0,00 | CT47: 0,00 | CZ47: 0,00 | DF47: 0,00 | DL47: 0,00 | DQ47: 0,00 | DW47: 0,00 | EC47: 0,00 | EI47: 0,00 | EN47: 0,00 | ET47: 0,00 | EZ47: 0,00 | FF47: 0,00
A48: в том числе:30 вертолеты пассажирские | Y48: 2201 | AD48: 0,00 | AJ48: 0,00 | AO48: 0,00 | AU48: 0,00 | AZ48: 0,00 | BF48: 0,00 | BL48: 0,00 | BR48: 0,00 | BW48: 0,00 | CC48: 0,00 | CI48: 0,00 | CO48: 0,00 | CT48: 0,00 | CZ48: 0,00 | DF48: 0,00 | DL48: 0,00 | DQ48: 0,00 | DW48: 0,00 | EC48: 0,00 | EI48: 0,00 | EN48: 0,00 | ET48: 0,00 | EZ48: 0,00 | FF48: 0,00
A49: вертолеты грузовые | Y49: 2202 | AD49: 0,00 | AJ49: 0,00 | AO49: 0,00 | AU49: 0,00 | AZ49: 0,00 | BF49: 0,00 | BL49: 0,00 | BR49: 0,00 | BW49: 0,00 | CC49: 0,00 | CI49: 0,00 | CO49: 0,00 | CT49: 0,00 | CZ49: 0,00 | DF49: 0,00 | DL49: 0,00 | DQ49: 0,00 | DW49: 0,00 | EC49: 0,00 | EI49: 0,00 | EN49: 0,00 | ET49: 0,00 | EZ49: 0,00 | FF49: 0,00
A50: вертолеты пожарные | Y50: 2203 | AD50: 0,00 | AJ50: 0,00 | AO50: 0,00 | AU50: 0,00 | AZ50: 0,00 | BF50: 0,00 | BL50: 0,00 | BR50: 0,00 | BW50: 0,00 | CC50: 0,00 | CI50: 0,00 | CO50: 0,00 | CT50: 0,00 | CZ50: 0,00 | DF50: 0,00 | DL50: 0,00 | DQ50: 0,00 | DW50: 0,00 | EC50: 0,00 | EI50: 0,00 | EN50: 0,00 | ET50: 0,00 | EZ50: 0,00 | FF50: 0,00
A51: вертолеты аварийно-технической службы | Y51: 2204 | AD51: 0,00 | AJ51: 0,00 | AO51: 0,00 | AU51: 0,00 | AZ51: 0,00 | BF51: 0,00 | BL51: 0,00 | BR51: 0,00 | BW51: 0,00 | CC51: 0,00 | CI51: 0,00 | CO51: 0,00 | CT51: 0,00 | CZ51: 0,00 | DF51: 0,00 | DL51: 0,00 | DQ51: 0,00 | DW51: 0,00 | EC51: 0,00 | EI51: 0,00 | EN51: 0,00 | ET51: 0,00 | EZ51: 0,00 | FF51: 0,00
A52: другие вертолеты | Y52: 2205 | AD52: 0,00 | AJ52: 0,00 | AO52: 0,00 | AU52: 0,00 | AZ52: 0,00 | BF52: 0,00 | BL52: 0,00 | BR52: 0,00 | BW52: 0,00 | CC52: 0,00 | CI52: 0,00 | CO52: 0,00 | CT52: 0,00 | CZ52: 0,00 | DF52: 0,00 | DL52: 0,00 | DQ52: 0,00 | DW52: 0,00 | EC52: 0,00 | EI52: 0,00 | EN52: 0,00 | ET52: 0,00 | EZ52: 0,00 | FF52: 0,00
A53: воздушные транспортные средства, не имеющие двигателей | Y53: 2206 | AD53: 0,00 | AJ53: 0,00 | AO53: 0,00 | AU53: 0,00 | AZ53: 0,00 | BF53: 0,00 | BL53: 0,00 | BR53: 0,00 | BW53: 0,00 | CC53: 0,00 | CI53: 0,00 | CO53: 0,00 | CT53: 0,00 | CZ53: 0,00 | DF53: 0,00 | DL53: 0,00 | DQ53: 0,00 | DW53: 0,00 | EC53: 0,00 | EI53: 0,00 | EN53: 0,00 | ET53: 0,00 | EZ53: 0,00 | FF53: 0,00
A54: Водные транспортные средства | Y54: 3000 | AD54: 0,00 | AJ54: 0,00 | AO54: 0,00 | AU54: 0,00 | AZ54: 0,00 | BF54: 0,00 | BL54: 0,00 | BR54: 0,00 | BW54: 0,00 | CC54: 0,00 | CI54: 0,00 | CO54: 0,00 | CT54: 0,00 | CZ54: 0,00 | DF54: 0,00 | DL54: 0,00 | DQ54: 0,00 | DW54: 0,00 | EC54: 0,00 | EI54: 0,00 | EN54: 0,00 | ET54: 0,00 | EZ54: 0,00 | FF54: 0,00
A55: суда пассажирские морские и речные | Y55: 3100 | AD55: 0,00 | AJ55: 0,00 | AO55: 0,00 | AU55: 0,00 | AZ55: 0,00 | BF55: 0,00 | BL55: 0,00 | BR55: 0,00 | BW55: 0,00 | CC55: 0,00 | CI55: 0,00 | CO55: 0,00 | CT55: 0,00 | CZ55: 0,00 | DF55: 0,00 | DL55: 0,00 | DQ55: 0,00 | DW55: 0,00 | EC55: 0,00 | EI55: 0,00 | EN55: 0,00 | ET55: 0,00 | EZ55: 0,00 | FF55: 0,00
A56: суда грузовые морские и речные самоходные | Y56: 3200 | AD56: 0,00 | AJ56: 0,00 | AO56: 0,00 | AU56: 0,00 | AZ56: 0,00 | BF56: 0,00 | BL56: 0,00 | BR56: 0,00 | BW56: 0,00 | CC56: 0,00 | CI56: 0,00 | CO56: 0,00 | CT56: 0,00 | CZ56: 0,00 | DF56: 0,00 | DL56: 0,00 | DQ56: 0,00 | DW56: 0,00 | EC56: 0,00 | EI56: 0,00 | EN56: 0,00 | ET56: 0,00 | EZ56: 0,00 | FF56: 0,00
A57: яхты | Y57: 3300 | AD57: 0,00 | AJ57: 0,00 | AO57: 0,00 | AU57: 0,00 | AZ57: 0,00 | BF57: 0,00 | BL57: 0,00 | BR57: 0,00 | BW57: 0,00 | CC57: 0,00 | CI57: 0,00 | CO57: 0,00 | CT57: 0,00 | CZ57: 0,00 | DF57: 0,00 | DL57: 0,00 | DQ57: 0,00 | DW57: 0,00 | EC57: 0,00 | EI57: 0,00 | EN57: 0,00 | ET57: 0,00 | EZ57: 0,00 | FF57: 0,00
A58: катера | Y58: 3400 | AD58: 0,00 | AJ58: 0,00 | AO58: 0,00 | AU58: 0,00 | AZ58: 0,00 | BF58: 0,00 | BL58: 0,00 | BR58: 0,00 | BW58: 0,00 | CC58: 0,00 | CI58: 0,00 | CO58: 0,00 | CT58: 0,00 | CZ58: 0,00 | DF58: 0,00 | DL58: 0,00 | DQ58: 0,00 | DW58: 0,00 | EC58: 0,00 | EI58: 0,00 | EN58: 0,00 | ET58: 0,00 | EZ58: 0,00 | FF58: 0,00
A59: гидроциклы | Y59: 3500 | AD59: 0,00 | AJ59: 0,00 | AO59: 0,00 | AU59: 0,00 | AZ59: 0,00 | BF59: 0,00 | BL59: 0,00 | BR59: 0,00 | BW59: 0,00 | CC59: 0,00 | CI59: 0,00 | CO59: 0,00 | CT59: 0,00 | CZ59: 0,00 | DF59: 0,00 | DL59: 0,00 | DQ59: 0,00 | DW59: 0,00 | EC59: 0,00 | EI59: 0,00 | EN59: 0,00 | ET59: 0,00 | EZ59: 0,00 | FF59: 0,00
A60: моторные лодки | Y60: 3600 | AD60: 0,00 | AJ60: 0,00 | AO60: 0,00 | AU60: 0,00 | AZ60: 0,00 | BF60: 0,00 | BL60: 0,00 | BR60: 0,00 | BW60: 0,00 | CC60: 0,00 | CI60: 0,00 | CO60: 0,00 | CT60: 0,00 | CZ60: 0,00 | DF60: 0,00 | DL60: 0,00 | DQ60: 0,00 | DW60: 0,00 | EC60: 0,00 | EI60: 0,00 | EN60: 0,00 | ET60: 0,00 | EZ60: 0,00 | FF60: 0,00
A61: парусно-моторные суда | Y61: 3700 | AD61: 0,00 | AJ61: 0,00 | AO61: 0,00 | AU61: 0,00 | AZ61: 0,00 | BF61: 0,00 | BL61: 0,00 | BR61: 0,00 | BW61: 0,00 | CC61: 0,00 | CI61: 0,00 | CO61: 0,00 | CT61: 0,00 | CZ61: 0,00 | DF61: 0,00 | DL61: 0,00 | DQ61: 0,00 | DW61: 0,00 | EC61: 0,00 | EI61: 0,00 | EN61: 0,00 | ET61: 0,00 | EZ61: 0,00 | FF61: 0,00
A62: другие водные транспортные средства самоходные | Y62: 3800 | AD62: 0,00 | AJ62: 0,00 | AO62: 0,00 | AU62: 0,00 | AZ62: 0,00 | BF62: 0,00 | BL62: 0,00 | BR62: 0,00 | BW62: 0,00 | CC62: 0,00 | CI62: 0,00 | CO62: 0,00 | CT62: 0,00 | CZ62: 0,00 | DF62: 0,00 | DL62: 0,00 | DQ62: 0,00 | DW62: 0,00 | EC62: 0,00 | EI62: 0,00 | EN62: 0,00 | ET62: 0,00 | EZ62: 0,00 | FF62: 0,00
A63: несамоходные (буксируемые) суда и иные транспортные средства (водные транспортные средства, не имеющие двигателей) | Y63: 3900 | AD63: 0,00 | AJ63: 0,00 | AO63: 0,00 | AU63: 0,00 | AZ63: 0,00 | BF63: 0,00 | BL63: 0,00 | BR63: 0,00 | BW63: 0,00 | CC63: 0,00 | CI63: 0,00 | CO63: 0,00 | CT63: 0,00 | CZ63: 0,00 | DF63: 0,00 | DL63: 0,00 | DQ63: 0,00 | DW63: 0,00 | EC63: 0,00 | EI63: 0,00 | EN63: 0,00 | ET63: 0,00 | EZ63: 0,00 | FF63: 0,00
A64: Итого | Y64: 9000 | AD64: 0,00 | AJ64: 0,00 | AO64: 0,00 | AU64: 0,00 | AZ64: 0,00 | BF64: 0,00 | BL64: 0,00 | BR64: 0,00 | BW64: 0,00 | CC64: 0,00 | CI64: 0,00 | CO64: 0,00 | CT64: 0,00 | CZ64: 0,00 | DF64: 0,00 | DL64: 0,00 | DQ64: 0,00 | DW64: 0,00 | EC64: 0,00 | EI64: 0,00 | EN64: 0,00 | ET64: 0,00 | EZ64: 0,00 | FF64: 0,00
A67: 32_Указываются транспортные средства, используемые в целях уборки территории, вывоза мусора, перевозки имущества (грузов), а также в целях перевозки людей.
B69: Раздел 4. Сведения о расходах на содержание транспортных средств
A71: Наименование показателя | AK71: Код строки | AQ71: Расходы на содержание транспортных средств
AQ72: всего за отчетный период | AY72: в том числе:
AY73: на обслуживание транспортных средств | DH73: содержание гаражей | EA73: заработная плата обслуживающего персонала | FA73: уплата транспортного налога
AY74: расходы на горюче-смазочные материалы | BH74: приобретение (замена) колес, шин, дисков | BR74: расходы на ОСАГО | BY74: расходы на добровольное страхование | CI74: ремонт, включая приобретение запасных частей | CU74: техобслуживание сторонними организациями | DH74: аренда гаражей, парковочных мест | DR74: содержание гаражей | EA74: водителей | EI74: обслужи-вающего персонала гаражей | ER74: администра-тивного персонала гаражей
A75: 1 | AK75: 2 | AQ75: 3 | AY75: 4 | BH75: 5 | BR75: 6 | BY75: 7 | CI75: 8 | CU75: 9 | DH75: 10 | DR75: 11 | EA75: 12 | EI75: 13 | ER75: 14 | FA75: 15
A76: Наземные транспортные средства | AK76: 1000 | AQ76: 0,00 | AY76: 0,00 | BH76: 0,00 | BR76: 0,00 | BY76: 0,00 | CI76: 0,00 | CU76: 0,00 | DH76: 0,00 | DR76: 0,00 | EA76: 0,00 | EI76: 0,00 | ER76: 0,00 | FA76: 0,00
A77: автомобили легковые (за исключением автомобилей скорой медицинской помощи), всего | AK77: 1100 | AQ77: 0,00 | AY77: 112243,32 | BH77: 0,00 | BR77: 0,00 | BY77: 0,00 | CI77: 0,00 | CU77: 0,00 | DH77: 0,00 | DR77: 0,00 | EA77: 0,00 | EI77: 0,00 | ER77: 0,00 | FA77: 10915,00
A78: в том числе:30 средней стоимостью менее 3 миллионов рублей, с года выпуска которых прошло не более 3 лет | AK78: 1101 | AQ78: 0,00 | AY78: 0,00 | BH78: 0,00 | BR78: 0,00 | BY78: 0,00 | CI78: 0,00 | CU78: 0,00 | DH78: 0,00 | DR78: 0,00 | EA78: 0,00 | EI78: 0,00 | ER78: 0,00 | FA78: 0,00
A79: средней стоимостью менее 3 миллионов рублей, с года выпуска которых прошло более 3 лет | AK79: 1102 | AQ79: 0,00 | AY79: 0,00 | BH79: 0,00 | BR79: 0,00 | BY79: 0,00 | CI79: 0,00 | CU79: 0,00 | DH79: 0,00 | DR79: 0,00 | EA79: 0,00 | EI79: 0,00 | ER79: 0,00 | FA79: 0,00
A80: средней стоимостью от 3 миллионов до 5 миллионов рублей включительно, с года выпуска которых прошло не более 3 лет | AK80: 1103 | AQ80: 0,00 | AY80: 0,00 | BH80: 0,00 | BR80: 0,00 | BY80: 0,00 | CI80: 0,00 | CU80: 0,00 | DH80: 0,00 | DR80: 0,00 | EA80: 0,00 | EI80: 0,00 | ER80: 0,00 | FA80: 0,00
A81: средней стоимостью от 3 миллионов до 5 миллионов рублей включительно, с года выпуска которых прошло более 3 лет | AK81: 1104 | AQ81: 0,00 | AY81: 0,00 | BH81: 0,00 | BR81: 0,00 | BY81: 0,00 | CI81: 0,00 | CU81: 0,00 | DH81: 0,00 | DR81: 0,00 | EA81: 0,00 | EI81: 0,00 | ER81: 0,00 | FA81: 0,00
A82: средней стоимостью от 5 миллионов до 10 миллионов рублей включительно, с года выпуска которых прошло не более 3 лет | AK82: 1105 | AQ82: 0,00 | AY82: 0,00 | BH82: 0,00 | BR82: 0,00 | BY82: 0,00 | CI82: 0,00 | CU82: 0,00 | DH82: 0,00 | DR82: 0,00 | EA82: 0,00 | EI82: 0,00 | ER82: 0,00 | FA82: 0,00
A83: средней стоимостью от 5 миллионов до 10 миллионов рублей включительно, с года выпуска которых прошло более 3 лет | AK83: 1106 | AQ83: 0,00 | AY83: 0,00 | BH83: 0,00 | BR83: 0,00 | BY83: 0,00 | CI83: 0,00 | CU83: 0,00 | DH83: 0,00 | DR83: 0,00 | EA83: 0,00 | EI83: 0,00 | ER83: 0,00 | FA83: 0,00
A84: средней стоимостью от 10 миллионов до 15 миллионов рублей включительно | AK84: 1107 | AQ84: 0,00 | AY84: 0,00 | BH84: 0,00 | BR84: 0,00 | BY84: 0,00 | CI84: 0,00 | CU84: 0,00 | DH84: 0,00 | DR84: 0,00 | EA84: 0,00 | EI84: 0,00 | ER84: 0,00 | FA84: 0,00
A85: средней стоимостью от 15 миллионов рублей | AK85: 1108 | AQ85: 0,00 | AY85: 0,00 | BH85: 0,00 | BR85: 0,00 | BY85: 0,00 | CI85: 0,00 | CU85: 0,00 | DH85: 0,00 | DR85: 0,00 | EA85: 0,00 | EI85: 0,00 | ER85: 0,00 | FA85: 0,00
A86: автомобили скорой медицинской помощи | AK86: 1200 | AQ86: 0,00 | AY86: 0,00 | BH86: 0,00 | BR86: 0,00 | BY86: 0,00 | CI86: 0,00 | CU86: 0,00 | DH86: 0,00 | DR86: 0,00 | EA86: 0,00 | EI86: 0,00 | ER86: 0,00 | FA86: 0,00
A87: автомобили грузовые, за исключением специальных | AK87: 1300 | AQ87: 0,00 | AY87: 0,00 | BH87: 0,00 | BR87: 0,00 | BY87: 0,00 | CI87: 0,00 | CU87: 0,00 | DH87: 0,00 | DR87: 0,00 | EA87: 0,00 | EI87: 0,00 | ER87: 0,00 | FA87: 0,00
A88: специальные грузовые автомашины (молоковозы, скотовозы, специальные машины для перевозки птицы, машины для перевозки минеральных удобрений, ветеринарной помощи, технического обслуживания) | AK88: 1400 | AQ88: 0,00 | AY88: 0,00 | BH88: 0,00 | BR88: 0,00 | BY88: 0,00 | CI88: 0,00 | CU88: 0,00 | DH88: 0,00 | DR88: 0,00 | EA88: 0,00 | EI88: 0,00 | ER88: 0,00 | FA88: 0,00
A89: автобусы | AK89: 1500 | AQ89: 0,00 | AY89: 0,00 | BH89: 0,00 | BR89: 0,00 | BY89: 0,00 | CI89: 0,00 | CU89: 0,00 | DH89: 0,00 | DR89: 0,00 | EA89: 0,00 | EI89: 0,00 | ER89: 0,00 | FA89: 0
A90: тракторы самоходные, комбайны | AK90: 1600 | AQ90: 0,00 | AY90: 0,00 | BH90: 0,00 | BR90: 0,00 | BY90: 0,00 | CI90: 0,00 | CU90: 0,00 | DH90: 0,00 | DR90: 0,00 | EA90: 0,00 | EI90: 0,00 | ER90: 0,00 | FA90: 0,00
A91: мотосани, снегоходы | AK91: 1700 | AQ91: 0,00 | AY91: 0,00 | BH91: 0,00 | BR91: 0,00 | BY91: 0,00 | CI91: 0,00 | CU91: 0,00 | DH91: 0,00 | DR91: 0,00 | EA91: 0,00 | EI91: 0,00 | ER91: 0,00 | FA91: 0,00
A92: прочие самоходные машины и механизмы на пневматическом и гусеничном ходу | AK92: 1800 | AQ92: 0,00 | AY92: 0,00 | BH92: 0,00 | BR92: 0,00 | BY92: 0,00 | CI92: 0,00 | CU92: 0,00 | DH92: 0,00 | DR92: 0,00 | EA92: 0,00 | EI92: 0,00 | ER92: 0,00 | FA92: 0,00
A93: мотоциклы, мотороллеры | AK93: 1900 | AQ93: 0,00 | AY93: 0,00 | BH93: 0,00 | BR93: 0,00 | BY93: 0,00 | CI93: 0,00 | CU93: 0,00 | DH93: 0,00 | DR93: 0,00 | EA93: 0,00 | EI93: 0,00 | ER93: 0,00 | FA93: 0,00
A94: Воздушные судна | AK94: 2000 | AQ94: 0,00 | AY94: 0,00 | BH94: 0,00 | BR94: 0,00 | BY94: 0,00 | CI94: 0,00 | CU94: 0,00 | DH94: 0,00 | DR94: 0,00 | EA94: 0,00 | EI94: 0,00 | ER94: 0,00 | FA94: 0,00
A95: самолеты, всего | AK95: 2100 | AQ95: 0,00 | AY95: 0,00 | BH95: 0,00 | BR95: 0,00 | BY95: 0,00 | CI95: 0,00 | CU95: 0,00 | DH95: 0,00 | DR95: 0,00 | EA95: 0,00 | EI95: 0,00 | ER95: 0,00 | FA95: 0,00
A96: в том числе:30 самолеты пассажирские | AK96: 2101 | AQ96: 0,00 | AY96: 0,00 | BH96: 0,00 | BR96: 0,00 | BY96: 0,00 | CI96: 0,00 | CU96: 0,00 | DH96: 0,00 | DR96: 0,00 | EA96: 0,00 | EI96: 0,00 | ER96: 0,00 | FA96: 0,00
A97: самолеты грузовые | AK97: 2102 | AQ97: 0,00 | AY97: 0,00 | BH97: 0,00 | BR97: 0,00 | BY97: 0,00 | CI97: 0,00 | CU97: 0,00 | DH97: 0,00 | DR97: 0,00 | EA97: 0,00 | EI97: 0,00 | ER97: 0,00 | FA97: 0,00
A98: самолеты пожарные | AK98: 2103 | AQ98: 0,00 | AY98: 0,00 | BH98: 0,00 | BR98: 0,00 | BY98: 0,00 | CI98: 0,00 | CU98: 0,00 | DH98: 0,00 | DR98: 0,00 | EA98: 0,00 | EI98: 0,00 | ER98: 0,00 | FA98: 0,00
A99: самолеты аварийно-технической службы | AK99: 2104 | AQ99: 0,00 | AY99: 0,00 | BH99: 0,00 | BR99: 0,00 | BY99: 0,00 | CI99: 0,00 | CU99: 0,00 | DH99: 0,00 | DR99: 0,00 | EA99: 0,00 | EI99: 0,00 | ER99: 0,00 | FA99: 0,00
A100: другие самолеты | AK100: 2105 | AQ100: 0,00 | AY100: 0,00 | BH100: 0,00 | BR100: 0,00 | BY100: 0,00 | CI100: 0,00 | CU100: 0,00 | DH100: 0,00 | DR100: 0,00 | EA100: 0,00 | EI100: 0,00 | ER100: 0,00 | FA100: 0,00
A101: вертолеты, всего | AK101: 2200 | AQ101: 0,00 | AY101: 0,00 | BH101: 0,00 | BR101: 0,00 | BY101: 0,00 | CI101: 0,00 | CU101: 0,00 | DH101: 0,00 | DR101: 0,00 | EA101: 0,00 | EI101: 0,00 | ER101: 0,00 | FA101: 0,00
A102: в том числе:30 вертолеты пассажирские | AK102: 2201 | AQ102: 0,00 | AY102: 0,00 | BH102: 0,00 | BR102: 0,00 | BY102: 0,00 | CI102: 0,00 | CU102: 0,00 | DH102: 0,00 | DR102: 0,00 | EA102: 0,00 | EI102: 0,00 | ER102: 0,00 | FA102: 0,00
A103: вертолеты грузовые | AK103: 2202 | AQ103: 0,00 | AY103: 0,00 | BH103: 0,00 | BR103: 0,00 | BY103: 0,00 | CI103: 0,00 | CU103: 0,00 | DH103: 0,00 | DR103: 0,00 | EA103: 0,00 | EI103: 0,00 | ER103: 0,00 | FA103: 0,00
A104: вертолеты пожарные | AK104: 2203 | AQ104: 0,00 | AY104: 0,00 | BH104: 0,00 | BR104: 0,00 | BY104: 0,00 | CI104: 0,00 | CU104: 0,00 | DH104: 0,00 | DR104: 0,00 | EA104: 0,00 | EI104: 0,00 | ER104: 0,00 | FA104: 0,00
A105: вертолеты аварийно-технической службы | AK105: 2204 | AQ105: 0,00 | AY105: 0,00 | BH105: 0,00 | BR105: 0,00 | BY105: 0,00 | CI105: 0,00 | CU105: 0,00 | DH105: 0,00 | DR105: 0,00 | EA105: 0,00 | EI105: 0,00 | ER105: 0,00 | FA105: 0,00
A106: другие вертолеты | AK106: 2205 | AQ106: 0,00 | AY106: 0,00 | BH106: 0,00 | BR106: 0,00 | BY106: 0,00 | CI106: 0,00 | CU106: 0,00 | DH106: 0,00 | DR106: 0,00 | EA106: 0,00 | EI106: 0,00 | ER106: 0,00 | FA106: 0,00
A107: воздушные транспортные средства, не имеющие двигателей | AK107: 2206 | AQ107: 0,00 | AY107: 0,00 | BH107: 0,00 | BR107: 0,00 | BY107: 0,00 | CI107: 0,00 | CU107: 0,00 | DH107: 0,00 | DR107: 0,00 | EA107: 0,00 | EI107: 0,00 | ER107: 0,00 | FA107: 0,00
A108: Водные транспортные средства | AK108: 3000 | AQ108: 0,00 | AY108: 0,00 | BH108: 0,00 | BR108: 0,00 | BY108: 0,00 | CI108: 0,00 | CU108: 0,00 | DH108: 0,00 | DR108: 0,00 | EA108: 0,00 | EI108: 0,00 | ER108: 0,00 | FA108: 0,00
A109: суда пассажирские морские и речные | AK109: 3100 | AQ109: 0,00 | AY109: 0,00 | BH109: 0,00 | BR109: 0,00 | BY109: 0,00 | CI109: 0,00 | CU109: 0,00 | DH109: 0,00 | DR109: 0,00 | EA109: 0,00 | EI109: 0,00 | ER109: 0,00 | FA109: 0,00
A110: суда грузовые морские и речные самоходные | AK110: 3200 | AQ110: 0,00 | AY110: 0,00 | BH110: 0,00 | BR110: 0,00 | BY110: 0,00 | CI110: 0,00 | CU110: 0,00 | DH110: 0,00 | DR110: 0,00 | EA110: 0,00 | EI110: 0,00 | ER110: 0,00 | FA110: 0,00
A111: яхты | AK111: 3300 | AQ111: 0,00 | AY111: 0,00 | BH111: 0,00 | BR111: 0,00 | BY111: 0,00 | CI111: 0,00 | CU111: 0,00 | DH111: 0,00 | DR111: 0,00 | EA111: 0,00 | EI111: 0,00 | ER111: 0,00 | FA111: 0,00
A112: катера | AK112: 3400 | AQ112: 0,00 | AY112: 0,00 | BH112: 0,00 | BR112: 0,00 | BY112: 0,00 | CI112: 0,00 | CU112: 0,00 | DH112: 0,00 | DR112: 0,00 | EA112: 0,00 | EI112: 0,00 | ER112: 0,00 | FA112: 0,00
A113: гидроциклы | AK113: 3500 | AQ113: 0,00 | AY113: 0,00 | BH113: 0,00 | BR113: 0,00 | BY113: 0,00 | CI113: 0,00 | CU113: 0,00 | DH113: 0,00 | DR113: 0,00 | EA113: 0,00 | EI113: 0,00 | ER113: 0,00 | FA113: 0,00
A114: моторные лодки | AK114: 3600 | AQ114: 0,00 | AY114: 0,00 | BH114: 0,00 | BR114: 0,00 | BY114: 0,00 | CI114: 0,00 | CU114: 0,00 | DH114: 0,00 | DR114: 0,00 | EA114: 0,00 | EI114: 0,00 | ER114: 0,00 | FA114: 0,00
A115: парусно-моторные суда | AK115: 3700 | AQ115: 0,00 | AY115: 0,00 | BH115: 0,00 | BR115: 0,00 | BY115: 0,00 | CI115: 0,00 | CU115: 0,00 | DH115: 0,00 | DR115: 0,00 | EA115: 0,00 | EI115: 0,00 | ER115: 0,00 | FA115: 0,00
A116: другие водные транспортные средства самоходные | AK116: 3800 | AQ116: 0,00 | AY116: 0,00 | BH116: 0,00 | BR116: 0,00 | BY116: 0,00 | CI116: 0,00 | CU116: 0,00 | DH116: 0,00 | DR116: 0,00 | EA116: 0,00 | EI116: 0,00 | ER116: 0,00 | FA116: 0,00
A117: несамоходные (буксируемые) суда и иные транспортные средства (водные транспортные средства, не имеющие двигателей) | AK117: 3900 | AQ117: 0,00 | AY117: 0,00 | BH117: 0,00 | BR117: 0,00 | BY117: 0,00 | CI117: 0,00 | CU117: 0,00 | DH117: 0,00 | DR117: 0,00 | EA117: 0,00 | EI117: 0,00 | ER117: 0,00 | FA117: 0,00
A118: Итого | AK118: 9000 | AQ118: 0,00 | AY118: 112243,32 | BH118: 0,00 | BR118: 0,00 | BY118: 0,00 | CI118: 0,00 | CU118: 0,00 | DH118: 0,00 | DR118: 0,00 | EA118: 0,00 | EI118: 0,00 | ER118: 0,00 | FA118: 10915,00
A120: Руководитель (уполномоченное лицо) Учреждения
AK121: (должность) | BY121: (подпись) | DR121: (расшифровка подписи)
A122: Исполнитель | AK122: Ведущий бухгалтер ТМЦ | CJ122: Идиятова Эльза Наилевна | DW122: 598-33-22 (8104)
AK123: (должность) | BY123: (фамилия, инициалы) | DR123: (телефон)
A125: " | F125: " | R125: 20 | X125: г.

Sheet НИ переданном в аренду
DL1: (в ред. Приказа Минфина России от 08.11.2022 № 159н)
B3: Сведения об имуществе, за исключением земельных участков, переданном в аренду
EW5: КОДЫ
BS6: на 1 | BY6: января | CJ6: 2026 | CP6: г. | ED6: Дата | EW6: 01.01.2026
ED7: по Сводному реестру
ED8: ИНН
A9: Учреждение | ED9: КПП
A10: Орган, осуществляющий функции и полномочия учредителя | ED10: глава по БК
A12: Публично-правовое образование | Z12: город Казань | ED12: по ОКТМО | EW12: 92701000001
A13: Периодичность: годовая
A16: Наименование объекта | AM16: Адрес 33 | BD16: Вид объекта 34 | BU16: Единица измерения | CR16: Код строки | DA16: Объем переданного имущества | DR16: Направление использования 35 | EN16: Комментарий 36
BU17: наименование | CG17: код по ОКЕИ
A18: 1 | AM18: 2 | BD18: 3 | BU18: 4 | CG18: 5 | CR18: 6 | DA18: 7 | DR18: 8 | EN18: 9
A19: Площадные объекты ²⁵, всего | AM19: х | BD19: х | BU19: Квадратный метр | CG19: 055 | CR19: 1000 | DA19: 0,00 | DR19: х | EN19: х
A20: Линейные объекты ²⁶, всего | AM20: х | BD20: х | BU20: Метр | CG20: 006 | CR20: 2000 | DA20: 0,00 | DR20: х | EN20: х
A21: Резервуары, емкости, иные аналогичные объекты, всего | AM21: х | BD21: х | BU21: Кубический метр | CG21: 113 | CR21: 3000 | DA21: 0,00 | DR21: х | EN21: х
A22: Скважины, иные аналогичные объекты, всего | AM22: х | BD22: х | BU22: Метр | CG22: 006 | CR22: 4000 | DA22: 0,00 | DR22: х | EN22: х
A23: Иные объекты, включая точечные, всего | AM23: х | BD23: х | BU23: Штука | CG23: 796 | CR23: 5000 | DA23: 0,00 | DR23: х | EN23: х
A26: ³³ Заполняется в отношении недвижимого имущества.
A27: ³⁴ Указывается вид объекта: 1 - здание (строение, сооружение) в целом, 2 - помещение в здании, строении (за исключением подвалов, чердаков), 3 - подвалы, чердаки, 4 - конструктивная часть здания (крыша, стена), 5 - архитектурный элемент фасада здания (навес над входными дверями зданий), 6 - часть помещения в местах общего пользования (вестибюли, холлы, фойе, коридоры), 7 - линии электропередачи, линии связи (в том числе линейно-кабельные сооружения), 8 - трубопроводы, 9 - автомобильные дороги, 10 - железнодорожные линии, 11 - резервуар, иная емкость, 12 - скважины на воду, 13 - скважины газовые и нефтяные, 14 - скважины иные, 15 - движимое имущество, предоставляемое в прокат, 16 - иные.
A28: ³⁵ Указывается направление использования имущества, переданного в аренду (разрешенное использование): 1 - размещение банкоматов, 2 - размещение торговых автоматов для продажи воды, кофе и кондитерских изделий, 3 - размещение столовых и буфетов, 4 - размещение книжных киосков, магазинов канцелярских принадлежностей, 5 - размещение аптечных пунктов, 6 - размещение торговых автоматов для продажи бахил, одноразовых халатов, 7 - размещение платежных терминалов, 8 - размещение иных торговых точек, 9 - размещение офисов банков, 10 - проведение образовательных и информационно-просветительских мероприятий, 11 - проведение концертно-зрелищных мероприятий, 12 - проведение ярмарок, выставок, 13 - проведение конгрессов, съездов, симпозиумов, конференций, 14 - проведение спортивных мероприятий, 15 - проведение иных культурно-массовых мероприятий, 16 - прокат оборудования, 17 - прокат спортивного инвентаря, 18 - иное.
A29: ³⁶ В случае указания в графе 8 значения "18 - иное" указывается направление использования переданного в аренду имущества.
A32: Руководитель (уполномоченное лицо) Учреждения
AD33: (должность) | CC33: (подпись) | DP33: (расшифровка подписи)
A34: Исполнитель
AD35: (должность) | CC35: (фамилия, инициалы) | DP35: (телефон)
A37: " | F37: " | R37: 20 | X37: г.

Sheet ВД-показатель эф.
DP1: (в ред. Приказа Минфина России от 08.11.2022 № 159н)
B3: Сведения о видах деятельности, в отношении которых установлен показатель эффективности
FH5: КОДЫ
BS6: на 1 | BY6: января | CU6: 2026 | DA6: г. | EO6: Дата | FH6: 01.01.2026
EO7: по Сводному реестру
EO8: ИНН
A9: Учреждение | EO9: КПП
A10: Орган, осуществляющий функции и полномочия учредителя | EO10: глава по БК
A12: Публично-правовое образование | Z12: город Казань | EO12: по ОКТМО | FH12: 92701000001
A13: Периодичность: годовая
A16: Вид деятельности | AM16: Наименование и реквизиты правового акта
AM17: наименование | BN17: Дата | CK17: Номер
A18: 1 | AM18: 2 | BN18: 3 | CK18: 4
A21: Руководитель (уполномоченное лицо) Учреждения
AD22: (должность) | CC22: (подпись) | DP22: (расшифровка подписи)
A23: Исполнитель
AD24: (должность) | CC24: (фамилия, инициалы) | DP24: (телефон)
A26: " | F26: " | R26: 20 | X26: г.

Sheet Достижения эф.
DG1: (в ред. Приказа Минфина России от 08.11.2022 № 159н)
B3: Сведения о достижении показателей эффективности деятельности учреждения
FH5: КОДЫ
BS6: на 1 | BY6: января | CU6: 2026 | DA6: г. | EO6: Дата | FH6: 01.01.2026
EO7: по Сводному реестру
EO8: ИНН
A9: Учреждение | EO9: КПП
A10: Орган, осуществляющий функции и полномочия учредителя | EO10: глава по БК
A12: Публично-правовое образование | Z12: город Казань | EO12: по ОКТМО | FH12: 92701000001
A13: Периодичность: годовая
A16: Наименование показателя эффективности | AM16: Единица измерения | CK16: Плановое значение показателя | DE16: Фактическое значение, достигнутое за отчетный период | DY16: Величина отклонения | ES16: Причина указанного отклонения
AM17: Наименование | BN17: Код по ОКЕИ
A18: 1 | AM18: 2 | BN18: 3 | CK18: 4 | DE18: 5 | DY18: 6 | ES18: 7
A21: Руководитель (уполномоченное лицо) Учреждения
AD22: (должность) | CC22: (подпись) | DP22: (расшифровка подписи)
A23: Исполнитель
AD24: (должность) | CC24: (фамилия, инициалы) | DP24: (телефон)
A26: " | F26: " | R26: 20 | X26: г.
